Date Of Transaction,Department,Beneficiary,Amount,Purpose,Supplier - Merchant Category Code Description
01/08/2016,Environment & Community Services,Salix River & Wetland,-622.94,Credit Card Charges,Credit Voucher Salix River & Wetland
27/09/2016,Children Adult & Health,Arthur David (Food Wit,-86.71,School dinners,Credit Voucher Arthur David (Food Wit
27/09/2016,Children Adult & Health,Arthur David (Food Wit,-68.00,School dinners,Credit Voucher Arthur David (Food Wit
27/09/2016,Children Adult & Health,Arthur David (Food Wit,-60.06,School dinners,Credit Voucher Arthur David (Food Wit
27/09/2016,Children Adult & Health,Arthur David (Food Wit,-59.95,School dinners,Credit Voucher Arthur David (Food Wit
27/09/2016,Children Adult & Health,Arthur David (Food Wit,-19.60,School dinners,Credit Voucher Arthur David (Food Wit
27/09/2016,Children Adult & Health,Arthur David (Food Wit,-19.42,School dinners,Credit Voucher Arthur David (Food Wit
27/09/2016,Children Adult & Health,Arthur David (Food Wit,-10.40,School dinners,Credit Voucher Arthur David (Food Wit
27/09/2016,Children Adult & Health,Arthur David (Food Wit,-3.30,School dinners,Credit Voucher Arthur David (Food Wit
27/09/2016,Children Adult & Health,Arthur David (Food Wit,-2.59,School dinners,Credit Voucher Arthur David (Food Wit
27/09/2016,Children Adult & Health,Amazon UK Retail Amazon.C,49.98,Credit Card Charges,Purchase Amazon UK Retail Amazon.C
28/09/2016,Environment & Community Services,Screwfix,-1.00,Street Care - Buildings Maintenance,Credit Voucher Screwfix
28/09/2016,Environment & Community Services,S.W.G Southwest Glass Lt,10.00,Street Care - Buildings Maintenance,Purchase S.W.G Southwest Glass Lt
28/09/2016,Environment & Community Services,Screwfix,24.78,Street Care - Buildings Maintenance,Purchase Screwfix
28/09/2016,Children Adult & Health,Booker Limited Bristol,136.26,Credit Card Charges,Purchase Booker Limited Bristol
28/09/2016,Children Adult & Health,Amazon UK Retail,32.57,Supplies and Services,Purchase Amazon UK Retail
28/09/2016,Children Adult & Health,Amazon UK Retail,65.14,Supplies and Services,Purchase Amazon UK Retail
28/09/2016,Chief Executive & Corporate Resources,Wix.Com,111.75,Supplies and Services,Purchase Wix.Com
28/09/2016,Children Adult & Health,Brake Bros Ltd,-7.60,School dinners,Credit Voucher Brake Bros Ltd
28/09/2016,Children Adult & Health,Brake Bros Ltd,-6.90,School dinners,Credit Voucher Brake Bros Ltd
28/09/2016,Children Adult & Health,Arthur David (Food Wit,-5.51,School dinners,Credit Voucher Arthur David (Food Wit
28/09/2016,Children Adult & Health,Arthur David (Food Wit,-2.00,School dinners,Credit Voucher Arthur David (Food Wit
28/09/2016,Children Adult & Health,Arthur David (Food Wit,2.00,School dinners,Purchase Arthur David (Food Wit
28/09/2016,Children Adult & Health,John Sheppard Butchers,2.40,School dinners,Purchase John Sheppard Butchers
28/09/2016,Children Adult & Health,Arthur David (Food Wit,2.90,School dinners,Purchase Arthur David (Food Wit
28/09/2016,Children Adult & Health,Arthur David (Food Wit,3.30,School dinners,Purchase Arthur David (Food Wit
28/09/2016,Children Adult & Health,Arthur David (Food Wit,4.93,School dinners,Purchase Arthur David (Food Wit
28/09/2016,Children Adult & Health,Arthur David (Food Wit,5.22,School dinners,Purchase Arthur David (Food Wit
28/09/2016,Children Adult & Health,John Sheppard Butchers,5.82,School dinners,Purchase John Sheppard Butchers
28/09/2016,Children Adult & Health,John Sheppard Butchers,5.97,School dinners,Purchase John Sheppard Butchers
28/09/2016,Children Adult & Health,John Sheppard Butchers,5.99,School dinners,Purchase John Sheppard Butchers
28/09/2016,Children Adult & Health,John Sheppard Butchers,6.26,School dinners,Purchase John Sheppard Butchers
28/09/2016,Children Adult & Health,Arthur David (Food Wit,6.98,School dinners,Purchase Arthur David (Food Wit
28/09/2016,Children Adult & Health,Arthur David (Food Wit,6.99,School dinners,Purchase Arthur David (Food Wit
28/09/2016,Children Adult & Health,John Sheppard Butchers,7.17,School dinners,Purchase John Sheppard Butchers
28/09/2016,Children Adult & Health,Arthur David (Food Wit,7.56,School dinners,Purchase Arthur David (Food Wit
28/09/2016,Children Adult & Health,Arthur David (Food Wit,8.23,School dinners,Purchase Arthur David (Food Wit
28/09/2016,Children Adult & Health,Arthur David (Food Wit,8.62,School dinners,Purchase Arthur David (Food Wit
28/09/2016,Children Adult & Health,Arthur David (Food Wit,9.19,School dinners,Purchase Arthur David (Food Wit
28/09/2016,Children Adult & Health,John Sheppard Butchers,10.14,School dinners,Purchase John Sheppard Butchers
28/09/2016,Children Adult & Health,Arthur David (Food Wit,10.80,School dinners,Purchase Arthur David (Food Wit
28/09/2016,Children Adult & Health,Arthur David (Food Wit,11.35,School dinners,Purchase Arthur David (Food Wit
28/09/2016,Children Adult & Health,John Sheppard Butchers,12.30,School dinners,Purchase John Sheppard Butchers
28/09/2016,Children Adult & Health,Charles Saunders Ltd,12.52,School dinners,Purchase Charles Saunders Ltd
28/09/2016,Children Adult & Health,John Sheppard Butchers,12.70,School dinners,Purchase John Sheppard Butchers
28/09/2016,Children Adult & Health,Arthur David (Food Wit,13.00,School dinners,Purchase Arthur David (Food Wit
28/09/2016,Children Adult & Health,John Sheppard Butchers,13.05,School dinners,Purchase John Sheppard Butchers
28/09/2016,Children Adult & Health,John Sheppard Butchers,13.49,School dinners,Purchase John Sheppard Butchers
28/09/2016,Children Adult & Health,Arthur David (Food Wit,13.60,School dinners,Purchase Arthur David (Food Wit
28/09/2016,Children Adult & Health,John Sheppard Butchers,14.30,School dinners,Purchase John Sheppard Butchers
28/09/2016,Children Adult & Health,Arthur David (Food Wit,14.42,School dinners,Purchase Arthur David (Food Wit
28/09/2016,Children Adult & Health,Arthur David (Food Wit,14.58,School dinners,Purchase Arthur David (Food Wit
28/09/2016,Children Adult & Health,Arthur David (Food Wit,14.89,School dinners,Purchase Arthur David (Food Wit
28/09/2016,Children Adult & Health,Arthur David (Food Wit,15.26,School dinners,Purchase Arthur David (Food Wit
28/09/2016,Children Adult & Health,Arthur David (Food Wit,15.63,School dinners,Purchase Arthur David (Food Wit
28/09/2016,Children Adult & Health,Arthur David (Food Wit,15.93,School dinners,Purchase Arthur David (Food Wit
28/09/2016,Children Adult & Health,Arthur David (Food Wit,16.61,School dinners,Purchase Arthur David (Food Wit
28/09/2016,Children Adult & Health,John Sheppard Butchers,17.06,School dinners,Purchase John Sheppard Butchers
28/09/2016,Children Adult & Health,Arthur David (Food Wit,17.13,School dinners,Purchase Arthur David (Food Wit
28/09/2016,Children Adult & Health,John Sheppard Butchers,17.47,School dinners,Purchase John Sheppard Butchers
28/09/2016,Children Adult & Health,Arthur David (Food Wit,18.78,School dinners,Purchase Arthur David (Food Wit
28/09/2016,Children Adult & Health,John Sheppard Butchers,19.70,School dinners,Purchase John Sheppard Butchers
28/09/2016,Children Adult & Health,John Sheppard Butchers,19.76,School dinners,Purchase John Sheppard Butchers
28/09/2016,Children Adult & Health,John Sheppard Butchers,20.46,School dinners,Purchase John Sheppard Butchers
28/09/2016,Children Adult & Health,Arthur David (Food Wit,20.52,School dinners,Purchase Arthur David (Food Wit
28/09/2016,Children Adult & Health,John Sheppard Butchers,20.78,School dinners,Purchase John Sheppard Butchers
28/09/2016,Children Adult & Health,John Sheppard Butchers,21.54,School dinners,Purchase John Sheppard Butchers
28/09/2016,Children Adult & Health,John Sheppard Butchers,21.92,School dinners,Purchase John Sheppard Butchers
28/09/2016,Children Adult & Health,John Sheppard Butchers,22.06,School dinners,Purchase John Sheppard Butchers
28/09/2016,Children Adult & Health,John Sheppard Butchers,22.95,School dinners,Purchase John Sheppard Butchers
28/09/2016,Children Adult & Health,John Sheppard Butchers,23.27,School dinners,Purchase John Sheppard Butchers
28/09/2016,Children Adult & Health,Arthur David (Food Wit,24.63,School dinners,Purchase Arthur David (Food Wit
28/09/2016,Children Adult & Health,Arthur David (Food Wit,24.81,School dinners,Purchase Arthur David (Food Wit
28/09/2016,Children Adult & Health,John Sheppard Butchers,24.88,School dinners,Purchase John Sheppard Butchers
28/09/2016,Children Adult & Health,Arthur David (Food Wit,25.30,School dinners,Purchase Arthur David (Food Wit
28/09/2016,Children Adult & Health,John Sheppard Butchers,26.00,School dinners,Purchase John Sheppard Butchers
28/09/2016,Children Adult & Health,John Sheppard Butchers,26.17,School dinners,Purchase John Sheppard Butchers
28/09/2016,Children Adult & Health,John Sheppard Butchers,26.24,School dinners,Purchase John Sheppard Butchers
28/09/2016,Children Adult & Health,John Sheppard Butchers,27.21,School dinners,Purchase John Sheppard Butchers
28/09/2016,Children Adult & Health,John Sheppard Butchers,27.50,School dinners,Purchase John Sheppard Butchers
28/09/2016,Children Adult & Health,John Sheppard Butchers,28.18,School dinners,Purchase John Sheppard Butchers
28/09/2016,Children Adult & Health,John Sheppard Butchers,28.27,School dinners,Purchase John Sheppard Butchers
28/09/2016,Children Adult & Health,Arthur David (Food Wit,28.41,School dinners,Purchase Arthur David (Food Wit
28/09/2016,Children Adult & Health,John Sheppard Butchers,29.95,School dinners,Purchase John Sheppard Butchers
28/09/2016,Children Adult & Health,John Sheppard Butchers,30.16,School dinners,Purchase John Sheppard Butchers
28/09/2016,Children Adult & Health,Charles Saunders Ltd,30.33,School dinners,Purchase Charles Saunders Ltd
28/09/2016,Children Adult & Health,Arthur David (Food Wit,30.65,School dinners,Purchase Arthur David (Food Wit
28/09/2016,Children Adult & Health,Brake Bros Ltd,30.89,School dinners,Purchase Brake Bros Ltd
28/09/2016,Children Adult & Health,John Sheppard Butchers,30.91,School dinners,Purchase John Sheppard Butchers
28/09/2016,Children Adult & Health,John Sheppard Butchers,31.24,School dinners,Purchase John Sheppard Butchers
28/09/2016,Children Adult & Health,John Sheppard Butchers,33.26,School dinners,Purchase John Sheppard Butchers
28/09/2016,Children Adult & Health,John Sheppard Butchers,33.71,School dinners,Purchase John Sheppard Butchers
28/09/2016,Children Adult & Health,Brake Bros Ltd,34.18,School dinners,Purchase Brake Bros Ltd
28/09/2016,Children Adult & Health,Arthur David (Food Wit,35.28,School dinners,Purchase Arthur David (Food Wit
28/09/2016,Children Adult & Health,John Sheppard Butchers,35.87,School dinners,Purchase John Sheppard Butchers
28/09/2016,Children Adult & Health,John Sheppard Butchers,36.55,School dinners,Purchase John Sheppard Butchers
28/09/2016,Children Adult & Health,Charles Saunders Ltd,36.89,School dinners,Purchase Charles Saunders Ltd
28/09/2016,Children Adult & Health,Arthur David (Food Wit,37.34,School dinners,Purchase Arthur David (Food Wit
28/09/2016,Children Adult & Health,Arthur David (Food Wit,37.92,School dinners,Purchase Arthur David (Food Wit
28/09/2016,Children Adult & Health,John Sheppard Butchers,38.27,School dinners,Purchase John Sheppard Butchers
28/09/2016,Children Adult & Health,John Sheppard Butchers,39.20,School dinners,Purchase John Sheppard Butchers
28/09/2016,Children Adult & Health,Arthur David (Food Wit,40.14,School dinners,Purchase Arthur David (Food Wit
28/09/2016,Children Adult & Health,Charles Saunders Ltd,40.37,School dinners,Purchase Charles Saunders Ltd
28/09/2016,Children Adult & Health,John Sheppard Butchers,42.06,School dinners,Purchase John Sheppard Butchers
28/09/2016,Children Adult & Health,Arthur David (Food Wit,42.34,School dinners,Purchase Arthur David (Food Wit
28/09/2016,Children Adult & Health,John Sheppard Butchers,44.30,School dinners,Purchase John Sheppard Butchers
28/09/2016,Children Adult & Health,John Sheppard Butchers,44.31,School dinners,Purchase John Sheppard Butchers
28/09/2016,Children Adult & Health,Arthur David (Food Wit,44.67,School dinners,Purchase Arthur David (Food Wit
28/09/2016,Children Adult & Health,Charles Saunders Ltd,44.90,School dinners,Purchase Charles Saunders Ltd
28/09/2016,Children Adult & Health,Charles Saunders Ltd,45.11,School dinners,Purchase Charles Saunders Ltd
28/09/2016,Children Adult & Health,Charles Saunders Ltd,45.36,School dinners,Purchase Charles Saunders Ltd
28/09/2016,Children Adult & Health,Arthur David (Food Wit,46.11,School dinners,Purchase Arthur David (Food Wit
28/09/2016,Children Adult & Health,John Sheppard Butchers,46.55,School dinners,Purchase John Sheppard Butchers
28/09/2016,Children Adult & Health,John Sheppard Butchers,46.58,School dinners,Purchase John Sheppard Butchers
28/09/2016,Children Adult & Health,Arthur David (Food Wit,46.96,School dinners,Purchase Arthur David (Food Wit
28/09/2016,Children Adult & Health,John Sheppard Butchers,49.35,School dinners,Purchase John Sheppard Butchers
28/09/2016,Children Adult & Health,Charles Saunders Ltd,49.37,School dinners,Purchase Charles Saunders Ltd
28/09/2016,Children Adult & Health,Charles Saunders Ltd,49.79,School dinners,Purchase Charles Saunders Ltd
28/09/2016,Children Adult & Health,John Sheppard Butchers,50.47,School dinners,Purchase John Sheppard Butchers
28/09/2016,Children Adult & Health,John Sheppard Butchers,50.94,School dinners,Purchase John Sheppard Butchers
28/09/2016,Children Adult & Health,John Sheppard Butchers,52.76,School dinners,Purchase John Sheppard Butchers
28/09/2016,Children Adult & Health,John Sheppard Butchers,53.49,School dinners,Purchase John Sheppard Butchers
28/09/2016,Children Adult & Health,John Sheppard Butchers,54.21,School dinners,Purchase John Sheppard Butchers
28/09/2016,Children Adult & Health,Charles Saunders Ltd,56.88,School dinners,Purchase Charles Saunders Ltd
28/09/2016,Children Adult & Health,Arthur David (Food Wit,57.20,School dinners,Purchase Arthur David (Food Wit
28/09/2016,Children Adult & Health,John Sheppard Butchers,59.51,School dinners,Purchase John Sheppard Butchers
28/09/2016,Children Adult & Health,John Sheppard Butchers,61.11,School dinners,Purchase John Sheppard Butchers
28/09/2016,Children Adult & Health,Charles Saunders Ltd,61.87,School dinners,Purchase Charles Saunders Ltd
28/09/2016,Children Adult & Health,John Sheppard Butchers,64.73,School dinners,Purchase John Sheppard Butchers
28/09/2016,Children Adult & Health,John Sheppard Butchers,65.02,School dinners,Purchase John Sheppard Butchers
28/09/2016,Children Adult & Health,John Sheppard Butchers,65.44,School dinners,Purchase John Sheppard Butchers
28/09/2016,Children Adult & Health,Charles Saunders Ltd,65.52,School dinners,Purchase Charles Saunders Ltd
28/09/2016,Children Adult & Health,Charles Saunders Ltd,66.23,School dinners,Purchase Charles Saunders Ltd
28/09/2016,Children Adult & Health,Brake Bros Ltd,65.10,School dinners,Purchase Brake Bros Ltd
28/09/2016,Children Adult & Health,Charles Saunders Ltd,66.92,School dinners,Purchase Charles Saunders Ltd
28/09/2016,Children Adult & Health,Charles Saunders Ltd,67.46,School dinners,Purchase Charles Saunders Ltd
28/09/2016,Children Adult & Health,Charles Saunders Ltd,68.45,School dinners,Purchase Charles Saunders Ltd
28/09/2016,Children Adult & Health,John Sheppard Butchers,69.07,School dinners,Purchase John Sheppard Butchers
28/09/2016,Children Adult & Health,Arthur David (Food Wit,69.86,School dinners,Purchase Arthur David (Food Wit
28/09/2016,Children Adult & Health,Charles Saunders Ltd,69.92,School dinners,Purchase Charles Saunders Ltd
28/09/2016,Children Adult & Health,Charles Saunders Ltd,71.59,School dinners,Purchase Charles Saunders Ltd
28/09/2016,Children Adult & Health,Charles Saunders Ltd,72.54,School dinners,Purchase Charles Saunders Ltd
28/09/2016,Children Adult & Health,John Sheppard Butchers,75.09,School dinners,Purchase John Sheppard Butchers
28/09/2016,Children Adult & Health,John Sheppard Butchers,75.39,School dinners,Purchase John Sheppard Butchers
28/09/2016,Children Adult & Health,John Sheppard Butchers,75.50,School dinners,Purchase John Sheppard Butchers
28/09/2016,Children Adult & Health,Charles Saunders Ltd,75.52,School dinners,Purchase Charles Saunders Ltd
28/09/2016,Children Adult & Health,Brake Bros Ltd,75.76,School dinners,Purchase Brake Bros Ltd
28/09/2016,Children Adult & Health,Arthur David (Food Wit,76.74,School dinners,Purchase Arthur David (Food Wit
28/09/2016,Children Adult & Health,Charles Saunders Ltd,76.81,School dinners,Purchase Charles Saunders Ltd
28/09/2016,Children Adult & Health,Charles Saunders Ltd,78.11,School dinners,Purchase Charles Saunders Ltd
28/09/2016,Children Adult & Health,Charles Saunders Ltd,78.13,School dinners,Purchase Charles Saunders Ltd
28/09/2016,Children Adult & Health,Charles Saunders Ltd,78.47,School dinners,Purchase Charles Saunders Ltd
28/09/2016,Children Adult & Health,Charles Saunders Ltd,79.45,School dinners,Purchase Charles Saunders Ltd
28/09/2016,Children Adult & Health,John Sheppard Butchers,79.77,School dinners,Purchase John Sheppard Butchers
28/09/2016,Children Adult & Health,Charles Saunders Ltd,79.93,School dinners,Purchase Charles Saunders Ltd
28/09/2016,Children Adult & Health,Charles Saunders Ltd,80.54,School dinners,Purchase Charles Saunders Ltd
28/09/2016,Children Adult & Health,Charles Saunders Ltd,80.80,School dinners,Purchase Charles Saunders Ltd
28/09/2016,Children Adult & Health,John Sheppard Butchers,82.18,School dinners,Purchase John Sheppard Butchers
28/09/2016,Children Adult & Health,Brake Bros Ltd,83.85,School dinners,Purchase Brake Bros Ltd
28/09/2016,Children Adult & Health,Arthur David (Food Wit,84.18,School dinners,Purchase Arthur David (Food Wit
28/09/2016,Children Adult & Health,Charles Saunders Ltd,85.52,School dinners,Purchase Charles Saunders Ltd
28/09/2016,Children Adult & Health,Charles Saunders Ltd,89.04,School dinners,Purchase Charles Saunders Ltd
28/09/2016,Children Adult & Health,Charles Saunders Ltd,89.49,School dinners,Purchase Charles Saunders Ltd
28/09/2016,Children Adult & Health,John Sheppard Butchers,90.66,School dinners,Purchase John Sheppard Butchers
28/09/2016,Children Adult & Health,Charles Saunders Ltd,91.63,School dinners,Purchase Charles Saunders Ltd
28/09/2016,Children Adult & Health,Charles Saunders Ltd,91.96,School dinners,Purchase Charles Saunders Ltd
28/09/2016,Children Adult & Health,John Sheppard Butchers,92.26,School dinners,Purchase John Sheppard Butchers
28/09/2016,Children Adult & Health,Charles Saunders Ltd,92.29,School dinners,Purchase Charles Saunders Ltd
28/09/2016,Children Adult & Health,Charles Saunders Ltd,92.78,School dinners,Purchase Charles Saunders Ltd
28/09/2016,Children Adult & Health,Charles Saunders Ltd,93.70,School dinners,Purchase Charles Saunders Ltd
28/09/2016,Children Adult & Health,Brake Bros Ltd,98.70,School dinners,Purchase Brake Bros Ltd
28/09/2016,Children Adult & Health,Charles Saunders Ltd,100.30,School dinners,Purchase Charles Saunders Ltd
28/09/2016,Children Adult & Health,Charles Saunders Ltd,101.50,School dinners,Purchase Charles Saunders Ltd
28/09/2016,Children Adult & Health,Charles Saunders Ltd,103.03,School dinners,Purchase Charles Saunders Ltd
28/09/2016,Children Adult & Health,Charles Saunders Ltd,103.32,School dinners,Purchase Charles Saunders Ltd
28/09/2016,Children Adult & Health,Charles Saunders Ltd,103.37,School dinners,Purchase Charles Saunders Ltd
28/09/2016,Children Adult & Health,Charles Saunders Ltd,107.04,School dinners,Purchase Charles Saunders Ltd
28/09/2016,Children Adult & Health,Charles Saunders Ltd,108.28,School dinners,Purchase Charles Saunders Ltd
28/09/2016,Children Adult & Health,Charles Saunders Ltd,112.96,School dinners,Purchase Charles Saunders Ltd
28/09/2016,Children Adult & Health,Charles Saunders Ltd,113.03,School dinners,Purchase Charles Saunders Ltd
28/09/2016,Children Adult & Health,Charles Saunders Ltd,113.16,School dinners,Purchase Charles Saunders Ltd
28/09/2016,Children Adult & Health,Charles Saunders Ltd,114.08,School dinners,Purchase Charles Saunders Ltd
28/09/2016,Children Adult & Health,Charles Saunders Ltd,115.55,School dinners,Purchase Charles Saunders Ltd
28/09/2016,Children Adult & Health,Charles Saunders Ltd,117.20,School dinners,Purchase Charles Saunders Ltd
28/09/2016,Children Adult & Health,Charles Saunders Ltd,117.79,School dinners,Purchase Charles Saunders Ltd
28/09/2016,Children Adult & Health,Brake Bros Ltd,119.72,School dinners,Purchase Brake Bros Ltd
28/09/2016,Children Adult & Health,Charles Saunders Ltd,120.17,School dinners,Purchase Charles Saunders Ltd
28/09/2016,Children Adult & Health,Charles Saunders Ltd,122.49,School dinners,Purchase Charles Saunders Ltd
28/09/2016,Children Adult & Health,Charles Saunders Ltd,123.75,School dinners,Purchase Charles Saunders Ltd
28/09/2016,Children Adult & Health,John Sheppard Butchers,126.63,School dinners,Purchase John Sheppard Butchers
28/09/2016,Children Adult & Health,Charles Saunders Ltd,126.68,School dinners,Purchase Charles Saunders Ltd
28/09/2016,Children Adult & Health,Brake Bros Ltd,128.73,School dinners,Purchase Brake Bros Ltd
28/09/2016,Children Adult & Health,Charles Saunders Ltd,130.20,School dinners,Purchase Charles Saunders Ltd
28/09/2016,Children Adult & Health,Charles Saunders Ltd,131.06,School dinners,Purchase Charles Saunders Ltd
28/09/2016,Children Adult & Health,Brake Bros Ltd,132.11,School dinners,Purchase Brake Bros Ltd
28/09/2016,Children Adult & Health,Charles Saunders Ltd,138.93,School dinners,Purchase Charles Saunders Ltd
28/09/2016,Children Adult & Health,Charles Saunders Ltd,141.22,School dinners,Purchase Charles Saunders Ltd
28/09/2016,Children Adult & Health,John Sheppard Butchers,141.56,School dinners,Purchase John Sheppard Butchers
28/09/2016,Children Adult & Health,Charles Saunders Ltd,141.92,School dinners,Purchase Charles Saunders Ltd
28/09/2016,Children Adult & Health,Brake Bros Ltd,143.36,School dinners,Purchase Brake Bros Ltd
28/09/2016,Children Adult & Health,Brake Bros Ltd,143.61,School dinners,Purchase Brake Bros Ltd
28/09/2016,Children Adult & Health,Charles Saunders Ltd,144.50,School dinners,Purchase Charles Saunders Ltd
28/09/2016,Children Adult & Health,Charles Saunders Ltd,145.96,School dinners,Purchase Charles Saunders Ltd
28/09/2016,Children Adult & Health,Brake Bros Ltd,146.81,School dinners,Purchase Brake Bros Ltd
28/09/2016,Children Adult & Health,Charles Saunders Ltd,148.50,School dinners,Purchase Charles Saunders Ltd
28/09/2016,Children Adult & Health,Charles Saunders Ltd,148.94,School dinners,Purchase Charles Saunders Ltd
28/09/2016,Children Adult & Health,Brake Bros Ltd,150.14,School dinners,Purchase Brake Bros Ltd
28/09/2016,Children Adult & Health,Charles Saunders Ltd,151.83,School dinners,Purchase Charles Saunders Ltd
28/09/2016,Children Adult & Health,Charles Saunders Ltd,154.65,School dinners,Purchase Charles Saunders Ltd
28/09/2016,Children Adult & Health,Charles Saunders Ltd,163.56,School dinners,Purchase Charles Saunders Ltd
28/09/2016,Children Adult & Health,Brake Bros Ltd,164.03,School dinners,Purchase Brake Bros Ltd
28/09/2016,Children Adult & Health,Brake Bros Ltd,160.96,School dinners,Purchase Brake Bros Ltd
28/09/2016,Children Adult & Health,Brake Bros Ltd,169.89,School dinners,Purchase Brake Bros Ltd
28/09/2016,Children Adult & Health,Charles Saunders Ltd,190.45,School dinners,Purchase Charles Saunders Ltd
28/09/2016,Children Adult & Health,Brake Bros Ltd,189.43,School dinners,Purchase Brake Bros Ltd
28/09/2016,Children Adult & Health,Brake Bros Ltd,198.85,School dinners,Purchase Brake Bros Ltd
28/09/2016,Children Adult & Health,Brake Bros Ltd,200.12,School dinners,Purchase Brake Bros Ltd
28/09/2016,Children Adult & Health,Charles Saunders Ltd,209.18,School dinners,Purchase Charles Saunders Ltd
28/09/2016,Children Adult & Health,Brake Bros Ltd,207.68,School dinners,Purchase Brake Bros Ltd
28/09/2016,Children Adult & Health,Charles Saunders Ltd,223.28,School dinners,Purchase Charles Saunders Ltd
28/09/2016,Children Adult & Health,Brake Bros Ltd,237.86,School dinners,Purchase Brake Bros Ltd
28/09/2016,Children Adult & Health,Charles Saunders Ltd,253.33,School dinners,Purchase Charles Saunders Ltd
28/09/2016,Children Adult & Health,Charles Saunders Ltd,259.44,School dinners,Purchase Charles Saunders Ltd
28/09/2016,Children Adult & Health,Charles Saunders Ltd,260.47,School dinners,Purchase Charles Saunders Ltd
28/09/2016,Children Adult & Health,Brake Bros Ltd,277.60,School dinners,Purchase Brake Bros Ltd
28/09/2016,Children Adult & Health,Brake Bros Ltd,314.95,School dinners,Purchase Brake Bros Ltd
28/09/2016,Children Adult & Health,Charles Saunders Ltd,355.41,School dinners,Purchase Charles Saunders Ltd
28/09/2016,Children Adult & Health,Charles Saunders Ltd,356.64,School dinners,Purchase Charles Saunders Ltd
28/09/2016,Children Adult & Health,Charles Saunders Ltd,368.97,School dinners,Purchase Charles Saunders Ltd
28/09/2016,Children Adult & Health,Charles Saunders Ltd,376.61,School dinners,Purchase Charles Saunders Ltd
28/09/2016,Children Adult & Health,Brake Bros Ltd,381.53,School dinners,Purchase Brake Bros Ltd
28/09/2016,Children Adult & Health,Charles Saunders Ltd,443.38,School dinners,Purchase Charles Saunders Ltd
28/09/2016,Children Adult & Health,Charles Saunders Ltd,579.60,School dinners,Purchase Charles Saunders Ltd
28/09/2016,Children Adult & Health,Charles Saunders Ltd,1098.02,School dinners,Purchase Charles Saunders Ltd
28/09/2016,Chief Executive & Corporate Resources,Supplies Team,0.68,Stationery,Purchase Supplies Team
28/09/2016,Chief Executive & Corporate Resources,Supplies Team,8.94,Stationery,Purchase Supplies Team
28/09/2016,Chief Executive & Corporate Resources,Supplies Team,18.11,Stationery,Purchase Supplies Team
28/09/2016,Chief Executive & Corporate Resources,Supplies Team,23.90,Stationery,Purchase Supplies Team
28/09/2016,Chief Executive & Corporate Resources,Supplies Team,26.54,Stationery,Purchase Supplies Team
28/09/2016,Chief Executive & Corporate Resources,Supplies Team,41.47,Stationery,Purchase Supplies Team
28/09/2016,Chief Executive & Corporate Resources,Supplies Team,132.80,Stationery,Purchase Supplies Team
28/09/2016,Children Adult & Health,Gwr Websales Ecom,30.50,Supplies and Services,Purchase Gwr Websales Ecom
28/09/2016,Children Adult & Health,Amazon UK Marketplace,2.98,Credit Card Charges,Purchase Amazon UK Marketplace
28/09/2016,Children Adult & Health,Amazon UK Marketplace,55.84,Credit Card Charges,Purchase Amazon UK Marketplace
28/09/2016,Children Adult & Health,Sportsdirect.Com,16.99,Supplies and Services,Purchase Sportsdirect.Com
28/09/2016,Children Adult & Health,Ms-2 Stores,23.80,Supplies and Services,Purchase Ms-2 Stores
28/09/2016,Children Adult & Health,Argos Ltd,63.02,Supplies and Services,Purchase Argos Ltd
28/09/2016,Environment & Community Services,B & Q 1022,13.30,Supplies and Services,Purchase B & Q 1022
28/09/2016,Chief Executive & Corporate Resources,Airbnb,1608.00,Credit Card Charges,Purchase Airbnb
28/09/2016,Children Adult & Health,Www.Thewhocaretrust.Or,77.75,Supplies and Services,Purchase Www.Thewhocaretrust.Or
28/09/2016,Environment & Community Services,B & Q 1022,18.54,Street Care - Buildings Maintenance,Purchase B & Q 1022
28/09/2016,Environment & Community Services,Ezi Klamp Systems Ltd,42.07,Street Care - Buildings Maintenance,Purchase Ezi Klamp Systems Ltd
28/09/2016,Chief Executive & Corporate Resources,Www.Ryman.Co.Uk,9.29,Supplies and Services,Purchase Www.Ryman.Co.Uk
28/09/2016,Chief Executive & Corporate Resources,Amazon UK Marketplace,73.90,Supplies and Services,Purchase Amazon UK Marketplace
28/09/2016,Children Adult & Health,W M Morrisons Plc,3.43,Supplies and Services,Purchase W M Morrisons Plc
28/09/2016,Children Adult & Health,Gems News & Booze,87.00,Supplies and Services,Purchase Gems News & Booze
28/09/2016,Children Adult & Health,Tesco Store 3387,199.00,Supplies and Services,Purchase Tesco Store 3387
28/09/2016,Children Adult & Health,Murray Hire Centre,30.60,Supplies and Services,Purchase Murray Hire Centre
28/09/2016,Chief Executive & Corporate Resources,Voucher Express B2b Mo,459.00,Supplies and Services,Purchase Voucher Express B2b Mo
28/09/2016,Children Adult & Health,Travelodge Website,186.00,Prop.Serv. General Repairs,Purchase Travelodge Website
28/09/2016,Children Adult & Health,Travelodge Website,186.00,Prop.Serv. General Repairs,Purchase Travelodge Website
28/09/2016,Children Adult & Health,Travelodge Website,308.00,Prop.Serv. General Repairs,Purchase Travelodge Website
28/09/2016,Environment & Community Services,Trainline.Com Ltd,150.45,Credit Card Charges,Purchase Trainline.Com Ltd
28/09/2016,Environment & Community Services,Trainline.Com Ltd,210.12,Credit Card Charges,Purchase Trainline.Com Ltd
28/09/2016,Environment & Community Services,Premier Inn44034360,667.00,Credit Card Charges,Purchase Premier Inn44034360
28/09/2016,Children Adult & Health,Asda Superstore,21.52,Credit Card Charges,Purchase Asda Superstore
28/09/2016,Chief Executive & Corporate Resources,Tvlicensing.Co.Uk,145.50,Supplies and Services,Purchase Tvlicensing.Co.Uk
28/09/2016,Environment & Community Services,B & Q 1022,93.85,Street Care - Buildings Maintenance,Purchase B & Q 1022
28/09/2016,Children Adult & Health,Tesco Stores 6420,-60.00,Supplies and Services,Credit Voucher Tesco Stores 6420
28/09/2016,Children Adult & Health,Kfc,10.06,Supplies and Services,Purchase Kfc
28/09/2016,Environment & Community Services,B & Q 1022,32.50,Street Care - Buildings Maintenance,Purchase B & Q 1022
28/09/2016,Children Adult & Health,Tesco Store 3387,9.78,Supplies and Services,Purchase Tesco Store 3387
28/09/2016,Chief Executive & Corporate Resources,The Apollo Hotel,103.00,Credit Card Charges,Purchase The Apollo Hotel
28/09/2016,Children Adult & Health,W M Morrisons Plc,13.09,Credit Card Charges,Purchase W M Morrisons Plc
29/09/2016,Environment & Community Services,Olympus Electrical Whole,10.74,Street Care - Buildings Maintenance,Purchase Olympus Electrical Whole
29/09/2016,Environment & Community Services,Screwfix,39.54,Street Care - Buildings Maintenance,Purchase Screwfix
29/09/2016,Environment & Community Services,Cieh,89.00,Supplies and Services,Purchase Cieh
29/09/2016,Chief Executive & Corporate Resources,Premier Inn44521650,751.90,Credit Card Charges,Purchase Premier Inn44521650
29/09/2016,Children Adult & Health,Brake Bros Ltd,-10.86,School dinners,Credit Voucher Brake Bros Ltd
29/09/2016,Children Adult & Health,Brake Bros Ltd,-10.14,School dinners,Credit Voucher Brake Bros Ltd
29/09/2016,Children Adult & Health,Arthur David (Food Wit,-9.00,School dinners,Credit Voucher Arthur David (Food Wit
29/09/2016,Children Adult & Health,Brake Bros Ltd,7.46,School dinners,Purchase Brake Bros Ltd
29/09/2016,Children Adult & Health,Brake Bros Ltd,17.19,School dinners,Purchase Brake Bros Ltd
29/09/2016,Children Adult & Health,Arthur David (Food Wit,56.19,School dinners,Purchase Arthur David (Food Wit
29/09/2016,Children Adult & Health,Brake Bros Ltd,101.84,School dinners,Purchase Brake Bros Ltd
29/09/2016,Children Adult & Health,Brake Bros Ltd,103.79,School dinners,Purchase Brake Bros Ltd
29/09/2016,Children Adult & Health,Brake Bros Ltd,106.00,School dinners,Purchase Brake Bros Ltd
29/09/2016,Children Adult & Health,Brake Bros Ltd,110.32,School dinners,Purchase Brake Bros Ltd
29/09/2016,Children Adult & Health,Brake Bros Ltd,112.41,School dinners,Purchase Brake Bros Ltd
29/09/2016,Children Adult & Health,Brake Bros Ltd,127.68,School dinners,Purchase Brake Bros Ltd
29/09/2016,Children Adult & Health,Brake Bros Ltd,130.44,School dinners,Purchase Brake Bros Ltd
29/09/2016,Children Adult & Health,Brake Bros Ltd,131.76,School dinners,Purchase Brake Bros Ltd
29/09/2016,Children Adult & Health,Brake Bros Ltd,132.53,School dinners,Purchase Brake Bros Ltd
29/09/2016,Children Adult & Health,Brake Bros Ltd,138.81,School dinners,Purchase Brake Bros Ltd
29/09/2016,Children Adult & Health,Brake Bros Ltd,143.24,School dinners,Purchase Brake Bros Ltd
29/09/2016,Children Adult & Health,Brake Bros Ltd,146.91,School dinners,Purchase Brake Bros Ltd
29/09/2016,Children Adult & Health,Brake Bros Ltd,157.82,School dinners,Purchase Brake Bros Ltd
29/09/2016,Children Adult & Health,Brake Bros Ltd,167.32,School dinners,Purchase Brake Bros Ltd
29/09/2016,Children Adult & Health,Brake Bros Ltd,170.17,School dinners,Purchase Brake Bros Ltd
29/09/2016,Children Adult & Health,Brake Bros Ltd,185.25,School dinners,Purchase Brake Bros Ltd
29/09/2016,Children Adult & Health,Brake Bros Ltd,190.32,School dinners,Purchase Brake Bros Ltd
29/09/2016,Children Adult & Health,Brake Bros Ltd,191.99,School dinners,Purchase Brake Bros Ltd
29/09/2016,Children Adult & Health,Brake Bros Ltd,207.87,School dinners,Purchase Brake Bros Ltd
29/09/2016,Children Adult & Health,Brake Bros Ltd,218.26,School dinners,Purchase Brake Bros Ltd
29/09/2016,Children Adult & Health,Brake Bros Ltd,222.36,School dinners,Purchase Brake Bros Ltd
29/09/2016,Children Adult & Health,Brake Bros Ltd,231.42,School dinners,Purchase Brake Bros Ltd
29/09/2016,Children Adult & Health,Brake Bros Ltd,246.73,School dinners,Purchase Brake Bros Ltd
29/09/2016,Children Adult & Health,Brake Bros Ltd,264.43,School dinners,Purchase Brake Bros Ltd
29/09/2016,Children Adult & Health,Brake Bros Ltd,271.50,School dinners,Purchase Brake Bros Ltd
29/09/2016,Children Adult & Health,Brake Bros Ltd,277.60,School dinners,Purchase Brake Bros Ltd
29/09/2016,Children Adult & Health,Brake Bros Ltd,281.34,School dinners,Purchase Brake Bros Ltd
29/09/2016,Children Adult & Health,Brake Bros Ltd,293.49,School dinners,Purchase Brake Bros Ltd
29/09/2016,Children Adult & Health,Brake Bros Ltd,317.40,School dinners,Purchase Brake Bros Ltd
29/09/2016,Children Adult & Health,Brake Bros Ltd,327.58,School dinners,Purchase Brake Bros Ltd
29/09/2016,Children Adult & Health,Brake Bros Ltd,331.99,School dinners,Purchase Brake Bros Ltd
29/09/2016,Children Adult & Health,Amazon UK Marketplace,10.69,Credit Card Charges,Purchase Amazon UK Marketplace
29/09/2016,Children Adult & Health,Amazon UK Marketplace,19.45,Credit Card Charges,Purchase Amazon UK Marketplace
29/09/2016,Children Adult & Health,Amazon UK Marketplace,19.90,Credit Card Charges,Purchase Amazon UK Marketplace
29/09/2016,Children Adult & Health,Amazon UK Marketplace,28.69,Credit Card Charges,Purchase Amazon UK Marketplace
29/09/2016,Children Adult & Health,Amazon UK Marketplace,29.90,Credit Card Charges,Purchase Amazon UK Marketplace
29/09/2016,Children Adult & Health,Screwfix Direct,185.35,Credit Card Charges,Purchase Screwfix Direct
29/09/2016,Environment & Community Services,Www.Uk.Autodata-Group.,954.00,Credit Card Charges,Purchase Www.Uk.Autodata-Group.
29/09/2016,Environment & Community Services,Www.Buyaparcel.Com,18.85,Supplies and Services,Purchase Www.Buyaparcel.Com
29/09/2016,Environment & Community Services,Amazon UK Marketplace,59.99,Supplies and Services,Purchase Amazon UK Marketplace
29/09/2016,Chief Executive & Corporate Resources,Gwr Websales Ecom,149.10,Credit Card Charges,Purchase Gwr Websales Ecom
29/09/2016,Chief Executive & Corporate Resources,Travelodge Website,178.95,Credit Card Charges,Purchase Travelodge Website
29/09/2016,Children Adult & Health,Asda Stores 4777,9.70,Supplies and Services,Purchase Asda Stores 4777
29/09/2016,Environment & Community Services,B & Q 1280,7.74,Street Care - Buildings Maintenance,Purchase B & Q 1280
29/09/2016,Environment & Community Services,B & Q 1280,7.88,Street Care - Buildings Maintenance,Purchase B & Q 1280
29/09/2016,Chief Executive & Corporate Resources,Amazon UK Marketplace,3.86,Supplies and Services,Purchase Amazon UK Marketplace
29/09/2016,Chief Executive & Corporate Resources,Amazon UK Retail Amazon.C,89.10,Supplies and Services,Purchase Amazon UK Retail Amazon.C
29/09/2016,Children Adult & Health,Www.Livefoods.Co.U,8.43,Credit Card Charges,Purchase Www.Livefoods.Co.U
29/09/2016,Children Adult & Health,Amazon UK Marketplace,26.99,Credit Card Charges,Purchase Amazon UK Marketplace
29/09/2016,Children Adult & Health,Crossbow Education,115.03,Credit Card Charges,Purchase Crossbow Education
29/09/2016,Children Adult & Health,Tesco Stores 6420,139.37,Credit Card Charges,Purchase Tesco Stores 6420
29/09/2016,Children Adult & Health,Paypal,139.62,Credit Card Charges,Purchase Paypal
29/09/2016,Children Adult & Health,Brooks Braithwaite,219.54,Credit Card Charges,Purchase Brooks Braithwaite
29/09/2016,Children Adult & Health,Easyjet,216.35,Supplies and Services,Purchase Easyjet
29/09/2016,Children Adult & Health,Poundland,10.00,Supplies and Services,Purchase Poundland
29/09/2016,Children Adult & Health,South Glos Internet,30.00,Credit Card Charges,Purchase South Glos Internet
29/09/2016,Environment & Community Services,Premier Inn44011140,93.99,Credit Card Charges,Purchase Premier Inn44011140
29/09/2016,Children Adult & Health,Amazon UK Marketplace,119.29,Supplies and Services,Purchase Amazon UK Marketplace
29/09/2016,Environment & Community Services,Love2shop.Co.Uk,100.00,Credit Card Charges,Purchase Love2shop.Co.Uk
29/09/2016,Environment & Community Services,Www.Jib.Org.Uk,36.00,Credit Card Charges,Purchase Www.Jib.Org.Uk
29/09/2016,Environment & Community Services,Cotswold Medicals Ltd,174.00,Credit Card Charges,Purchase Cotswold Medicals Ltd
30/09/2016,Environment & Community Services,Screwfix Direct,67.31,Street Care - Buildings Maintenance,Purchase Screwfix Direct
30/09/2016,Children Adult & Health,Gro Hm Passport Office,18.50,Supplies and Services,Purchase Gro Hm Passport Office
30/09/2016,Children Adult & Health,"Amazon Svcs Europe,sar",9.75,Supplies and Services,"Purchase Amazon Svcs Europe,sar"
30/09/2016,Children Adult & Health,Amazon UK Marketplace,-25.98,Supplies and Services,Credit Voucher Amazon UK Marketplace
30/09/2016,Children Adult & Health,Eventbrite,-53.49,Supplies and Services,Credit Voucher Eventbrite
30/09/2016,Chief Executive & Corporate Resources,Wix.Com,111.75,Supplies and Services,Purchase Wix.Com
30/09/2016,Children Adult & Health,Brake Bros Ltd,-17.19,School dinners,Credit Voucher Brake Bros Ltd
30/09/2016,Children Adult & Health,Brake Bros Ltd,-11.46,School dinners,Credit Voucher Brake Bros Ltd
30/09/2016,Children Adult & Health,Brake Bros Ltd,-9.14,School dinners,Credit Voucher Brake Bros Ltd
30/09/2016,Children Adult & Health,Brake Bros Ltd,-7.46,School dinners,Credit Voucher Brake Bros Ltd
30/09/2016,Children Adult & Health,Arthur David (Food Wit,3.88,School dinners,Purchase Arthur David (Food Wit
30/09/2016,Children Adult & Health,John Sheppard Butchers,8.28,School dinners,Purchase John Sheppard Butchers
30/09/2016,Children Adult & Health,John Sheppard Butchers,8.45,School dinners,Purchase John Sheppard Butchers
30/09/2016,Children Adult & Health,Brake Bros Ltd,9.14,School dinners,Purchase Brake Bros Ltd
30/09/2016,Children Adult & Health,John Sheppard Butchers,9.22,School dinners,Purchase John Sheppard Butchers
30/09/2016,Children Adult & Health,John Sheppard Butchers,9.60,School dinners,Purchase John Sheppard Butchers
30/09/2016,Children Adult & Health,Arthur David (Food Wit,9.80,School dinners,Purchase Arthur David (Food Wit
30/09/2016,Children Adult & Health,Arthur David (Food Wit,10.60,School dinners,Purchase Arthur David (Food Wit
30/09/2016,Children Adult & Health,Arthur David (Food Wit,10.92,School dinners,Purchase Arthur David (Food Wit
30/09/2016,Children Adult & Health,John Sheppard Butchers,10.96,School dinners,Purchase John Sheppard Butchers
30/09/2016,Children Adult & Health,John Sheppard Butchers,11.02,School dinners,Purchase John Sheppard Butchers
30/09/2016,Children Adult & Health,John Sheppard Butchers,12.71,School dinners,Purchase John Sheppard Butchers
30/09/2016,Children Adult & Health,John Sheppard Butchers,12.75,School dinners,Purchase John Sheppard Butchers
30/09/2016,Children Adult & Health,Arthur David (Food Wit,13.90,School dinners,Purchase Arthur David (Food Wit
30/09/2016,Children Adult & Health,John Sheppard Butchers,14.21,School dinners,Purchase John Sheppard Butchers
30/09/2016,Children Adult & Health,Arthur David (Food Wit,14.31,School dinners,Purchase Arthur David (Food Wit
30/09/2016,Children Adult & Health,Arthur David (Food Wit,16.34,School dinners,Purchase Arthur David (Food Wit
30/09/2016,Children Adult & Health,Arthur David (Food Wit,16.53,School dinners,Purchase Arthur David (Food Wit
30/09/2016,Children Adult & Health,John Sheppard Butchers,16.65,School dinners,Purchase John Sheppard Butchers
30/09/2016,Children Adult & Health,John Sheppard Butchers,16.96,School dinners,Purchase John Sheppard Butchers
30/09/2016,Children Adult & Health,Arthur David (Food Wit,17.55,School dinners,Purchase Arthur David (Food Wit
30/09/2016,Children Adult & Health,John Sheppard Butchers,18.45,School dinners,Purchase John Sheppard Butchers
30/09/2016,Children Adult & Health,Brake Bros Ltd,19.52,School dinners,Purchase Brake Bros Ltd
30/09/2016,Children Adult & Health,Arthur David (Food Wit,19.64,School dinners,Purchase Arthur David (Food Wit
30/09/2016,Children Adult & Health,John Sheppard Butchers,19.94,School dinners,Purchase John Sheppard Butchers
30/09/2016,Children Adult & Health,Arthur David (Food Wit,21.02,School dinners,Purchase Arthur David (Food Wit
30/09/2016,Children Adult & Health,John Sheppard Butchers,27.13,School dinners,Purchase John Sheppard Butchers
30/09/2016,Children Adult & Health,Arthur David (Food Wit,27.77,School dinners,Purchase Arthur David (Food Wit
30/09/2016,Children Adult & Health,John Sheppard Butchers,28.47,School dinners,Purchase John Sheppard Butchers
30/09/2016,Children Adult & Health,Brake Bros Ltd,28.76,School dinners,Purchase Brake Bros Ltd
30/09/2016,Children Adult & Health,John Sheppard Butchers,29.11,School dinners,Purchase John Sheppard Butchers
30/09/2016,Children Adult & Health,John Sheppard Butchers,31.04,School dinners,Purchase John Sheppard Butchers
30/09/2016,Children Adult & Health,John Sheppard Butchers,32.34,School dinners,Purchase John Sheppard Butchers
30/09/2016,Children Adult & Health,John Sheppard Butchers,32.88,School dinners,Purchase John Sheppard Butchers
30/09/2016,Children Adult & Health,Arthur David (Food Wit,36.45,School dinners,Purchase Arthur David (Food Wit
30/09/2016,Children Adult & Health,Arthur David (Food Wit,38.49,School dinners,Purchase Arthur David (Food Wit
30/09/2016,Children Adult & Health,Arthur David (Food Wit,39.76,School dinners,Purchase Arthur David (Food Wit
30/09/2016,Children Adult & Health,Arthur David (Food Wit,39.95,School dinners,Purchase Arthur David (Food Wit
30/09/2016,Children Adult & Health,John Sheppard Butchers,41.33,School dinners,Purchase John Sheppard Butchers
30/09/2016,Children Adult & Health,John Sheppard Butchers,41.57,School dinners,Purchase John Sheppard Butchers
30/09/2016,Children Adult & Health,Arthur David (Food Wit,45.65,School dinners,Purchase Arthur David (Food Wit
30/09/2016,Children Adult & Health,Brake Bros Ltd,46.09,School dinners,Purchase Brake Bros Ltd
30/09/2016,Children Adult & Health,Arthur David (Food Wit,50.50,School dinners,Purchase Arthur David (Food Wit
30/09/2016,Children Adult & Health,Arthur David (Food Wit,52.28,School dinners,Purchase Arthur David (Food Wit
30/09/2016,Children Adult & Health,Arthur David (Food Wit,52.78,School dinners,Purchase Arthur David (Food Wit
30/09/2016,Children Adult & Health,John Sheppard Butchers,54.46,School dinners,Purchase John Sheppard Butchers
30/09/2016,Children Adult & Health,John Sheppard Butchers,54.50,School dinners,Purchase John Sheppard Butchers
30/09/2016,Children Adult & Health,Arthur David (Food Wit,54.65,School dinners,Purchase Arthur David (Food Wit
30/09/2016,Children Adult & Health,Arthur David (Food Wit,60.91,School dinners,Purchase Arthur David (Food Wit
30/09/2016,Children Adult & Health,Brake Bros Ltd,61.25,School dinners,Purchase Brake Bros Ltd
30/09/2016,Children Adult & Health,Arthur David (Food Wit,61.67,School dinners,Purchase Arthur David (Food Wit
30/09/2016,Children Adult & Health,John Sheppard Butchers,61.69,School dinners,Purchase John Sheppard Butchers
30/09/2016,Children Adult & Health,Arthur David (Food Wit,62.30,School dinners,Purchase Arthur David (Food Wit
30/09/2016,Children Adult & Health,John Sheppard Butchers,62.32,School dinners,Purchase John Sheppard Butchers
30/09/2016,Children Adult & Health,John Sheppard Butchers,62.40,School dinners,Purchase John Sheppard Butchers
30/09/2016,Children Adult & Health,Arthur David (Food Wit,64.31,School dinners,Purchase Arthur David (Food Wit
30/09/2016,Children Adult & Health,Arthur David (Food Wit,70.36,School dinners,Purchase Arthur David (Food Wit
30/09/2016,Children Adult & Health,John Sheppard Butchers,70.82,School dinners,Purchase John Sheppard Butchers
30/09/2016,Children Adult & Health,Arthur David (Food Wit,75.50,School dinners,Purchase Arthur David (Food Wit
30/09/2016,Children Adult & Health,Arthur David (Food Wit,77.88,School dinners,Purchase Arthur David (Food Wit
30/09/2016,Children Adult & Health,John Sheppard Butchers,79.23,School dinners,Purchase John Sheppard Butchers
30/09/2016,Children Adult & Health,John Sheppard Butchers,89.71,School dinners,Purchase John Sheppard Butchers
30/09/2016,Children Adult & Health,Brake Bros Ltd,89.83,School dinners,Purchase Brake Bros Ltd
30/09/2016,Children Adult & Health,John Sheppard Butchers,95.37,School dinners,Purchase John Sheppard Butchers
30/09/2016,Children Adult & Health,Brake Bros Ltd,120.11,School dinners,Purchase Brake Bros Ltd
30/09/2016,Children Adult & Health,Brake Bros Ltd,125.08,School dinners,Purchase Brake Bros Ltd
30/09/2016,Children Adult & Health,Arthur David (Food Wit,128.42,School dinners,Purchase Arthur David (Food Wit
30/09/2016,Children Adult & Health,John Sheppard Butchers,131.91,School dinners,Purchase John Sheppard Butchers
30/09/2016,Children Adult & Health,John Sheppard Butchers,133.39,School dinners,Purchase John Sheppard Butchers
30/09/2016,Children Adult & Health,Brake Bros Ltd,137.26,School dinners,Purchase Brake Bros Ltd
30/09/2016,Children Adult & Health,Brake Bros Ltd,153.91,School dinners,Purchase Brake Bros Ltd
30/09/2016,Children Adult & Health,Brake Bros Ltd,163.52,School dinners,Purchase Brake Bros Ltd
30/09/2016,Children Adult & Health,Brake Bros Ltd,232.97,School dinners,Purchase Brake Bros Ltd
30/09/2016,Children Adult & Health,Brake Bros Ltd,255.66,School dinners,Purchase Brake Bros Ltd
30/09/2016,Children Adult & Health,Brake Bros Ltd,291.87,School dinners,Purchase Brake Bros Ltd
30/09/2016,Children Adult & Health,Brake Bros Ltd,476.05,School dinners,Purchase Brake Bros Ltd
30/09/2016,Chief Executive & Corporate Resources,Supplies Team,1.64,Stationery,Purchase Supplies Team
30/09/2016,Chief Executive & Corporate Resources,Supplies Team,2.31,Stationery,Purchase Supplies Team
30/09/2016,Chief Executive & Corporate Resources,Supplies Team,6.61,Stationery,Purchase Supplies Team
30/09/2016,Chief Executive & Corporate Resources,Supplies Team,7.44,Stationery,Purchase Supplies Team
30/09/2016,Chief Executive & Corporate Resources,Supplies Team,9.24,Stationery,Purchase Supplies Team
30/09/2016,Chief Executive & Corporate Resources,Supplies Team,14.13,Stationery,Purchase Supplies Team
30/09/2016,Chief Executive & Corporate Resources,Supplies Team,14.37,Stationery,Purchase Supplies Team
30/09/2016,Chief Executive & Corporate Resources,Supplies Team,14.83,Stationery,Purchase Supplies Team
30/09/2016,Chief Executive & Corporate Resources,Supplies Team,23.90,Stationery,Purchase Supplies Team
30/09/2016,Chief Executive & Corporate Resources,Supplies Team,37.64,Stationery,Purchase Supplies Team
30/09/2016,Children Adult & Health,Asda Home Shopping,85.36,Credit Card Charges,Purchase Asda Home Shopping
30/09/2016,Environment & Community Services,B & Q 1022,49.22,Supplies and Services,Purchase B & Q 1022
30/09/2016,Environment & Community Services,Lyreco UK Ltd,10.48,Supplies and Services,Purchase Lyreco UK Ltd
30/09/2016,Environment & Community Services,B & Q 1280,19.77,Street Care - Buildings Maintenance,Purchase B & Q 1280
30/09/2016,Chief Executive & Corporate Resources,Amazon UK Marketplace,27.20,Supplies and Services,Purchase Amazon UK Marketplace
30/09/2016,Children Adult & Health,Paypal,42.50,Credit Card Charges,Purchase Paypal
30/09/2016,Children Adult & Health,The-Warehouse-Onli,38.34,Supplies and Services,Purchase The-Warehouse-Onli
30/09/2016,Children Adult & Health,Amazon UK Marketplace,1.68,Supplies and Services,Purchase Amazon UK Marketplace
30/09/2016,Children Adult & Health,Wash Vac Centre Ltd,7.99,Supplies and Services,Purchase Wash Vac Centre Ltd
30/09/2016,Chief Executive & Corporate Resources,Facebk 83fzrasvh2,90.15,Supplies and Services,Purchase Facebk 83fzrasvh2
30/09/2016,Chief Executive & Corporate Resources,Facebk Jwgth9e952,221.35,Supplies and Services,Purchase Facebk Jwgth9e952
30/09/2016,Chief Executive & Corporate Resources,Aztec Hotel & Spa,897.00,Supplies and Services,Purchase Aztec Hotel & Spa
30/09/2016,Environment & Community Services,Vodafone Ltd,32.00,Credit Card Charges,Purchase Vodafone Ltd
30/09/2016,Children Adult & Health,Tesco Stores 5652,9.10,Supplies and Services,Purchase Tesco Stores 5652
30/09/2016,Children Adult & Health,Post Office Counter,10.00,Supplies and Services,Purchase Post Office Counter
30/09/2016,Children Adult & Health,Tesco Stores 4618,10.00,Supplies and Services,Purchase Tesco Stores 4618
30/09/2016,Children Adult & Health,P V Turner Fruit & Veg,11.03,Supplies and Services,Purchase P V Turner Fruit & Veg
30/09/2016,Children Adult & Health,Paulas Cafe,15.87,Supplies and Services,Purchase Paulas Cafe
30/09/2016,Children Adult & Health,High Street Off Li 14386,24.30,Supplies and Services,Purchase High Street Off Li 14386
30/09/2016,Children Adult & Health,Tesco Stores 5652,25.00,Supplies and Services,Purchase Tesco Stores 5652
30/09/2016,Children Adult & Health,Sainsburys S/mkt,31.65,Supplies and Services,Purchase Sainsburys S/Mkt
30/09/2016,Children Adult & Health,Hobby Craft Ltd,70.65,Credit Card Charges,Purchase Hobby Craft Ltd
30/09/2016,Environment & Community Services,Best One,8.46,Street Care - Buildings Maintenance,Purchase Best One
30/09/2016,Environment & Community Services,Georges Conv Store 10,9.46,Street Care - Buildings Maintenance,Purchase Georges Conv Store 10
30/09/2016,Children Adult & Health,Travelodge Website,212.00,Supplies and Services,Purchase Travelodge Website
01/10/2016,Children Adult & Health,Brake Bros Ltd,-47.33,School dinners,Credit Voucher Brake Bros Ltd
01/10/2016,Children Adult & Health,Brake Bros Ltd,-43.14,School dinners,Credit Voucher Brake Bros Ltd
01/10/2016,Children Adult & Health,Brake Bros Ltd,-43.14,School dinners,Credit Voucher Brake Bros Ltd
01/10/2016,Children Adult & Health,Brake Bros Ltd,-43.14,School dinners,Credit Voucher Brake Bros Ltd
01/10/2016,Children Adult & Health,Brake Bros Ltd,-30.04,School dinners,Credit Voucher Brake Bros Ltd
01/10/2016,Children Adult & Health,Brake Bros Ltd,-28.76,School dinners,Credit Voucher Brake Bros Ltd
01/10/2016,Children Adult & Health,Brake Bros Ltd,-27.92,School dinners,Credit Voucher Brake Bros Ltd
01/10/2016,Children Adult & Health,Brake Bros Ltd,-19.10,School dinners,Credit Voucher Brake Bros Ltd
01/10/2016,Children Adult & Health,Brake Bros Ltd,-17.19,School dinners,Credit Voucher Brake Bros Ltd
01/10/2016,Children Adult & Health,Brake Bros Ltd,-14.38,School dinners,Credit Voucher Brake Bros Ltd
01/10/2016,Children Adult & Health,Brake Bros Ltd,-10.14,School dinners,Credit Voucher Brake Bros Ltd
01/10/2016,Children Adult & Health,Brake Bros Ltd,-7.45,School dinners,Credit Voucher Brake Bros Ltd
01/10/2016,Children Adult & Health,Brake Bros Ltd,-5.14,School dinners,Credit Voucher Brake Bros Ltd
01/10/2016,Children Adult & Health,Brake Bros Ltd,-1.91,School dinners,Credit Voucher Brake Bros Ltd
01/10/2016,Environment & Community Services,Amazon UK Marketplace,16.70,Credit Card Charges,Purchase Amazon UK Marketplace
01/10/2016,Environment & Community Services,Amazon UK Retail,28.29,Supplies and Services,Purchase Amazon UK Retail
01/10/2016,Chief Executive & Corporate Resources,Microsoft,96.72,Supplies and Services,Purchase Microsoft
01/10/2016,Children Adult & Health,Carphone Warehouse,79.99,Supplies and Services,Purchase Carphone Warehouse
01/10/2016,Environment & Community Services,Amazon UK Retail,314.97,Credit Card Charges,Purchase Amazon UK Retail
01/10/2016,Children Adult & Health,Norfolk Guest House,100.00,Supplies and Services,Purchase Norfolk Guest House
02/10/2016,Children Adult & Health,Central Convenience Stor,17.00,Supplies and Services,Purchase Central Convenience Stor
03/10/2016,Children Adult & Health,K N Office Supplies Lt,268.06,Supplies and Services,Purchase K N Office Supplies Lt
03/10/2016,Children Adult & Health,Arthur David (Food Wit,5.60,School dinners,Purchase Arthur David (Food Wit
03/10/2016,Children Adult & Health,Arthur David (Food Wit,5.63,School dinners,Purchase Arthur David (Food Wit
03/10/2016,Children Adult & Health,Arthur David (Food Wit,6.08,School dinners,Purchase Arthur David (Food Wit
03/10/2016,Children Adult & Health,Brake Bros Ltd,7.45,School dinners,Purchase Brake Bros Ltd
03/10/2016,Children Adult & Health,Arthur David (Food Wit,11.61,School dinners,Purchase Arthur David (Food Wit
03/10/2016,Children Adult & Health,John Sheppard Butchers,12.54,School dinners,Purchase John Sheppard Butchers
03/10/2016,Children Adult & Health,Charles Saunders Ltd,14.21,School dinners,Purchase Charles Saunders Ltd
03/10/2016,Children Adult & Health,Arthur David (Food Wit,15.00,School dinners,Purchase Arthur David (Food Wit
03/10/2016,Children Adult & Health,Arthur David (Food Wit,15.00,School dinners,Purchase Arthur David (Food Wit
03/10/2016,Children Adult & Health,Arthur David (Food Wit,15.11,School dinners,Purchase Arthur David (Food Wit
03/10/2016,Children Adult & Health,Arthur David (Food Wit,15.29,School dinners,Purchase Arthur David (Food Wit
03/10/2016,Children Adult & Health,Arthur David (Food Wit,15.39,School dinners,Purchase Arthur David (Food Wit
03/10/2016,Children Adult & Health,John Sheppard Butchers,15.80,School dinners,Purchase John Sheppard Butchers
03/10/2016,Children Adult & Health,Arthur David (Food Wit,16.38,School dinners,Purchase Arthur David (Food Wit
03/10/2016,Children Adult & Health,Arthur David (Food Wit,16.42,School dinners,Purchase Arthur David (Food Wit
03/10/2016,Children Adult & Health,Charles Saunders Ltd,16.98,School dinners,Purchase Charles Saunders Ltd
03/10/2016,Children Adult & Health,Arthur David (Food Wit,19.78,School dinners,Purchase Arthur David (Food Wit
03/10/2016,Children Adult & Health,Arthur David (Food Wit,20.58,School dinners,Purchase Arthur David (Food Wit
03/10/2016,Children Adult & Health,Arthur David (Food Wit,21.12,School dinners,Purchase Arthur David (Food Wit
03/10/2016,Children Adult & Health,Arthur David (Food Wit,25.29,School dinners,Purchase Arthur David (Food Wit
03/10/2016,Children Adult & Health,Brake Bros Ltd,26.96,School dinners,Purchase Brake Bros Ltd
03/10/2016,Children Adult & Health,Charles Saunders Ltd,29.09,School dinners,Purchase Charles Saunders Ltd
03/10/2016,Children Adult & Health,John Sheppard Butchers,29.57,School dinners,Purchase John Sheppard Butchers
03/10/2016,Children Adult & Health,Arthur David (Food Wit,30.28,School dinners,Purchase Arthur David (Food Wit
03/10/2016,Children Adult & Health,Arthur David (Food Wit,30.66,School dinners,Purchase Arthur David (Food Wit
03/10/2016,Children Adult & Health,John Sheppard Butchers,30.72,School dinners,Purchase John Sheppard Butchers
03/10/2016,Children Adult & Health,Arthur David (Food Wit,32.15,School dinners,Purchase Arthur David (Food Wit
03/10/2016,Children Adult & Health,Arthur David (Food Wit,32.52,School dinners,Purchase Arthur David (Food Wit
03/10/2016,Children Adult & Health,Charles Saunders Ltd,34.38,School dinners,Purchase Charles Saunders Ltd
03/10/2016,Children Adult & Health,Arthur David (Food Wit,34.68,School dinners,Purchase Arthur David (Food Wit
03/10/2016,Children Adult & Health,Charles Saunders Ltd,34.79,School dinners,Purchase Charles Saunders Ltd
03/10/2016,Children Adult & Health,Charles Saunders Ltd,38.19,School dinners,Purchase Charles Saunders Ltd
03/10/2016,Children Adult & Health,Arthur David (Food Wit,39.41,School dinners,Purchase Arthur David (Food Wit
03/10/2016,Children Adult & Health,Arthur David (Food Wit,39.74,School dinners,Purchase Arthur David (Food Wit
03/10/2016,Children Adult & Health,Arthur David (Food Wit,39.79,School dinners,Purchase Arthur David (Food Wit
03/10/2016,Children Adult & Health,Brake Bros Ltd,40.21,School dinners,Purchase Brake Bros Ltd
03/10/2016,Children Adult & Health,Arthur David (Food Wit,41.62,School dinners,Purchase Arthur David (Food Wit
03/10/2016,Children Adult & Health,Arthur David (Food Wit,42.35,School dinners,Purchase Arthur David (Food Wit
03/10/2016,Children Adult & Health,Charles Saunders Ltd,43.52,School dinners,Purchase Charles Saunders Ltd
03/10/2016,Children Adult & Health,Arthur David (Food Wit,44.15,School dinners,Purchase Arthur David (Food Wit
03/10/2016,Children Adult & Health,Arthur David (Food Wit,44.99,School dinners,Purchase Arthur David (Food Wit
03/10/2016,Children Adult & Health,Arthur David (Food Wit,45.03,School dinners,Purchase Arthur David (Food Wit
03/10/2016,Children Adult & Health,Arthur David (Food Wit,45.99,School dinners,Purchase Arthur David (Food Wit
03/10/2016,Children Adult & Health,Arthur David (Food Wit,47.97,School dinners,Purchase Arthur David (Food Wit
03/10/2016,Children Adult & Health,Arthur David (Food Wit,48.22,School dinners,Purchase Arthur David (Food Wit
03/10/2016,Children Adult & Health,Arthur David (Food Wit,49.91,School dinners,Purchase Arthur David (Food Wit
03/10/2016,Children Adult & Health,Arthur David (Food Wit,51.12,School dinners,Purchase Arthur David (Food Wit
03/10/2016,Children Adult & Health,Arthur David (Food Wit,51.89,School dinners,Purchase Arthur David (Food Wit
03/10/2016,Children Adult & Health,Arthur David (Food Wit,53.56,School dinners,Purchase Arthur David (Food Wit
03/10/2016,Children Adult & Health,Arthur David (Food Wit,54.23,School dinners,Purchase Arthur David (Food Wit
03/10/2016,Children Adult & Health,Arthur David (Food Wit,55.58,School dinners,Purchase Arthur David (Food Wit
03/10/2016,Children Adult & Health,Arthur David (Food Wit,56.01,School dinners,Purchase Arthur David (Food Wit
03/10/2016,Children Adult & Health,Brake Bros Ltd,56.11,School dinners,Purchase Brake Bros Ltd
03/10/2016,Children Adult & Health,Arthur David (Food Wit,56.59,School dinners,Purchase Arthur David (Food Wit
03/10/2016,Children Adult & Health,Arthur David (Food Wit,56.78,School dinners,Purchase Arthur David (Food Wit
03/10/2016,Children Adult & Health,Charles Saunders Ltd,57.24,School dinners,Purchase Charles Saunders Ltd
03/10/2016,Children Adult & Health,Arthur David (Food Wit,57.66,School dinners,Purchase Arthur David (Food Wit
03/10/2016,Children Adult & Health,Arthur David (Food Wit,60.02,School dinners,Purchase Arthur David (Food Wit
03/10/2016,Children Adult & Health,Arthur David (Food Wit,60.53,School dinners,Purchase Arthur David (Food Wit
03/10/2016,Children Adult & Health,Arthur David (Food Wit,61.77,School dinners,Purchase Arthur David (Food Wit
03/10/2016,Children Adult & Health,Arthur David (Food Wit,62.47,School dinners,Purchase Arthur David (Food Wit
03/10/2016,Children Adult & Health,Arthur David (Food Wit,62.63,School dinners,Purchase Arthur David (Food Wit
03/10/2016,Children Adult & Health,Arthur David (Food Wit,63.79,School dinners,Purchase Arthur David (Food Wit
03/10/2016,Children Adult & Health,Brake Bros Ltd,64.50,School dinners,Purchase Brake Bros Ltd
03/10/2016,Children Adult & Health,Charles Saunders Ltd,64.89,School dinners,Purchase Charles Saunders Ltd
03/10/2016,Children Adult & Health,Charles Saunders Ltd,65.07,School dinners,Purchase Charles Saunders Ltd
03/10/2016,Children Adult & Health,Charles Saunders Ltd,65.26,School dinners,Purchase Charles Saunders Ltd
03/10/2016,Children Adult & Health,Brake Bros Ltd,65.57,School dinners,Purchase Brake Bros Ltd
03/10/2016,Children Adult & Health,Charles Saunders Ltd,66.67,School dinners,Purchase Charles Saunders Ltd
03/10/2016,Children Adult & Health,Arthur David (Food Wit,67.92,School dinners,Purchase Arthur David (Food Wit
03/10/2016,Children Adult & Health,Arthur David (Food Wit,68.53,School dinners,Purchase Arthur David (Food Wit
03/10/2016,Children Adult & Health,Arthur David (Food Wit,70.44,School dinners,Purchase Arthur David (Food Wit
03/10/2016,Children Adult & Health,Arthur David (Food Wit,70.68,School dinners,Purchase Arthur David (Food Wit
03/10/2016,Children Adult & Health,Arthur David (Food Wit,70.73,School dinners,Purchase Arthur David (Food Wit
03/10/2016,Children Adult & Health,Arthur David (Food Wit,71.32,School dinners,Purchase Arthur David (Food Wit
03/10/2016,Children Adult & Health,Charles Saunders Ltd,71.74,School dinners,Purchase Charles Saunders Ltd
03/10/2016,Children Adult & Health,Charles Saunders Ltd,74.36,School dinners,Purchase Charles Saunders Ltd
03/10/2016,Children Adult & Health,Arthur David (Food Wit,75.64,School dinners,Purchase Arthur David (Food Wit
03/10/2016,Children Adult & Health,Charles Saunders Ltd,76.12,School dinners,Purchase Charles Saunders Ltd
03/10/2016,Children Adult & Health,Charles Saunders Ltd,77.05,School dinners,Purchase Charles Saunders Ltd
03/10/2016,Children Adult & Health,Arthur David (Food Wit,78.59,School dinners,Purchase Arthur David (Food Wit
03/10/2016,Children Adult & Health,Arthur David (Food Wit,79.00,School dinners,Purchase Arthur David (Food Wit
03/10/2016,Children Adult & Health,Brake Bros Ltd,80.49,School dinners,Purchase Brake Bros Ltd
03/10/2016,Children Adult & Health,Charles Saunders Ltd,82.56,School dinners,Purchase Charles Saunders Ltd
03/10/2016,Children Adult & Health,Arthur David (Food Wit,83.98,School dinners,Purchase Arthur David (Food Wit
03/10/2016,Children Adult & Health,Arthur David (Food Wit,84.01,School dinners,Purchase Arthur David (Food Wit
03/10/2016,Children Adult & Health,Charles Saunders Ltd,84.77,School dinners,Purchase Charles Saunders Ltd
03/10/2016,Children Adult & Health,Charles Saunders Ltd,84.98,School dinners,Purchase Charles Saunders Ltd
03/10/2016,Children Adult & Health,Charles Saunders Ltd,85.10,School dinners,Purchase Charles Saunders Ltd
03/10/2016,Children Adult & Health,Charles Saunders Ltd,85.83,School dinners,Purchase Charles Saunders Ltd
03/10/2016,Children Adult & Health,Charles Saunders Ltd,89.75,School dinners,Purchase Charles Saunders Ltd
03/10/2016,Children Adult & Health,Charles Saunders Ltd,90.40,School dinners,Purchase Charles Saunders Ltd
03/10/2016,Children Adult & Health,Charles Saunders Ltd,90.63,School dinners,Purchase Charles Saunders Ltd
03/10/2016,Children Adult & Health,Charles Saunders Ltd,90.65,School dinners,Purchase Charles Saunders Ltd
03/10/2016,Children Adult & Health,Arthur David (Food Wit,92.29,School dinners,Purchase Arthur David (Food Wit
03/10/2016,Children Adult & Health,Brake Bros Ltd,93.15,School dinners,Purchase Brake Bros Ltd
03/10/2016,Children Adult & Health,Arthur David (Food Wit,93.97,School dinners,Purchase Arthur David (Food Wit
03/10/2016,Children Adult & Health,Charles Saunders Ltd,94.82,School dinners,Purchase Charles Saunders Ltd
03/10/2016,Children Adult & Health,Arthur David (Food Wit,95.73,School dinners,Purchase Arthur David (Food Wit
03/10/2016,Children Adult & Health,Charles Saunders Ltd,96.08,School dinners,Purchase Charles Saunders Ltd
03/10/2016,Children Adult & Health,Charles Saunders Ltd,97.97,School dinners,Purchase Charles Saunders Ltd
03/10/2016,Children Adult & Health,Charles Saunders Ltd,99.07,School dinners,Purchase Charles Saunders Ltd
03/10/2016,Children Adult & Health,Charles Saunders Ltd,101.98,School dinners,Purchase Charles Saunders Ltd
03/10/2016,Children Adult & Health,Charles Saunders Ltd,102.49,School dinners,Purchase Charles Saunders Ltd
03/10/2016,Children Adult & Health,Arthur David (Food Wit,103.49,School dinners,Purchase Arthur David (Food Wit
03/10/2016,Children Adult & Health,Charles Saunders Ltd,103.97,School dinners,Purchase Charles Saunders Ltd
03/10/2016,Children Adult & Health,Charles Saunders Ltd,105.61,School dinners,Purchase Charles Saunders Ltd
03/10/2016,Children Adult & Health,Brake Bros Ltd,106.03,School dinners,Purchase Brake Bros Ltd
03/10/2016,Children Adult & Health,Charles Saunders Ltd,108.51,School dinners,Purchase Charles Saunders Ltd
03/10/2016,Children Adult & Health,Charles Saunders Ltd,109.80,School dinners,Purchase Charles Saunders Ltd
03/10/2016,Children Adult & Health,Charles Saunders Ltd,110.84,School dinners,Purchase Charles Saunders Ltd
03/10/2016,Children Adult & Health,Charles Saunders Ltd,112.85,School dinners,Purchase Charles Saunders Ltd
03/10/2016,Children Adult & Health,Charles Saunders Ltd,114.69,School dinners,Purchase Charles Saunders Ltd
03/10/2016,Children Adult & Health,Charles Saunders Ltd,115.10,School dinners,Purchase Charles Saunders Ltd
03/10/2016,Children Adult & Health,Brake Bros Ltd,114.65,School dinners,Purchase Brake Bros Ltd
03/10/2016,Children Adult & Health,Charles Saunders Ltd,117.27,School dinners,Purchase Charles Saunders Ltd
03/10/2016,Children Adult & Health,Charles Saunders Ltd,123.52,School dinners,Purchase Charles Saunders Ltd
03/10/2016,Children Adult & Health,Brake Bros Ltd,123.69,School dinners,Purchase Brake Bros Ltd
03/10/2016,Children Adult & Health,Arthur David (Food Wit,124.35,School dinners,Purchase Arthur David (Food Wit
03/10/2016,Children Adult & Health,Arthur David (Food Wit,124.55,School dinners,Purchase Arthur David (Food Wit
03/10/2016,Children Adult & Health,Charles Saunders Ltd,124.87,School dinners,Purchase Charles Saunders Ltd
03/10/2016,Children Adult & Health,Brake Bros Ltd,124.43,School dinners,Purchase Brake Bros Ltd
03/10/2016,Children Adult & Health,Brake Bros Ltd,125.50,School dinners,Purchase Brake Bros Ltd
03/10/2016,Children Adult & Health,Charles Saunders Ltd,128.85,School dinners,Purchase Charles Saunders Ltd
03/10/2016,Children Adult & Health,Brake Bros Ltd,129.48,School dinners,Purchase Brake Bros Ltd
03/10/2016,Children Adult & Health,Charles Saunders Ltd,130.13,School dinners,Purchase Charles Saunders Ltd
03/10/2016,Children Adult & Health,Charles Saunders Ltd,130.68,School dinners,Purchase Charles Saunders Ltd
03/10/2016,Children Adult & Health,Charles Saunders Ltd,131.91,School dinners,Purchase Charles Saunders Ltd
03/10/2016,Children Adult & Health,Brake Bros Ltd,129.13,School dinners,Purchase Brake Bros Ltd
03/10/2016,Children Adult & Health,Brake Bros Ltd,130.15,School dinners,Purchase Brake Bros Ltd
03/10/2016,Children Adult & Health,Charles Saunders Ltd,133.52,School dinners,Purchase Charles Saunders Ltd
03/10/2016,Children Adult & Health,Arthur David (Food Wit,135.35,School dinners,Purchase Arthur David (Food Wit
03/10/2016,Children Adult & Health,Charles Saunders Ltd,136.49,School dinners,Purchase Charles Saunders Ltd
03/10/2016,Children Adult & Health,Charles Saunders Ltd,142.94,School dinners,Purchase Charles Saunders Ltd
03/10/2016,Children Adult & Health,Charles Saunders Ltd,144.06,School dinners,Purchase Charles Saunders Ltd
03/10/2016,Children Adult & Health,Charles Saunders Ltd,144.89,School dinners,Purchase Charles Saunders Ltd
03/10/2016,Children Adult & Health,Arthur David (Food Wit,146.34,School dinners,Purchase Arthur David (Food Wit
03/10/2016,Children Adult & Health,Charles Saunders Ltd,149.20,School dinners,Purchase Charles Saunders Ltd
03/10/2016,Children Adult & Health,Charles Saunders Ltd,149.95,School dinners,Purchase Charles Saunders Ltd
03/10/2016,Children Adult & Health,Charles Saunders Ltd,150.82,School dinners,Purchase Charles Saunders Ltd
03/10/2016,Children Adult & Health,Charles Saunders Ltd,151.47,School dinners,Purchase Charles Saunders Ltd
03/10/2016,Children Adult & Health,Charles Saunders Ltd,151.66,School dinners,Purchase Charles Saunders Ltd
03/10/2016,Children Adult & Health,Charles Saunders Ltd,153.48,School dinners,Purchase Charles Saunders Ltd
03/10/2016,Children Adult & Health,Charles Saunders Ltd,156.41,School dinners,Purchase Charles Saunders Ltd
03/10/2016,Children Adult & Health,Charles Saunders Ltd,160.21,School dinners,Purchase Charles Saunders Ltd
03/10/2016,Children Adult & Health,Brake Bros Ltd,160.12,School dinners,Purchase Brake Bros Ltd
03/10/2016,Children Adult & Health,Charles Saunders Ltd,164.61,School dinners,Purchase Charles Saunders Ltd
03/10/2016,Children Adult & Health,Charles Saunders Ltd,170.15,School dinners,Purchase Charles Saunders Ltd
03/10/2016,Children Adult & Health,Charles Saunders Ltd,170.51,School dinners,Purchase Charles Saunders Ltd
03/10/2016,Children Adult & Health,Charles Saunders Ltd,173.07,School dinners,Purchase Charles Saunders Ltd
03/10/2016,Children Adult & Health,Charles Saunders Ltd,173.37,School dinners,Purchase Charles Saunders Ltd
03/10/2016,Children Adult & Health,Brake Bros Ltd,177.75,School dinners,Purchase Brake Bros Ltd
03/10/2016,Children Adult & Health,Arthur David (Food Wit,179.84,School dinners,Purchase Arthur David (Food Wit
03/10/2016,Children Adult & Health,Charles Saunders Ltd,202.53,School dinners,Purchase Charles Saunders Ltd
03/10/2016,Children Adult & Health,Charles Saunders Ltd,203.56,School dinners,Purchase Charles Saunders Ltd
03/10/2016,Children Adult & Health,Charles Saunders Ltd,205.14,School dinners,Purchase Charles Saunders Ltd
03/10/2016,Children Adult & Health,Charles Saunders Ltd,216.79,School dinners,Purchase Charles Saunders Ltd
03/10/2016,Children Adult & Health,Charles Saunders Ltd,217.74,School dinners,Purchase Charles Saunders Ltd
03/10/2016,Children Adult & Health,Brake Bros Ltd,277.11,School dinners,Purchase Brake Bros Ltd
03/10/2016,Children Adult & Health,Charles Saunders Ltd,294.59,School dinners,Purchase Charles Saunders Ltd
03/10/2016,Children Adult & Health,Charles Saunders Ltd,296.98,School dinners,Purchase Charles Saunders Ltd
03/10/2016,Children Adult & Health,Charles Saunders Ltd,325.76,School dinners,Purchase Charles Saunders Ltd
03/10/2016,Children Adult & Health,Charles Saunders Ltd,382.81,School dinners,Purchase Charles Saunders Ltd
03/10/2016,Children Adult & Health,Charles Saunders Ltd,387.83,School dinners,Purchase Charles Saunders Ltd
03/10/2016,Children Adult & Health,Brake Bros Ltd,384.25,School dinners,Purchase Brake Bros Ltd
03/10/2016,Children Adult & Health,Charles Saunders Ltd,427.99,School dinners,Purchase Charles Saunders Ltd
03/10/2016,Children Adult & Health,Charles Saunders Ltd,447.75,School dinners,Purchase Charles Saunders Ltd
03/10/2016,Children Adult & Health,Charles Saunders Ltd,466.77,School dinners,Purchase Charles Saunders Ltd
03/10/2016,Children Adult & Health,Charles Saunders Ltd,494.82,School dinners,Purchase Charles Saunders Ltd
03/10/2016,Children Adult & Health,Charles Saunders Ltd,1088.86,School dinners,Purchase Charles Saunders Ltd
03/10/2016,Chief Executive & Corporate Resources,Supplies Team,1.48,Stationery,Purchase Supplies Team
03/10/2016,Chief Executive & Corporate Resources,Supplies Team,9.44,Stationery,Purchase Supplies Team
03/10/2016,Chief Executive & Corporate Resources,Supplies Team,9.60,Stationery,Purchase Supplies Team
03/10/2016,Chief Executive & Corporate Resources,Supplies Team,13.52,Stationery,Purchase Supplies Team
03/10/2016,Chief Executive & Corporate Resources,Supplies Team,21.78,Stationery,Purchase Supplies Team
03/10/2016,Chief Executive & Corporate Resources,Supplies Team,82.17,Stationery,Purchase Supplies Team
03/10/2016,Chief Executive & Corporate Resources,Supplies Team,101.46,Stationery,Purchase Supplies Team
03/10/2016,Chief Executive & Corporate Resources,Supplies Team,182.64,Stationery,Purchase Supplies Team
03/10/2016,Chief Executive & Corporate Resources,Supplies Team,240.12,Stationery,Purchase Supplies Team
03/10/2016,Children Adult & Health,Asda Home Shopping,5.00,Credit Card Charges,Purchase Asda Home Shopping
03/10/2016,Children Adult & Health,Amazon UK Marketplace,438.90,Credit Card Charges,Purchase Amazon UK Marketplace
03/10/2016,Children Adult & Health,Subway,8.30,Supplies and Services,Purchase Subway
03/10/2016,Children Adult & Health,Dennis Williams Ltd,77.00,Supplies and Services,Purchase Dennis Williams Ltd
03/10/2016,Environment & Community Services,Irm Bristol Ltd,8.34,Supplies and Services,Purchase Irm Bristol Ltd
03/10/2016,Environment & Community Services,Tp Yate,18.86,Supplies and Services,Purchase Tp Yate
03/10/2016,Environment & Community Services,B & Q 1022,22.70,Supplies and Services,Purchase B & Q 1022
03/10/2016,Children Adult & Health,Trainline.Com Ltd,62.50,Supplies and Services,Purchase Trainline.Com Ltd
03/10/2016,Children Adult & Health,Tesco Stores 6420,51.36,Credit Card Charges,Purchase Tesco Stores 6420
03/10/2016,Children Adult & Health,Premier Inn44537355,67.99,Credit Card Charges,Purchase Premier Inn44537355
03/10/2016,Children Adult & Health,O2,143.22,Supplies and Services,Purchase O2
03/10/2016,Children Adult & Health,O2,500.00,Supplies and Services,Purchase O2
03/10/2016,Environment & Community Services,Bristol City Council,3.20,Credit Card Charges,Purchase Bristol City Council
03/10/2016,Children Adult & Health,Booker Limited Bristol,45.42,Credit Card Charges,Purchase Booker Limited Bristol
03/10/2016,Children Adult & Health,Amazon UK Marketplace,48.77,Supplies and Services,Purchase Amazon UK Marketplace
03/10/2016,Environment & Community Services,Premier Inn44528255,144.00,Supplies and Services,Purchase Premier Inn44528255
03/10/2016,Children Adult & Health,Tesco Stores 6420,51.58,Supplies and Services,Purchase Tesco Stores 6420
03/10/2016,Children Adult & Health,Small World,47.99,Credit Card Charges,Purchase Small World
03/10/2016,Environment & Community Services,Asda Home Shopping,-1.50,Credit Card Charges,Credit Voucher Asda Home Shopping
03/10/2016,Environment & Community Services,Tesco Stores 5652,45.32,Credit Card Charges,Purchase Tesco Stores 5652
03/10/2016,Environment & Community Services,Asda Home Shopping,49.01,Credit Card Charges,Purchase Asda Home Shopping
03/10/2016,Environment & Community Services,Inquit,109.20,Credit Card Charges,Purchase Inquit
03/10/2016,Environment & Community Services,B & Q 1022,64.84,Street Care - Buildings Maintenance,Purchase B & Q 1022
03/10/2016,Environment & Community Services,B & Q 1081,73.72,Street Care - Buildings Maintenance,Purchase B & Q 1081
03/10/2016,Children Adult & Health,Hmcourts-Service.G,120.00,Supplies and Services,Purchase Hmcourts-Service.G
03/10/2016,Children Adult & Health,Holiday Inn Express,62.99,Supplies and Services,Purchase Holiday Inn Express
03/10/2016,Children Adult & Health,Premier Inn44018220,103.00,Supplies and Services,Purchase Premier Inn44018220
03/10/2016,Children Adult & Health,Tesco Stores 6420,11.29,Credit Card Charges,Purchase Tesco Stores 6420
04/10/2016,Environment & Community Services,Screwfix Direct,44.55,Street Care - Buildings Maintenance,Purchase Screwfix Direct
04/10/2016,Children Adult & Health,Arthur David (Food Wit,-7.00,School dinners,Credit Voucher Arthur David (Food Wit
04/10/2016,Children Adult & Health,Arthur David (Food Wit,-0.85,School dinners,Credit Voucher Arthur David (Food Wit
04/10/2016,Children Adult & Health,Arthur David (Food Wit,1.50,School dinners,Purchase Arthur David (Food Wit
04/10/2016,Children Adult & Health,John Sheppard Butchers,10.37,School dinners,Purchase John Sheppard Butchers
04/10/2016,Children Adult & Health,John Sheppard Butchers,10.91,School dinners,Purchase John Sheppard Butchers
04/10/2016,Children Adult & Health,John Sheppard Butchers,11.70,School dinners,Purchase John Sheppard Butchers
04/10/2016,Children Adult & Health,John Sheppard Butchers,12.51,School dinners,Purchase John Sheppard Butchers
04/10/2016,Children Adult & Health,John Sheppard Butchers,15.64,School dinners,Purchase John Sheppard Butchers
04/10/2016,Children Adult & Health,John Sheppard Butchers,16.00,School dinners,Purchase John Sheppard Butchers
04/10/2016,Children Adult & Health,John Sheppard Butchers,16.77,School dinners,Purchase John Sheppard Butchers
04/10/2016,Children Adult & Health,John Sheppard Butchers,24.70,School dinners,Purchase John Sheppard Butchers
04/10/2016,Children Adult & Health,Brake Bros Ltd,26.56,School dinners,Purchase Brake Bros Ltd
04/10/2016,Children Adult & Health,Arthur David (Food Wit,31.27,School dinners,Purchase Arthur David (Food Wit
04/10/2016,Children Adult & Health,John Sheppard Butchers,37.83,School dinners,Purchase John Sheppard Butchers
04/10/2016,Children Adult & Health,Arthur David (Food Wit,40.00,School dinners,Purchase Arthur David (Food Wit
04/10/2016,Children Adult & Health,John Sheppard Butchers,43.52,School dinners,Purchase John Sheppard Butchers
04/10/2016,Children Adult & Health,John Sheppard Butchers,52.02,School dinners,Purchase John Sheppard Butchers
04/10/2016,Children Adult & Health,Brake Bros Ltd,53.09,School dinners,Purchase Brake Bros Ltd
04/10/2016,Children Adult & Health,John Sheppard Butchers,54.54,School dinners,Purchase John Sheppard Butchers
04/10/2016,Children Adult & Health,John Sheppard Butchers,57.40,School dinners,Purchase John Sheppard Butchers
04/10/2016,Children Adult & Health,Brake Bros Ltd,66.72,School dinners,Purchase Brake Bros Ltd
04/10/2016,Children Adult & Health,Brake Bros Ltd,74.30,School dinners,Purchase Brake Bros Ltd
04/10/2016,Children Adult & Health,John Sheppard Butchers,79.00,School dinners,Purchase John Sheppard Butchers
04/10/2016,Children Adult & Health,Brake Bros Ltd,86.24,School dinners,Purchase Brake Bros Ltd
04/10/2016,Children Adult & Health,Arthur David (Food Wit,87.45,School dinners,Purchase Arthur David (Food Wit
04/10/2016,Children Adult & Health,Brake Bros Ltd,84.17,School dinners,Purchase Brake Bros Ltd
04/10/2016,Children Adult & Health,John Sheppard Butchers,87.80,School dinners,Purchase John Sheppard Butchers
04/10/2016,Children Adult & Health,Brake Bros Ltd,95.00,School dinners,Purchase Brake Bros Ltd
04/10/2016,Children Adult & Health,Brake Bros Ltd,94.39,School dinners,Purchase Brake Bros Ltd
04/10/2016,Children Adult & Health,Brake Bros Ltd,97.47,School dinners,Purchase Brake Bros Ltd
04/10/2016,Children Adult & Health,John Sheppard Butchers,107.46,School dinners,Purchase John Sheppard Butchers
04/10/2016,Children Adult & Health,Brake Bros Ltd,107.91,School dinners,Purchase Brake Bros Ltd
04/10/2016,Children Adult & Health,Brake Bros Ltd,109.79,School dinners,Purchase Brake Bros Ltd
04/10/2016,Children Adult & Health,Brake Bros Ltd,113.81,School dinners,Purchase Brake Bros Ltd
04/10/2016,Children Adult & Health,Brake Bros Ltd,116.51,School dinners,Purchase Brake Bros Ltd
04/10/2016,Children Adult & Health,John Sheppard Butchers,119.44,School dinners,Purchase John Sheppard Butchers
04/10/2016,Children Adult & Health,Brake Bros Ltd,123.98,School dinners,Purchase Brake Bros Ltd
04/10/2016,Children Adult & Health,Brake Bros Ltd,141.43,School dinners,Purchase Brake Bros Ltd
04/10/2016,Children Adult & Health,Brake Bros Ltd,143.74,School dinners,Purchase Brake Bros Ltd
04/10/2016,Children Adult & Health,John Sheppard Butchers,144.00,School dinners,Purchase John Sheppard Butchers
04/10/2016,Children Adult & Health,Brake Bros Ltd,143.98,School dinners,Purchase Brake Bros Ltd
04/10/2016,Children Adult & Health,Brake Bros Ltd,146.37,School dinners,Purchase Brake Bros Ltd
04/10/2016,Children Adult & Health,John Sheppard Butchers,150.83,School dinners,Purchase John Sheppard Butchers
04/10/2016,Children Adult & Health,Brake Bros Ltd,153.59,School dinners,Purchase Brake Bros Ltd
04/10/2016,Children Adult & Health,John Sheppard Butchers,160.26,School dinners,Purchase John Sheppard Butchers
04/10/2016,Children Adult & Health,Brake Bros Ltd,165.30,School dinners,Purchase Brake Bros Ltd
04/10/2016,Children Adult & Health,Brake Bros Ltd,189.18,School dinners,Purchase Brake Bros Ltd
04/10/2016,Children Adult & Health,Brake Bros Ltd,210.12,School dinners,Purchase Brake Bros Ltd
04/10/2016,Children Adult & Health,Brake Bros Ltd,222.59,School dinners,Purchase Brake Bros Ltd
04/10/2016,Children Adult & Health,Amazon UK Marketplace,2.49,Supplies and Services,Purchase Amazon UK Marketplace
04/10/2016,Children Adult & Health,Gwr Websales Ecom,58.20,Supplies and Services,Purchase Gwr Websales Ecom
04/10/2016,Children Adult & Health,Jd Sports Plc,80.05,Supplies and Services,Purchase Jd Sports Plc
04/10/2016,Children Adult & Health,Nfopp,225.00,Prop.Serv. General Repairs,Purchase Nfopp
04/10/2016,Environment & Community Services,Tp Yate,63.29,Supplies and Services,Purchase Tp Yate
04/10/2016,Chief Executive & Corporate Resources,Gwr Websales Ecom,58.60,Credit Card Charges,Purchase Gwr Websales Ecom
04/10/2016,Children Adult & Health,Tesco Store 2136,11.49,Supplies and Services,Purchase Tesco Store 2136
04/10/2016,Children Adult & Health,Tesco Store 2136,11.51,Supplies and Services,Purchase Tesco Store 2136
04/10/2016,Children Adult & Health,Tesco Store 2136,25.50,Supplies and Services,Purchase Tesco Store 2136
04/10/2016,Children Adult & Health,Martin Mccoll,66.00,Supplies and Services,Purchase Martin McColl
04/10/2016,Children Adult & Health,W M Morrisons Plc,11.67,Project Funding,Purchase W M Morrisons Plc
04/10/2016,Children Adult & Health,Trainline.Com Ltd,295.29,Credit Card Charges,Purchase Trainline.Com Ltd
04/10/2016,Children Adult & Health,Timpson Ltd,10.00,Prop.Serv. General Repairs,Purchase Timpson Ltd
04/10/2016,Children Adult & Health,W M Morrisons Cafe,3.50,Supplies and Services,Purchase W M Morrisons Cafe
04/10/2016,Children Adult & Health,W M Morrisons,26.86,Supplies and Services,Purchase W M Morrisons
04/10/2016,Children Adult & Health,Holiday Inn Bristo,-96.03,Supplies and Services,Credit Voucher Holiday Inn Bristo
04/10/2016,Children Adult & Health,Holiday Inn Bristo,96.03,Supplies and Services,Purchase Holiday Inn Bristo
04/10/2016,Chief Executive & Corporate Resources,Amazon UK Marketplace,-55.00,Supplies and Services,Credit Voucher Amazon UK Marketplace
04/10/2016,Chief Executive & Corporate Resources,Amazon UK Marketplace,55.00,Supplies and Services,Purchase Amazon UK Marketplace
04/10/2016,Children Adult & Health,Asda Superstore,81.11,Credit Card Charges,Purchase Asda Superstore
04/10/2016,Children Adult & Health,Marks&spencer Plc,87.50,Credit Card Charges,Purchase Marks&spencer Plc
04/10/2016,Children Adult & Health,Marks&spencer Plc,121.05,Credit Card Charges,Purchase Marks&spencer Plc
04/10/2016,Children Adult & Health,Ikea Sacat,11.70,Supplies and Services,Purchase Ikea Sacat
04/10/2016,Children Adult & Health,Argos,29.94,Credit Card Charges,Purchase Argos
04/10/2016,Children Adult & Health,Amazon UK Marketplace,243.86,Supplies and Services,Purchase Amazon UK Marketplace
04/10/2016,Environment & Community Services,Amazon UK Retail,314.97,Credit Card Charges,Purchase Amazon UK Retail
04/10/2016,Children Adult & Health,Safestore Limited,185.03,Prop.Serv. General Repairs,Purchase Safestore Limited
04/10/2016,Chief Executive & Corporate Resources,Riba Enterprises Ltd,67.64,Supplies and Services,Purchase Riba Enterprises Ltd
04/10/2016,Children Adult & Health,Www.Westminster-Briefi,516.00,Supplies and Services,Purchase Www.Westminster-Briefi
04/10/2016,Children Adult & Health,Reservation Refund,-149.00,Supplies and Services,Credit Voucher Reservation Refund
04/10/2016,Children Adult & Health,Hotel On Booking.Com,65.00,Supplies and Services,Purchase Hotel On Booking.Com
04/10/2016,Chief Executive & Corporate Resources,Opp Ltd Sterling Vt,279.00,Credit Card Charges,Purchase Opp Ltd Sterling Vt
04/10/2016,Children Adult & Health,Sainsburys S/mkts,4.50,Credit Card Charges,Purchase Sainsburys S/Mkts
05/10/2016,Environment & Community Services,Kent Bldng Plastic,19.98,Street Care - Buildings Maintenance,Purchase Kent Bldng Plastic
05/10/2016,Environment & Community Services,Screwfix Direct,38.27,Street Care - Buildings Maintenance,Purchase Screwfix Direct
05/10/2016,Environment & Community Services,B & Q 1280,36.78,Street Care - Buildings Maintenance,Purchase B & Q 1280
05/10/2016,Children Adult & Health,Doubletree By Hilton,160.95,Supplies and Services,Purchase Doubletree By Hilton
05/10/2016,Children Adult & Health,John Sheppard Butchers,-26.00,School dinners,Credit Voucher John Sheppard Butchers
05/10/2016,Children Adult & Health,Brake Bros Ltd,-16.29,School dinners,Credit Voucher Brake Bros Ltd
05/10/2016,Children Adult & Health,Arthur David (Food Wit,-7.50,School dinners,Credit Voucher Arthur David (Food Wit
05/10/2016,Children Adult & Health,Brake Bros Ltd,-4.93,School dinners,Credit Voucher Brake Bros Ltd
05/10/2016,Children Adult & Health,Brake Bros Ltd,-1.98,School dinners,Credit Voucher Brake Bros Ltd
05/10/2016,Children Adult & Health,Arthur David (Food Wit,1.80,School dinners,Purchase Arthur David (Food Wit
05/10/2016,Children Adult & Health,Arthur David (Food Wit,2.12,School dinners,Purchase Arthur David (Food Wit
05/10/2016,Children Adult & Health,Arthur David (Food Wit,2.88,School dinners,Purchase Arthur David (Food Wit
05/10/2016,Children Adult & Health,Arthur David (Food Wit,3.28,School dinners,Purchase Arthur David (Food Wit
05/10/2016,Children Adult & Health,Arthur David (Food Wit,4.50,School dinners,Purchase Arthur David (Food Wit
05/10/2016,Children Adult & Health,John Sheppard Butchers,6.66,School dinners,Purchase John Sheppard Butchers
05/10/2016,Children Adult & Health,John Sheppard Butchers,7.45,School dinners,Purchase John Sheppard Butchers
05/10/2016,Children Adult & Health,Arthur David (Food Wit,7.50,School dinners,Purchase Arthur David (Food Wit
05/10/2016,Children Adult & Health,Arthur David (Food Wit,7.61,School dinners,Purchase Arthur David (Food Wit
05/10/2016,Children Adult & Health,Arthur David (Food Wit,8.24,School dinners,Purchase Arthur David (Food Wit
05/10/2016,Children Adult & Health,John Sheppard Butchers,8.42,School dinners,Purchase John Sheppard Butchers
05/10/2016,Children Adult & Health,Arthur David (Food Wit,9.40,School dinners,Purchase Arthur David (Food Wit
05/10/2016,Children Adult & Health,John Sheppard Butchers,10.58,School dinners,Purchase John Sheppard Butchers
05/10/2016,Children Adult & Health,John Sheppard Butchers,11.76,School dinners,Purchase John Sheppard Butchers
05/10/2016,Children Adult & Health,Arthur David (Food Wit,12.39,School dinners,Purchase Arthur David (Food Wit
05/10/2016,Children Adult & Health,Arthur David (Food Wit,13.18,School dinners,Purchase Arthur David (Food Wit
05/10/2016,Children Adult & Health,Arthur David (Food Wit,13.29,School dinners,Purchase Arthur David (Food Wit
05/10/2016,Children Adult & Health,Arthur David (Food Wit,13.60,School dinners,Purchase Arthur David (Food Wit
05/10/2016,Children Adult & Health,Arthur David (Food Wit,14.65,School dinners,Purchase Arthur David (Food Wit
05/10/2016,Children Adult & Health,Arthur David (Food Wit,14.66,School dinners,Purchase Arthur David (Food Wit
05/10/2016,Children Adult & Health,Arthur David (Food Wit,14.92,School dinners,Purchase Arthur David (Food Wit
05/10/2016,Children Adult & Health,Arthur David (Food Wit,15.25,School dinners,Purchase Arthur David (Food Wit
05/10/2016,Children Adult & Health,Arthur David (Food Wit,16.23,School dinners,Purchase Arthur David (Food Wit
05/10/2016,Children Adult & Health,Arthur David (Food Wit,17.09,School dinners,Purchase Arthur David (Food Wit
05/10/2016,Children Adult & Health,Arthur David (Food Wit,17.62,School dinners,Purchase Arthur David (Food Wit
05/10/2016,Children Adult & Health,John Sheppard Butchers,17.93,School dinners,Purchase John Sheppard Butchers
05/10/2016,Children Adult & Health,Arthur David (Food Wit,18.47,School dinners,Purchase Arthur David (Food Wit
05/10/2016,Children Adult & Health,Arthur David (Food Wit,19.39,School dinners,Purchase Arthur David (Food Wit
05/10/2016,Children Adult & Health,Arthur David (Food Wit,19.40,School dinners,Purchase Arthur David (Food Wit
05/10/2016,Children Adult & Health,John Sheppard Butchers,19.70,School dinners,Purchase John Sheppard Butchers
05/10/2016,Children Adult & Health,Arthur David (Food Wit,20.00,School dinners,Purchase Arthur David (Food Wit
05/10/2016,Children Adult & Health,John Sheppard Butchers,20.97,School dinners,Purchase John Sheppard Butchers
05/10/2016,Children Adult & Health,Arthur David (Food Wit,21.13,School dinners,Purchase Arthur David (Food Wit
05/10/2016,Children Adult & Health,John Sheppard Butchers,21.71,School dinners,Purchase John Sheppard Butchers
05/10/2016,Children Adult & Health,John Sheppard Butchers,21.96,School dinners,Purchase John Sheppard Butchers
05/10/2016,Children Adult & Health,Arthur David (Food Wit,22.52,School dinners,Purchase Arthur David (Food Wit
05/10/2016,Children Adult & Health,Arthur David (Food Wit,22.52,School dinners,Purchase Arthur David (Food Wit
05/10/2016,Children Adult & Health,John Sheppard Butchers,24.40,School dinners,Purchase John Sheppard Butchers
05/10/2016,Children Adult & Health,Arthur David (Food Wit,24.73,School dinners,Purchase Arthur David (Food Wit
05/10/2016,Children Adult & Health,John Sheppard Butchers,24.84,School dinners,Purchase John Sheppard Butchers
05/10/2016,Children Adult & Health,John Sheppard Butchers,24.99,School dinners,Purchase John Sheppard Butchers
05/10/2016,Children Adult & Health,Arthur David (Food Wit,25.32,School dinners,Purchase Arthur David (Food Wit
05/10/2016,Children Adult & Health,Arthur David (Food Wit,25.65,School dinners,Purchase Arthur David (Food Wit
05/10/2016,Children Adult & Health,John Sheppard Butchers,26.02,School dinners,Purchase John Sheppard Butchers
05/10/2016,Children Adult & Health,John Sheppard Butchers,26.26,School dinners,Purchase John Sheppard Butchers
05/10/2016,Children Adult & Health,Arthur David (Food Wit,26.43,School dinners,Purchase Arthur David (Food Wit
05/10/2016,Children Adult & Health,Arthur David (Food Wit,26.69,School dinners,Purchase Arthur David (Food Wit
05/10/2016,Children Adult & Health,John Sheppard Butchers,27.29,School dinners,Purchase John Sheppard Butchers
05/10/2016,Children Adult & Health,John Sheppard Butchers,27.88,School dinners,Purchase John Sheppard Butchers
05/10/2016,Children Adult & Health,John Sheppard Butchers,28.89,School dinners,Purchase John Sheppard Butchers
05/10/2016,Children Adult & Health,John Sheppard Butchers,28.91,School dinners,Purchase John Sheppard Butchers
05/10/2016,Children Adult & Health,Arthur David (Food Wit,29.50,School dinners,Purchase Arthur David (Food Wit
05/10/2016,Children Adult & Health,Arthur David (Food Wit,29.66,School dinners,Purchase Arthur David (Food Wit
05/10/2016,Children Adult & Health,John Sheppard Butchers,30.14,School dinners,Purchase John Sheppard Butchers
05/10/2016,Children Adult & Health,John Sheppard Butchers,30.32,School dinners,Purchase John Sheppard Butchers
05/10/2016,Children Adult & Health,John Sheppard Butchers,30.67,School dinners,Purchase John Sheppard Butchers
05/10/2016,Children Adult & Health,John Sheppard Butchers,30.72,School dinners,Purchase John Sheppard Butchers
05/10/2016,Children Adult & Health,John Sheppard Butchers,31.41,School dinners,Purchase John Sheppard Butchers
05/10/2016,Children Adult & Health,John Sheppard Butchers,32.05,School dinners,Purchase John Sheppard Butchers
05/10/2016,Children Adult & Health,John Sheppard Butchers,32.49,School dinners,Purchase John Sheppard Butchers
05/10/2016,Children Adult & Health,Arthur David (Food Wit,34.92,School dinners,Purchase Arthur David (Food Wit
05/10/2016,Children Adult & Health,John Sheppard Butchers,34.99,School dinners,Purchase John Sheppard Butchers
05/10/2016,Children Adult & Health,John Sheppard Butchers,35.18,School dinners,Purchase John Sheppard Butchers
05/10/2016,Children Adult & Health,John Sheppard Butchers,36.60,School dinners,Purchase John Sheppard Butchers
05/10/2016,Children Adult & Health,Arthur David (Food Wit,37.60,School dinners,Purchase Arthur David (Food Wit
05/10/2016,Children Adult & Health,John Sheppard Butchers,38.27,School dinners,Purchase John Sheppard Butchers
05/10/2016,Children Adult & Health,John Sheppard Butchers,39.20,School dinners,Purchase John Sheppard Butchers
05/10/2016,Children Adult & Health,John Sheppard Butchers,39.54,School dinners,Purchase John Sheppard Butchers
05/10/2016,Children Adult & Health,John Sheppard Butchers,39.94,School dinners,Purchase John Sheppard Butchers
05/10/2016,Children Adult & Health,Arthur David (Food Wit,40.85,School dinners,Purchase Arthur David (Food Wit
05/10/2016,Children Adult & Health,John Sheppard Butchers,41.11,School dinners,Purchase John Sheppard Butchers
05/10/2016,Children Adult & Health,John Sheppard Butchers,41.55,School dinners,Purchase John Sheppard Butchers
05/10/2016,Children Adult & Health,Arthur David (Food Wit,42.60,School dinners,Purchase Arthur David (Food Wit
05/10/2016,Children Adult & Health,Brake Bros Ltd,42.76,School dinners,Purchase Brake Bros Ltd
05/10/2016,Children Adult & Health,Arthur David (Food Wit,44.19,School dinners,Purchase Arthur David (Food Wit
05/10/2016,Children Adult & Health,John Sheppard Butchers,48.90,School dinners,Purchase John Sheppard Butchers
05/10/2016,Children Adult & Health,John Sheppard Butchers,49.20,School dinners,Purchase John Sheppard Butchers
05/10/2016,Children Adult & Health,Arthur David (Food Wit,49.32,School dinners,Purchase Arthur David (Food Wit
05/10/2016,Children Adult & Health,John Sheppard Butchers,50.42,School dinners,Purchase John Sheppard Butchers
05/10/2016,Children Adult & Health,Brake Bros Ltd,50.74,School dinners,Purchase Brake Bros Ltd
05/10/2016,Children Adult & Health,John Sheppard Butchers,51.21,School dinners,Purchase John Sheppard Butchers
05/10/2016,Children Adult & Health,John Sheppard Butchers,51.60,School dinners,Purchase John Sheppard Butchers
05/10/2016,Children Adult & Health,Brake Bros Ltd,53.47,School dinners,Purchase Brake Bros Ltd
05/10/2016,Children Adult & Health,John Sheppard Butchers,56.20,School dinners,Purchase John Sheppard Butchers
05/10/2016,Children Adult & Health,John Sheppard Butchers,60.66,School dinners,Purchase John Sheppard Butchers
05/10/2016,Children Adult & Health,Brake Bros Ltd,64.29,School dinners,Purchase Brake Bros Ltd
05/10/2016,Children Adult & Health,John Sheppard Butchers,72.13,School dinners,Purchase John Sheppard Butchers
05/10/2016,Children Adult & Health,Brake Bros Ltd,72.53,School dinners,Purchase Brake Bros Ltd
05/10/2016,Children Adult & Health,John Sheppard Butchers,82.32,School dinners,Purchase John Sheppard Butchers
05/10/2016,Children Adult & Health,Brake Bros Ltd,82.21,School dinners,Purchase Brake Bros Ltd
05/10/2016,Children Adult & Health,Brake Bros Ltd,92.42,School dinners,Purchase Brake Bros Ltd
05/10/2016,Children Adult & Health,Brake Bros Ltd,92.83,School dinners,Purchase Brake Bros Ltd
05/10/2016,Children Adult & Health,Arthur David (Food Wit,101.63,School dinners,Purchase Arthur David (Food Wit
05/10/2016,Children Adult & Health,Brake Bros Ltd,102.42,School dinners,Purchase Brake Bros Ltd
05/10/2016,Children Adult & Health,Brake Bros Ltd,102.65,School dinners,Purchase Brake Bros Ltd
05/10/2016,Children Adult & Health,Arthur David (Food Wit,108.80,School dinners,Purchase Arthur David (Food Wit
05/10/2016,Children Adult & Health,Arthur David (Food Wit,118.40,School dinners,Purchase Arthur David (Food Wit
05/10/2016,Children Adult & Health,Brake Bros Ltd,123.05,School dinners,Purchase Brake Bros Ltd
05/10/2016,Children Adult & Health,Brake Bros Ltd,130.81,School dinners,Purchase Brake Bros Ltd
05/10/2016,Children Adult & Health,Brake Bros Ltd,139.82,School dinners,Purchase Brake Bros Ltd
05/10/2016,Children Adult & Health,Brake Bros Ltd,148.14,School dinners,Purchase Brake Bros Ltd
05/10/2016,Children Adult & Health,Brake Bros Ltd,150.01,School dinners,Purchase Brake Bros Ltd
05/10/2016,Children Adult & Health,Brake Bros Ltd,154.14,School dinners,Purchase Brake Bros Ltd
05/10/2016,Children Adult & Health,Brake Bros Ltd,152.65,School dinners,Purchase Brake Bros Ltd
05/10/2016,Children Adult & Health,Brake Bros Ltd,152.66,School dinners,Purchase Brake Bros Ltd
05/10/2016,Children Adult & Health,Brake Bros Ltd,152.69,School dinners,Purchase Brake Bros Ltd
05/10/2016,Children Adult & Health,Brake Bros Ltd,160.13,School dinners,Purchase Brake Bros Ltd
05/10/2016,Children Adult & Health,Brake Bros Ltd,159.03,School dinners,Purchase Brake Bros Ltd
05/10/2016,Children Adult & Health,Brake Bros Ltd,182.64,School dinners,Purchase Brake Bros Ltd
05/10/2016,Children Adult & Health,Brake Bros Ltd,199.10,School dinners,Purchase Brake Bros Ltd
05/10/2016,Children Adult & Health,Brake Bros Ltd,204.52,School dinners,Purchase Brake Bros Ltd
05/10/2016,Children Adult & Health,Brake Bros Ltd,224.81,School dinners,Purchase Brake Bros Ltd
05/10/2016,Children Adult & Health,Brake Bros Ltd,239.36,School dinners,Purchase Brake Bros Ltd
05/10/2016,Children Adult & Health,Brake Bros Ltd,322.15,School dinners,Purchase Brake Bros Ltd
05/10/2016,Chief Executive & Corporate Resources,Supplies Team,-14.00,Stationery,Credit Voucher Supplies Team
05/10/2016,Chief Executive & Corporate Resources,Supplies Team,-9.95,Stationery,Credit Voucher Supplies Team
05/10/2016,Chief Executive & Corporate Resources,Supplies Team,1.89,Stationery,Purchase Supplies Team
05/10/2016,Chief Executive & Corporate Resources,Supplies Team,1.89,Stationery,Purchase Supplies Team
05/10/2016,Chief Executive & Corporate Resources,Supplies Team,3.28,Stationery,Purchase Supplies Team
05/10/2016,Chief Executive & Corporate Resources,Supplies Team,7.56,Stationery,Purchase Supplies Team
05/10/2016,Children Adult & Health,Amazon UK Marketplace,107.94,Credit Card Charges,Purchase Amazon UK Marketplace
05/10/2016,Children Adult & Health,Ms-2 Stores,23.80,Supplies and Services,Purchase Ms-2 Stores
05/10/2016,Children Adult & Health,Ms-2 Stores,23.80,Supplies and Services,Purchase Ms-2 Stores
05/10/2016,Environment & Community Services,Amazon UK Marketplace,25.98,Supplies and Services,Purchase Amazon UK Marketplace
05/10/2016,Children Adult & Health,Amazon UK Marketplace,63.19,Supplies and Services,Purchase Amazon UK Marketplace
05/10/2016,Chief Executive & Corporate Resources,Tfl Visitor Shop,14.35,Credit Card Charges,Purchase Tfl Visitor Shop
05/10/2016,Children Adult & Health,Martin Mccoll,66.00,Supplies and Services,Purchase Martin McColl
05/10/2016,Environment & Community Services,Wfm,90.00,Supplies and Services,Purchase Wfm
05/10/2016,Children Adult & Health,Amazon UK Retail,24.30,Credit Card Charges,Purchase Amazon UK Retail
05/10/2016,Children Adult & Health,Tesco Stores 5652,8.93,Supplies and Services,Purchase Tesco Stores 5652
05/10/2016,Children Adult & Health,Homebase Ltd 148,0.31,Supplies and Services,Purchase Homebase Ltd 148
05/10/2016,Children Adult & Health,Indesit Factory Grade,104.00,Supplies and Services,Purchase Indesit Factory Grade
05/10/2016,Children Adult & Health,Argos Bristol,199.99,Supplies and Services,Purchase Argos Bristol
05/10/2016,Children Adult & Health,Indesit Factory Grade,500.00,Supplies and Services,Purchase Indesit Factory Grade
05/10/2016,Children Adult & Health,Crossbow Education,8.33,Supplies and Services,Purchase Crossbow Education
05/10/2016,Environment & Community Services,Apcoa Connect - Fgw,1.40,Credit Card Charges,Purchase Apcoa Connect - Fgw
05/10/2016,Environment & Community Services,Gwr Yate Sst,4.80,Credit Card Charges,Purchase Gwr Yate Sst
05/10/2016,Environment & Community Services,Easyjet,193.37,Credit Card Charges,Purchase Easyjet
05/10/2016,Chief Executive & Corporate Resources,Easyjet,87.99,Supplies and Services,Purchase Easyjet
05/10/2016,Children Adult & Health,Talktalk Telecom,85.66,Credit Card Charges,Purchase Talktalk Telecom
05/10/2016,Children Adult & Health,Martin Mccoll,3.29,Supplies and Services,Purchase Martin McColl
05/10/2016,Children Adult & Health,Martin Mccoll,12.00,Supplies and Services,Purchase Martin McColl
05/10/2016,Children Adult & Health,Wp-Stormflame Ltd,49.78,Credit Card Charges,Purchase Wp-Stormflame Ltd
05/10/2016,Children Adult & Health,Asda Superstore,33.31,Credit Card Charges,Purchase Asda Superstore
05/10/2016,Environment & Community Services,Country Style Supplies,200.40,Street Care - Buildings Maintenance,Purchase Country Style Supplies
05/10/2016,Children Adult & Health,Doubletree,310.00,Supplies and Services,Purchase Doubletree
05/10/2016,Children Adult & Health,Doubletree,310.00,Supplies and Services,Purchase Doubletree
05/10/2016,Children Adult & Health,Argos Direct,87.98,Supplies and Services,Purchase Argos Direct
05/10/2016,Children Adult & Health,Argos Direct,216.99,Supplies and Services,Purchase Argos Direct
05/10/2016,Children Adult & Health,Argos Direct,269.35,Supplies and Services,Purchase Argos Direct
05/10/2016,Children Adult & Health,Argos Direct,277.96,Supplies and Services,Purchase Argos Direct
05/10/2016,Children Adult & Health,Tesco Stores 3471,2.78,Credit Card Charges,Purchase Tesco Stores 3471
06/10/2016,Environment & Community Services,B & Q 1280,17.52,Street Care - Buildings Maintenance,Purchase B & Q 1280
06/10/2016,Environment & Community Services,Amazon UK Retail Amazon.C,5.74,Supplies and Services,Purchase Amazon UK Retail Amazon.C
06/10/2016,Environment & Community Services,Eb *turn The Tide 2nd,10.00,Supplies and Services,Purchase Eb *turn The Tide 2nd
06/10/2016,Children Adult & Health,Amazon UK Marketplace,16.98,Supplies and Services,Purchase Amazon UK Marketplace
06/10/2016,Children Adult & Health,Amazon UK Retail Amazon.C,56.73,Supplies and Services,Purchase Amazon UK Retail Amazon.C
06/10/2016,Chief Executive & Corporate Resources,Www.Redspottedhank,227.80,Credit Card Charges,Purchase Www.Redspottedhank
06/10/2016,Chief Executive & Corporate Resources,Eb *creating A Schools,100.00,Supplies and Services,Purchase Eb *creating A Schools
06/10/2016,Children Adult & Health,Arthur David (Food Wit,-25.65,School dinners,Credit Voucher Arthur David (Food Wit
06/10/2016,Children Adult & Health,Arthur David (Food Wit,-14.65,School dinners,Credit Voucher Arthur David (Food Wit
06/10/2016,Children Adult & Health,Arthur David (Food Wit,-13.54,School dinners,Credit Voucher Arthur David (Food Wit
06/10/2016,Children Adult & Health,Arthur David (Food Wit,-13.29,School dinners,Credit Voucher Arthur David (Food Wit
06/10/2016,Children Adult & Health,Arthur David (Food Wit,-5.00,School dinners,Credit Voucher Arthur David (Food Wit
06/10/2016,Children Adult & Health,Arthur David (Food Wit,-3.28,School dinners,Credit Voucher Arthur David (Food Wit
06/10/2016,Children Adult & Health,Arthur David (Food Wit,-1.60,School dinners,Credit Voucher Arthur David (Food Wit
06/10/2016,Children Adult & Health,Arthur David (Food Wit,-0.37,School dinners,Credit Voucher Arthur David (Food Wit
06/10/2016,Children Adult & Health,Arthur David (Food Wit,2.64,School dinners,Purchase Arthur David (Food Wit
06/10/2016,Children Adult & Health,Arthur David (Food Wit,3.28,School dinners,Purchase Arthur David (Food Wit
06/10/2016,Children Adult & Health,Arthur David (Food Wit,8.48,School dinners,Purchase Arthur David (Food Wit
06/10/2016,Children Adult & Health,Arthur David (Food Wit,13.29,School dinners,Purchase Arthur David (Food Wit
06/10/2016,Children Adult & Health,Arthur David (Food Wit,14.65,School dinners,Purchase Arthur David (Food Wit
06/10/2016,Children Adult & Health,Arthur David (Food Wit,15.31,School dinners,Purchase Arthur David (Food Wit
06/10/2016,Children Adult & Health,Brake Bros Ltd,17.14,School dinners,Purchase Brake Bros Ltd
06/10/2016,Children Adult & Health,Arthur David (Food Wit,21.83,School dinners,Purchase Arthur David (Food Wit
06/10/2016,Children Adult & Health,Arthur David (Food Wit,25.65,School dinners,Purchase Arthur David (Food Wit
06/10/2016,Children Adult & Health,Brake Bros Ltd,39.84,School dinners,Purchase Brake Bros Ltd
06/10/2016,Children Adult & Health,Brake Bros Ltd,43.08,School dinners,Purchase Brake Bros Ltd
06/10/2016,Children Adult & Health,Arthur David (Food Wit,45.38,School dinners,Purchase Arthur David (Food Wit
06/10/2016,Children Adult & Health,Brake Bros Ltd,71.57,School dinners,Purchase Brake Bros Ltd
06/10/2016,Children Adult & Health,Brake Bros Ltd,73.97,School dinners,Purchase Brake Bros Ltd
06/10/2016,Children Adult & Health,Arthur David (Food Wit,79.64,School dinners,Purchase Arthur David (Food Wit
06/10/2016,Children Adult & Health,Brake Bros Ltd,79.62,School dinners,Purchase Brake Bros Ltd
06/10/2016,Children Adult & Health,Brake Bros Ltd,79.27,School dinners,Purchase Brake Bros Ltd
06/10/2016,Children Adult & Health,Brake Bros Ltd,97.79,School dinners,Purchase Brake Bros Ltd
06/10/2016,Children Adult & Health,Brake Bros Ltd,98.99,School dinners,Purchase Brake Bros Ltd
06/10/2016,Children Adult & Health,Brake Bros Ltd,103.88,School dinners,Purchase Brake Bros Ltd
06/10/2016,Children Adult & Health,Brake Bros Ltd,107.50,School dinners,Purchase Brake Bros Ltd
06/10/2016,Children Adult & Health,Brake Bros Ltd,108.03,School dinners,Purchase Brake Bros Ltd
06/10/2016,Children Adult & Health,Brake Bros Ltd,118.70,School dinners,Purchase Brake Bros Ltd
06/10/2016,Children Adult & Health,Brake Bros Ltd,116.50,School dinners,Purchase Brake Bros Ltd
06/10/2016,Children Adult & Health,Brake Bros Ltd,123.22,School dinners,Purchase Brake Bros Ltd
06/10/2016,Children Adult & Health,Brake Bros Ltd,126.45,School dinners,Purchase Brake Bros Ltd
06/10/2016,Children Adult & Health,Brake Bros Ltd,126.86,School dinners,Purchase Brake Bros Ltd
06/10/2016,Children Adult & Health,Brake Bros Ltd,132.23,School dinners,Purchase Brake Bros Ltd
06/10/2016,Children Adult & Health,Brake Bros Ltd,133.38,School dinners,Purchase Brake Bros Ltd
06/10/2016,Children Adult & Health,Brake Bros Ltd,134.86,School dinners,Purchase Brake Bros Ltd
06/10/2016,Children Adult & Health,Brake Bros Ltd,163.79,School dinners,Purchase Brake Bros Ltd
06/10/2016,Children Adult & Health,Brake Bros Ltd,161.72,School dinners,Purchase Brake Bros Ltd
06/10/2016,Children Adult & Health,Brake Bros Ltd,171.51,School dinners,Purchase Brake Bros Ltd
06/10/2016,Children Adult & Health,Brake Bros Ltd,171.89,School dinners,Purchase Brake Bros Ltd
06/10/2016,Children Adult & Health,Brake Bros Ltd,183.94,School dinners,Purchase Brake Bros Ltd
06/10/2016,Children Adult & Health,Brake Bros Ltd,196.18,School dinners,Purchase Brake Bros Ltd
06/10/2016,Children Adult & Health,Brake Bros Ltd,216.34,School dinners,Purchase Brake Bros Ltd
06/10/2016,Children Adult & Health,Brake Bros Ltd,242.46,School dinners,Purchase Brake Bros Ltd
06/10/2016,Children Adult & Health,Brake Bros Ltd,297.16,School dinners,Purchase Brake Bros Ltd
06/10/2016,Children Adult & Health,Brake Bros Ltd,299.63,School dinners,Purchase Brake Bros Ltd
06/10/2016,Children Adult & Health,Brake Bros Ltd,325.98,School dinners,Purchase Brake Bros Ltd
06/10/2016,Children Adult & Health,Brake Bros Ltd,356.18,School dinners,Purchase Brake Bros Ltd
06/10/2016,Chief Executive & Corporate Resources,Supplies Team,0.93,Stationery,Purchase Supplies Team
06/10/2016,Chief Executive & Corporate Resources,Supplies Team,0.93,Stationery,Purchase Supplies Team
06/10/2016,Chief Executive & Corporate Resources,Supplies Team,1.71,Stationery,Purchase Supplies Team
06/10/2016,Chief Executive & Corporate Resources,Supplies Team,1.99,Stationery,Purchase Supplies Team
06/10/2016,Chief Executive & Corporate Resources,Supplies Team,3.78,Stationery,Purchase Supplies Team
06/10/2016,Chief Executive & Corporate Resources,Supplies Team,7.75,Stationery,Purchase Supplies Team
06/10/2016,Chief Executive & Corporate Resources,Supplies Team,9.65,Stationery,Purchase Supplies Team
06/10/2016,Chief Executive & Corporate Resources,Supplies Team,21.99,Stationery,Purchase Supplies Team
06/10/2016,Chief Executive & Corporate Resources,Supplies Team,23.08,Stationery,Purchase Supplies Team
06/10/2016,Chief Executive & Corporate Resources,Supplies Team,37.80,Stationery,Purchase Supplies Team
06/10/2016,Chief Executive & Corporate Resources,Supplies Team,56.70,Stationery,Purchase Supplies Team
06/10/2016,Chief Executive & Corporate Resources,Supplies Team,80.04,Stationery,Purchase Supplies Team
06/10/2016,Children Adult & Health,Gwr Websales Ecom,64.20,Supplies and Services,Purchase Gwr Websales Ecom
06/10/2016,Children Adult & Health,Gwr Websales Ecom,73.10,Supplies and Services,Purchase Gwr Websales Ecom
06/10/2016,Children Adult & Health,Ms-2 Stores,10.00,Supplies and Services,Purchase Ms-2 Stores
06/10/2016,Environment & Community Services,Bigdug Limited,36.00,Credit Card Charges,Purchase Bigdug Limited
06/10/2016,Environment & Community Services,B & Q 1022,12.25,Supplies and Services,Purchase B & Q 1022
06/10/2016,Environment & Community Services,Amazon UK Retail Amazon.C,28.50,Supplies and Services,Purchase Amazon UK Retail Amazon.C
06/10/2016,Environment & Community Services,Screwfix Direct,62.91,Supplies and Services,Purchase Screwfix Direct
06/10/2016,Children Adult & Health,Trainline.Com Ltd,142.70,Supplies and Services,Purchase Trainline.Com Ltd
06/10/2016,Children Adult & Health,Martin Mccolls,-17.00,Supplies and Services,Credit Voucher Martin McColls
06/10/2016,Children Adult & Health,Martin Mccolls,17.00,Supplies and Services,Purchase Martin McColls
06/10/2016,Children Adult & Health,Martin Mccolls,17.00,Supplies and Services,Purchase Martin McColls
06/10/2016,Children Adult & Health,Merlin Hs Rent/srv Chg,22.25,Supplies and Services,Purchase Merlin Hs Rent/Srv Chg
06/10/2016,Environment & Community Services,Wickes,7.00,Street Care - Buildings Maintenance,Purchase Wickes
06/10/2016,Environment & Community Services,Apex Building Plastics L,35.90,Street Care - Buildings Maintenance,Purchase Apex Building Plastics L
06/10/2016,Environment & Community Services,Ezi Klamp Systems Ltd,42.07,Street Care - Buildings Maintenance,Purchase Ezi Klamp Systems Ltd
06/10/2016,Environment & Community Services,Howdens - Warmley Dc93,45.00,Street Care - Buildings Maintenance,Purchase Howdens - Warmley Dc93
06/10/2016,Children Adult & Health,Amazon UK Marketplace,19.35,Credit Card Charges,Purchase Amazon UK Marketplace
06/10/2016,Children Adult & Health,Www.Bristol-City.Gov.U,11.50,Supplies and Services,Purchase Www.Bristol-City.Gov.U
06/10/2016,Children Adult & Health,Www.Bristol-City.Gov.U,11.50,Supplies and Services,Purchase Www.Bristol-City.Gov.U
06/10/2016,Environment & Community Services,Reedmidem.Com,354.00,Credit Card Charges,Purchase Reedmidem.Com
06/10/2016,Children Adult & Health,W M Morrisons Plc,4.74,Supplies and Services,Purchase W M Morrisons Plc
06/10/2016,Children Adult & Health,Woven Labels UK Lt,8.97,Credit Card Charges,Purchase Woven Labels UK Lt
06/10/2016,Children Adult & Health,South Glos Council,12.00,Credit Card Charges,Purchase South Glos Council
06/10/2016,Children Adult & Health,Currys Online,181.98,Credit Card Charges,Purchase Currys Online
06/10/2016,Children Adult & Health,Horfield Bristol,8.40,Supplies and Services,Purchase Horfield Bristol
06/10/2016,Children Adult & Health,Spar Patchway (Br0776),23.80,Supplies and Services,Purchase Spar Patchway (Br0776)
06/10/2016,Children Adult & Health,Spar Patchway (Br0776),23.80,Supplies and Services,Purchase Spar Patchway (Br0776)
06/10/2016,Environment & Community Services,Harold L Smith(Trans) Lt,820.00,Credit Card Charges,Purchase Harold L Smith(Trans) Lt
06/10/2016,Environment & Community Services,Harold L Smith(Trans) Lt,1000.00,Credit Card Charges,Purchase Harold L Smith(Trans) Lt
06/10/2016,Environment & Community Services,Harold L Smith(Trans) Lt,1000.00,Credit Card Charges,Purchase Harold L Smith(Trans) Lt
06/10/2016,Environment & Community Services,Dvla Digital Tacho,19.00,Credit Card Charges,Purchase Dvla Digital Tacho
06/10/2016,Children Adult & Health,Closegate Hotel Develo,80.00,Credit Card Charges,Purchase Closegate Hotel Develo
06/10/2016,Children Adult & Health,Kfc Keynsham,12.16,Supplies and Services,Purchase Kfc Keynsham
06/10/2016,Children Adult & Health,A & Z Convenience Stor,60.50,Supplies and Services,Purchase A & Z Convenience Stor
06/10/2016,Children Adult & Health,Special Occasions,17.90,Supplies and Services,Purchase Special Occasions
06/10/2016,Children Adult & Health,Lidl Uk,19.18,Credit Card Charges,Purchase Lidl Uk
06/10/2016,Children Adult & Health,Poundworld,30.10,Credit Card Charges,Purchase Poundworld
07/10/2016,Children Adult & Health,Amazon UK Retail,55.51,Supplies and Services,Purchase Amazon UK Retail
07/10/2016,Chief Executive & Corporate Resources,Trainline.Com Ltd,86.39,Credit Card Charges,Purchase Trainline.Com Ltd
07/10/2016,Chief Executive & Corporate Resources,Law Society Cpd,108.00,Credit Card Charges,Purchase Law Society Cpd
07/10/2016,Chief Executive & Corporate Resources,Trainline.Com Ltd,184.42,Credit Card Charges,Purchase Trainline.Com Ltd
07/10/2016,Chief Executive & Corporate Resources,Gwr Websales Ecom,131.50,Supplies and Services,Purchase Gwr Websales Ecom
07/10/2016,Children Adult & Health,Arthur David (Food Wit,1.70,School dinners,Purchase Arthur David (Food Wit
07/10/2016,Children Adult & Health,Arthur David (Food Wit,3.34,School dinners,Purchase Arthur David (Food Wit
07/10/2016,Children Adult & Health,Arthur David (Food Wit,3.44,School dinners,Purchase Arthur David (Food Wit
07/10/2016,Children Adult & Health,Arthur David (Food Wit,3.89,School dinners,Purchase Arthur David (Food Wit
07/10/2016,Children Adult & Health,Arthur David (Food Wit,6.00,School dinners,Purchase Arthur David (Food Wit
07/10/2016,Children Adult & Health,Arthur David (Food Wit,6.68,School dinners,Purchase Arthur David (Food Wit
07/10/2016,Children Adult & Health,Brake Bros Ltd,8.02,School dinners,Purchase Brake Bros Ltd
07/10/2016,Children Adult & Health,Arthur David (Food Wit,13.60,School dinners,Purchase Arthur David (Food Wit
07/10/2016,Children Adult & Health,Arthur David (Food Wit,16.86,School dinners,Purchase Arthur David (Food Wit
07/10/2016,Children Adult & Health,Arthur David (Food Wit,16.93,School dinners,Purchase Arthur David (Food Wit
07/10/2016,Children Adult & Health,Arthur David (Food Wit,17.85,School dinners,Purchase Arthur David (Food Wit
07/10/2016,Children Adult & Health,Arthur David (Food Wit,17.99,School dinners,Purchase Arthur David (Food Wit
07/10/2016,Children Adult & Health,Arthur David (Food Wit,18.75,School dinners,Purchase Arthur David (Food Wit
07/10/2016,Children Adult & Health,Arthur David (Food Wit,19.00,School dinners,Purchase Arthur David (Food Wit
07/10/2016,Children Adult & Health,Arthur David (Food Wit,20.78,School dinners,Purchase Arthur David (Food Wit
07/10/2016,Children Adult & Health,Arthur David (Food Wit,21.20,School dinners,Purchase Arthur David (Food Wit
07/10/2016,Children Adult & Health,Arthur David (Food Wit,21.42,School dinners,Purchase Arthur David (Food Wit
07/10/2016,Children Adult & Health,Arthur David (Food Wit,24.10,School dinners,Purchase Arthur David (Food Wit
07/10/2016,Children Adult & Health,Arthur David (Food Wit,26.10,School dinners,Purchase Arthur David (Food Wit
07/10/2016,Children Adult & Health,Arthur David (Food Wit,27.98,School dinners,Purchase Arthur David (Food Wit
07/10/2016,Children Adult & Health,Arthur David (Food Wit,28.10,School dinners,Purchase Arthur David (Food Wit
07/10/2016,Children Adult & Health,Arthur David (Food Wit,30.53,School dinners,Purchase Arthur David (Food Wit
07/10/2016,Children Adult & Health,Arthur David (Food Wit,31.40,School dinners,Purchase Arthur David (Food Wit
07/10/2016,Children Adult & Health,Arthur David (Food Wit,34.96,School dinners,Purchase Arthur David (Food Wit
07/10/2016,Children Adult & Health,Arthur David (Food Wit,36.40,School dinners,Purchase Arthur David (Food Wit
07/10/2016,Children Adult & Health,Arthur David (Food Wit,37.08,School dinners,Purchase Arthur David (Food Wit
07/10/2016,Children Adult & Health,Arthur David (Food Wit,37.62,School dinners,Purchase Arthur David (Food Wit
07/10/2016,Children Adult & Health,Arthur David (Food Wit,40.00,School dinners,Purchase Arthur David (Food Wit
07/10/2016,Children Adult & Health,Arthur David (Food Wit,40.66,School dinners,Purchase Arthur David (Food Wit
07/10/2016,Children Adult & Health,Arthur David (Food Wit,43.48,School dinners,Purchase Arthur David (Food Wit
07/10/2016,Children Adult & Health,Brake Bros Ltd,44.63,School dinners,Purchase Brake Bros Ltd
07/10/2016,Children Adult & Health,Brake Bros Ltd,47.54,School dinners,Purchase Brake Bros Ltd
07/10/2016,Children Adult & Health,Arthur David (Food Wit,50.83,School dinners,Purchase Arthur David (Food Wit
07/10/2016,Children Adult & Health,Arthur David (Food Wit,50.92,School dinners,Purchase Arthur David (Food Wit
07/10/2016,Children Adult & Health,Arthur David (Food Wit,53.43,School dinners,Purchase Arthur David (Food Wit
07/10/2016,Children Adult & Health,Arthur David (Food Wit,55.49,School dinners,Purchase Arthur David (Food Wit
07/10/2016,Children Adult & Health,Arthur David (Food Wit,57.52,School dinners,Purchase Arthur David (Food Wit
07/10/2016,Children Adult & Health,Arthur David (Food Wit,57.59,School dinners,Purchase Arthur David (Food Wit
07/10/2016,Children Adult & Health,Arthur David (Food Wit,61.05,School dinners,Purchase Arthur David (Food Wit
07/10/2016,Children Adult & Health,Arthur David (Food Wit,63.03,School dinners,Purchase Arthur David (Food Wit
07/10/2016,Children Adult & Health,Arthur David (Food Wit,72.80,School dinners,Purchase Arthur David (Food Wit
07/10/2016,Children Adult & Health,Arthur David (Food Wit,72.94,School dinners,Purchase Arthur David (Food Wit
07/10/2016,Children Adult & Health,Brake Bros Ltd,104.28,School dinners,Purchase Brake Bros Ltd
07/10/2016,Children Adult & Health,Brake Bros Ltd,169.35,School dinners,Purchase Brake Bros Ltd
07/10/2016,Children Adult & Health,Brake Bros Ltd,169.90,School dinners,Purchase Brake Bros Ltd
07/10/2016,Children Adult & Health,Brake Bros Ltd,187.13,School dinners,Purchase Brake Bros Ltd
07/10/2016,Children Adult & Health,Arthur David (Food Wit,193.28,School dinners,Purchase Arthur David (Food Wit
07/10/2016,Children Adult & Health,Brake Bros Ltd,209.88,School dinners,Purchase Brake Bros Ltd
07/10/2016,Children Adult & Health,Brake Bros Ltd,224.74,School dinners,Purchase Brake Bros Ltd
07/10/2016,Children Adult & Health,Brake Bros Ltd,243.89,School dinners,Purchase Brake Bros Ltd
07/10/2016,Children Adult & Health,Asda Home Shopping,-6.75,Credit Card Charges,Credit Voucher Asda Home Shopping
07/10/2016,Children Adult & Health,Asda Home Shopping,94.84,Credit Card Charges,Purchase Asda Home Shopping
07/10/2016,Children Adult & Health,Sainsburys S/mkts,2.00,Supplies and Services,Purchase Sainsburys S/Mkts
07/10/2016,Children Adult & Health,Greggs - S3655,2.30,Supplies and Services,Purchase Greggs - S3655
07/10/2016,Children Adult & Health,Card Factory,3.56,Supplies and Services,Purchase Card Factory
07/10/2016,Children Adult & Health,Paulas Cafe,10.28,Supplies and Services,Purchase Paulas Cafe
07/10/2016,Children Adult & Health,Shoe Zone,13.04,Supplies and Services,Purchase Shoe Zone
07/10/2016,Children Adult & Health,Whitehall Easton Ltd,17.50,Supplies and Services,Purchase Whitehall Easton Ltd
07/10/2016,Children Adult & Health,Whitehall Easton Ltd,17.50,Supplies and Services,Purchase Whitehall Easton Ltd
07/10/2016,Children Adult & Health,New Look 1117,44.98,Supplies and Services,Purchase New Look 1117
07/10/2016,Environment & Community Services,B & Q 1022,18.90,Supplies and Services,Purchase B & Q 1022
07/10/2016,Environment & Community Services,B & Q 1081,20.42,Supplies and Services,Purchase B & Q 1081
07/10/2016,Environment & Community Services,Meterboxes.Co.Uk,38.18,Supplies and Services,Purchase Meterboxes.Co.Uk
07/10/2016,Children Adult & Health,Closegate Hotel Develo,129.00,Credit Card Charges,Purchase Closegate Hotel Develo
07/10/2016,Children Adult & Health,Closegate Hotel Develo,129.00,Credit Card Charges,Purchase Closegate Hotel Develo
07/10/2016,Children Adult & Health,Closegate Hotel Develo,152.00,Credit Card Charges,Purchase Closegate Hotel Develo
07/10/2016,Children Adult & Health,Www.Chamberlainmusic.C,26.94,Supplies and Services,Purchase Www.Chamberlainmusic.C
07/10/2016,Children Adult & Health,Amazon UK Retail,20.67,Supplies and Services,Purchase Amazon UK Retail
07/10/2016,Environment & Community Services,Gwr Websales Ecom,173.10,Credit Card Charges,Purchase Gwr Websales Ecom
07/10/2016,Environment & Community Services,Tesco Stores 5652,84.09,Credit Card Charges,Purchase Tesco Stores 5652
07/10/2016,Chief Executive & Corporate Resources,Riba Enterprises Ltd,70.86,Supplies and Services,Purchase Riba Enterprises Ltd
07/10/2016,Environment & Community Services,B & Q 1022,-20.00,Street Care - Buildings Maintenance,Credit Voucher B & Q 1022
07/10/2016,Environment & Community Services,Ezi Klamp Systems Ltd,42.36,Street Care - Buildings Maintenance,Purchase Ezi Klamp Systems Ltd
07/10/2016,Environment & Community Services,Ezi Klamp Systems Ltd,173.33,Street Care - Buildings Maintenance,Purchase Ezi Klamp Systems Ltd
07/10/2016,Children Adult & Health,A & Z Convenience Stor,17.50,Supplies and Services,Purchase A & Z Convenience Stor
07/10/2016,Children Adult & Health,43035040 Costa Coffee,7.35,Supplies and Services,Purchase 43035040 Costa Coffee
07/10/2016,Children Adult & Health,Marks&spencer Plc,15.00,Supplies and Services,Purchase Marks&spencer Plc
07/10/2016,Children Adult & Health,W M Morrisons Plc,6.74,Credit Card Charges,Purchase W M Morrisons Plc
07/10/2016,Children Adult & Health,Poundland Ltd 1709,13.50,Credit Card Charges,Purchase Poundland Ltd 1709
08/10/2016,Children Adult & Health,Amazon UK Retail Amazon.C,30.74,Supplies and Services,Purchase Amazon UK Retail Amazon.C
08/10/2016,Children Adult & Health,John Sheppard Butchers,9.99,School dinners,Purchase John Sheppard Butchers
08/10/2016,Children Adult & Health,Arthur David (Food Wit,13.00,School dinners,Purchase Arthur David (Food Wit
08/10/2016,Children Adult & Health,John Sheppard Butchers,14.57,School dinners,Purchase John Sheppard Butchers
08/10/2016,Children Adult & Health,John Sheppard Butchers,15.09,School dinners,Purchase John Sheppard Butchers
08/10/2016,Children Adult & Health,John Sheppard Butchers,16.97,School dinners,Purchase John Sheppard Butchers
08/10/2016,Children Adult & Health,John Sheppard Butchers,20.83,School dinners,Purchase John Sheppard Butchers
08/10/2016,Children Adult & Health,John Sheppard Butchers,24.85,School dinners,Purchase John Sheppard Butchers
08/10/2016,Children Adult & Health,John Sheppard Butchers,26.85,School dinners,Purchase John Sheppard Butchers
08/10/2016,Children Adult & Health,Arthur David (Food Wit,29.69,School dinners,Purchase Arthur David (Food Wit
08/10/2016,Children Adult & Health,John Sheppard Butchers,29.92,School dinners,Purchase John Sheppard Butchers
08/10/2016,Children Adult & Health,John Sheppard Butchers,31.94,School dinners,Purchase John Sheppard Butchers
08/10/2016,Children Adult & Health,John Sheppard Butchers,32.70,School dinners,Purchase John Sheppard Butchers
08/10/2016,Children Adult & Health,John Sheppard Butchers,33.25,School dinners,Purchase John Sheppard Butchers
08/10/2016,Children Adult & Health,John Sheppard Butchers,33.52,School dinners,Purchase John Sheppard Butchers
08/10/2016,Children Adult & Health,John Sheppard Butchers,33.87,School dinners,Purchase John Sheppard Butchers
08/10/2016,Children Adult & Health,John Sheppard Butchers,35.29,School dinners,Purchase John Sheppard Butchers
08/10/2016,Children Adult & Health,John Sheppard Butchers,36.80,School dinners,Purchase John Sheppard Butchers
08/10/2016,Children Adult & Health,Arthur David (Food Wit,38.15,School dinners,Purchase Arthur David (Food Wit
08/10/2016,Children Adult & Health,John Sheppard Butchers,38.38,School dinners,Purchase John Sheppard Butchers
08/10/2016,Children Adult & Health,John Sheppard Butchers,39.43,School dinners,Purchase John Sheppard Butchers
08/10/2016,Children Adult & Health,John Sheppard Butchers,40.13,School dinners,Purchase John Sheppard Butchers
08/10/2016,Children Adult & Health,John Sheppard Butchers,44.36,School dinners,Purchase John Sheppard Butchers
08/10/2016,Children Adult & Health,John Sheppard Butchers,47.50,School dinners,Purchase John Sheppard Butchers
08/10/2016,Children Adult & Health,John Sheppard Butchers,48.50,School dinners,Purchase John Sheppard Butchers
08/10/2016,Children Adult & Health,John Sheppard Butchers,50.60,School dinners,Purchase John Sheppard Butchers
08/10/2016,Children Adult & Health,John Sheppard Butchers,50.84,School dinners,Purchase John Sheppard Butchers
08/10/2016,Children Adult & Health,John Sheppard Butchers,64.06,School dinners,Purchase John Sheppard Butchers
08/10/2016,Children Adult & Health,John Sheppard Butchers,65.27,School dinners,Purchase John Sheppard Butchers
08/10/2016,Children Adult & Health,John Sheppard Butchers,70.26,School dinners,Purchase John Sheppard Butchers
08/10/2016,Children Adult & Health,John Sheppard Butchers,90.44,School dinners,Purchase John Sheppard Butchers
08/10/2016,Children Adult & Health,John Sheppard Butchers,147.47,School dinners,Purchase John Sheppard Butchers
08/10/2016,Children Adult & Health,Amazon UK Retail,16.99,Credit Card Charges,Purchase Amazon UK Retail
08/10/2016,Children Adult & Health,Amazon UK Retail,97.40,Credit Card Charges,Purchase Amazon UK Retail
08/10/2016,Children Adult & Health,Amazon UK Retail Amazon.C,29.96,Credit Card Charges,Purchase Amazon UK Retail Amazon.C
08/10/2016,Children Adult & Health,Bath Ymca Trading,35.00,Supplies and Services,Purchase Bath Ymca Trading
10/10/2016,Environment & Community Services,Screwfix Direct,14.58,Street Care - Buildings Maintenance,Purchase Screwfix Direct
10/10/2016,Environment & Community Services,Plumb Center Lq,96.67,Street Care - Buildings Maintenance,Purchase Plumb Center Lq
10/10/2016,Children Adult & Health,Gro Hm Passport Office,9.25,Supplies and Services,Purchase Gro Hm Passport Office
10/10/2016,Children Adult & Health,Trainline.Com Ltd,82.70,Supplies and Services,Purchase Trainline.Com Ltd
10/10/2016,Children Adult & Health,Trainline.Com Ltd,378.00,Supplies and Services,Purchase Trainline.Com Ltd
10/10/2016,Environment & Community Services,Amazon UK Marketplace,114.53,Credit Card Charges,Purchase Amazon UK Marketplace
10/10/2016,Children Adult & Health,John Sheppard Butchers,-114.24,School dinners,Credit Voucher John Sheppard Butchers
10/10/2016,Children Adult & Health,John Sheppard Butchers,-89.77,School dinners,Credit Voucher John Sheppard Butchers
10/10/2016,Children Adult & Health,John Sheppard Butchers,-65.20,School dinners,Credit Voucher John Sheppard Butchers
10/10/2016,Children Adult & Health,John Sheppard Butchers,-41.08,School dinners,Credit Voucher John Sheppard Butchers
10/10/2016,Children Adult & Health,John Sheppard Butchers,-39.12,School dinners,Credit Voucher John Sheppard Butchers
10/10/2016,Children Adult & Health,Arthur David (Food Wit,-13.00,School dinners,Credit Voucher Arthur David (Food Wit
10/10/2016,Children Adult & Health,Arthur David (Food Wit,-4.00,School dinners,Credit Voucher Arthur David (Food Wit
10/10/2016,Children Adult & Health,Arthur David (Food Wit,-2.80,School dinners,Credit Voucher Arthur David (Food Wit
10/10/2016,Children Adult & Health,Arthur David (Food Wit,-2.64,School dinners,Credit Voucher Arthur David (Food Wit
10/10/2016,Children Adult & Health,John Sheppard Butchers,1.00,School dinners,Purchase John Sheppard Butchers
10/10/2016,Children Adult & Health,Arthur David (Food Wit,2.84,School dinners,Purchase Arthur David (Food Wit
10/10/2016,Children Adult & Health,Arthur David (Food Wit,4.56,School dinners,Purchase Arthur David (Food Wit
10/10/2016,Children Adult & Health,John Sheppard Butchers,5.97,School dinners,Purchase John Sheppard Butchers
10/10/2016,Children Adult & Health,Arthur David (Food Wit,6.07,School dinners,Purchase Arthur David (Food Wit
10/10/2016,Children Adult & Health,Arthur David (Food Wit,6.18,School dinners,Purchase Arthur David (Food Wit
10/10/2016,Children Adult & Health,Brake Bros Ltd,6.61,School dinners,Purchase Brake Bros Ltd
10/10/2016,Children Adult & Health,Arthur David (Food Wit,9.85,School dinners,Purchase Arthur David (Food Wit
10/10/2016,Children Adult & Health,John Sheppard Butchers,9.99,School dinners,Purchase John Sheppard Butchers
10/10/2016,Children Adult & Health,John Sheppard Butchers,10.37,School dinners,Purchase John Sheppard Butchers
10/10/2016,Children Adult & Health,Arthur David (Food Wit,10.42,School dinners,Purchase Arthur David (Food Wit
10/10/2016,Children Adult & Health,John Sheppard Butchers,10.85,School dinners,Purchase John Sheppard Butchers
10/10/2016,Children Adult & Health,John Sheppard Butchers,11.07,School dinners,Purchase John Sheppard Butchers
10/10/2016,Children Adult & Health,John Sheppard Butchers,11.94,School dinners,Purchase John Sheppard Butchers
10/10/2016,Children Adult & Health,John Sheppard Butchers,12.40,School dinners,Purchase John Sheppard Butchers
10/10/2016,Children Adult & Health,Arthur David (Food Wit,12.40,School dinners,Purchase Arthur David (Food Wit
10/10/2016,Children Adult & Health,Arthur David (Food Wit,13.57,School dinners,Purchase Arthur David (Food Wit
10/10/2016,Children Adult & Health,John Sheppard Butchers,14.63,School dinners,Purchase John Sheppard Butchers
10/10/2016,Children Adult & Health,John Sheppard Butchers,15.21,School dinners,Purchase John Sheppard Butchers
10/10/2016,Children Adult & Health,John Sheppard Butchers,16.52,School dinners,Purchase John Sheppard Butchers
10/10/2016,Children Adult & Health,John Sheppard Butchers,18.86,School dinners,Purchase John Sheppard Butchers
10/10/2016,Children Adult & Health,John Sheppard Butchers,19.86,School dinners,Purchase John Sheppard Butchers
10/10/2016,Children Adult & Health,John Sheppard Butchers,21.12,School dinners,Purchase John Sheppard Butchers
10/10/2016,Children Adult & Health,John Sheppard Butchers,23.17,School dinners,Purchase John Sheppard Butchers
10/10/2016,Children Adult & Health,Arthur David (Food Wit,25.26,School dinners,Purchase Arthur David (Food Wit
10/10/2016,Children Adult & Health,Arthur David (Food Wit,26.23,School dinners,Purchase Arthur David (Food Wit
10/10/2016,Children Adult & Health,Arthur David (Food Wit,26.31,School dinners,Purchase Arthur David (Food Wit
10/10/2016,Children Adult & Health,John Sheppard Butchers,27.11,School dinners,Purchase John Sheppard Butchers
10/10/2016,Children Adult & Health,Arthur David (Food Wit,27.51,School dinners,Purchase Arthur David (Food Wit
10/10/2016,Children Adult & Health,John Sheppard Butchers,27.61,School dinners,Purchase John Sheppard Butchers
10/10/2016,Children Adult & Health,John Sheppard Butchers,29.25,School dinners,Purchase John Sheppard Butchers
10/10/2016,Children Adult & Health,Arthur David (Food Wit,29.46,School dinners,Purchase Arthur David (Food Wit
10/10/2016,Children Adult & Health,Brake Bros Ltd,29.72,School dinners,Purchase Brake Bros Ltd
10/10/2016,Children Adult & Health,Arthur David (Food Wit,30.18,School dinners,Purchase Arthur David (Food Wit
10/10/2016,Children Adult & Health,John Sheppard Butchers,30.42,School dinners,Purchase John Sheppard Butchers
10/10/2016,Children Adult & Health,John Sheppard Butchers,30.71,School dinners,Purchase John Sheppard Butchers
10/10/2016,Children Adult & Health,John Sheppard Butchers,32.00,School dinners,Purchase John Sheppard Butchers
10/10/2016,Children Adult & Health,Arthur David (Food Wit,32.15,School dinners,Purchase Arthur David (Food Wit
10/10/2016,Children Adult & Health,Arthur David (Food Wit,32.21,School dinners,Purchase Arthur David (Food Wit
10/10/2016,Children Adult & Health,John Sheppard Butchers,32.76,School dinners,Purchase John Sheppard Butchers
10/10/2016,Children Adult & Health,John Sheppard Butchers,33.99,School dinners,Purchase John Sheppard Butchers
10/10/2016,Children Adult & Health,John Sheppard Butchers,34.34,School dinners,Purchase John Sheppard Butchers
10/10/2016,Children Adult & Health,John Sheppard Butchers,34.69,School dinners,Purchase John Sheppard Butchers
10/10/2016,Children Adult & Health,John Sheppard Butchers,35.22,School dinners,Purchase John Sheppard Butchers
10/10/2016,Children Adult & Health,Arthur David (Food Wit,35.36,School dinners,Purchase Arthur David (Food Wit
10/10/2016,Children Adult & Health,John Sheppard Butchers,36.27,School dinners,Purchase John Sheppard Butchers
10/10/2016,Children Adult & Health,John Sheppard Butchers,36.62,School dinners,Purchase John Sheppard Butchers
10/10/2016,Children Adult & Health,Arthur David (Food Wit,37.38,School dinners,Purchase Arthur David (Food Wit
10/10/2016,Children Adult & Health,Arthur David (Food Wit,37.78,School dinners,Purchase Arthur David (Food Wit
10/10/2016,Children Adult & Health,John Sheppard Butchers,38.13,School dinners,Purchase John Sheppard Butchers
10/10/2016,Children Adult & Health,John Sheppard Butchers,38.44,School dinners,Purchase John Sheppard Butchers
10/10/2016,Children Adult & Health,John Sheppard Butchers,39.00,School dinners,Purchase John Sheppard Butchers
10/10/2016,Children Adult & Health,John Sheppard Butchers,39.12,School dinners,Purchase John Sheppard Butchers
10/10/2016,Children Adult & Health,John Sheppard Butchers,39.56,School dinners,Purchase John Sheppard Butchers
10/10/2016,Children Adult & Health,John Sheppard Butchers,39.78,School dinners,Purchase John Sheppard Butchers
10/10/2016,Children Adult & Health,Arthur David (Food Wit,40.40,School dinners,Purchase Arthur David (Food Wit
10/10/2016,Children Adult & Health,John Sheppard Butchers,40.60,School dinners,Purchase John Sheppard Butchers
10/10/2016,Children Adult & Health,John Sheppard Butchers,41.08,School dinners,Purchase John Sheppard Butchers
10/10/2016,Children Adult & Health,Arthur David (Food Wit,41.39,School dinners,Purchase Arthur David (Food Wit
10/10/2016,Children Adult & Health,John Sheppard Butchers,41.41,School dinners,Purchase John Sheppard Butchers
10/10/2016,Children Adult & Health,Arthur David (Food Wit,43.28,School dinners,Purchase Arthur David (Food Wit
10/10/2016,Children Adult & Health,Arthur David (Food Wit,43.37,School dinners,Purchase Arthur David (Food Wit
10/10/2016,Children Adult & Health,Arthur David (Food Wit,43.38,School dinners,Purchase Arthur David (Food Wit
10/10/2016,Children Adult & Health,John Sheppard Butchers,45.10,School dinners,Purchase John Sheppard Butchers
10/10/2016,Children Adult & Health,John Sheppard Butchers,45.63,School dinners,Purchase John Sheppard Butchers
10/10/2016,Children Adult & Health,John Sheppard Butchers,45.92,School dinners,Purchase John Sheppard Butchers
10/10/2016,Children Adult & Health,Arthur David (Food Wit,46.75,School dinners,Purchase Arthur David (Food Wit
10/10/2016,Children Adult & Health,Arthur David (Food Wit,46.81,School dinners,Purchase Arthur David (Food Wit
10/10/2016,Children Adult & Health,Arthur David (Food Wit,47.16,School dinners,Purchase Arthur David (Food Wit
10/10/2016,Children Adult & Health,Arthur David (Food Wit,47.67,School dinners,Purchase Arthur David (Food Wit
10/10/2016,Children Adult & Health,John Sheppard Butchers,47.76,School dinners,Purchase John Sheppard Butchers
10/10/2016,Children Adult & Health,Arthur David (Food Wit,48.19,School dinners,Purchase Arthur David (Food Wit
10/10/2016,Children Adult & Health,Brake Bros Ltd,47.23,School dinners,Purchase Brake Bros Ltd
10/10/2016,Children Adult & Health,John Sheppard Butchers,49.43,School dinners,Purchase John Sheppard Butchers
10/10/2016,Children Adult & Health,John Sheppard Butchers,50.02,School dinners,Purchase John Sheppard Butchers
10/10/2016,Children Adult & Health,Arthur David (Food Wit,50.47,School dinners,Purchase Arthur David (Food Wit
10/10/2016,Children Adult & Health,John Sheppard Butchers,50.97,School dinners,Purchase John Sheppard Butchers
10/10/2016,Children Adult & Health,John Sheppard Butchers,51.36,School dinners,Purchase John Sheppard Butchers
10/10/2016,Children Adult & Health,Arthur David (Food Wit,52.29,School dinners,Purchase Arthur David (Food Wit
10/10/2016,Children Adult & Health,Arthur David (Food Wit,53.06,School dinners,Purchase Arthur David (Food Wit
10/10/2016,Children Adult & Health,Arthur David (Food Wit,53.17,School dinners,Purchase Arthur David (Food Wit
10/10/2016,Children Adult & Health,John Sheppard Butchers,54.00,School dinners,Purchase John Sheppard Butchers
10/10/2016,Children Adult & Health,Arthur David (Food Wit,54.95,School dinners,Purchase Arthur David (Food Wit
10/10/2016,Children Adult & Health,Arthur David (Food Wit,55.07,School dinners,Purchase Arthur David (Food Wit
10/10/2016,Children Adult & Health,Arthur David (Food Wit,56.36,School dinners,Purchase Arthur David (Food Wit
10/10/2016,Children Adult & Health,Arthur David (Food Wit,56.49,School dinners,Purchase Arthur David (Food Wit
10/10/2016,Children Adult & Health,John Sheppard Butchers,56.98,School dinners,Purchase John Sheppard Butchers
10/10/2016,Children Adult & Health,Arthur David (Food Wit,57.29,School dinners,Purchase Arthur David (Food Wit
10/10/2016,Children Adult & Health,Arthur David (Food Wit,59.26,School dinners,Purchase Arthur David (Food Wit
10/10/2016,Children Adult & Health,Arthur David (Food Wit,59.52,School dinners,Purchase Arthur David (Food Wit
10/10/2016,Children Adult & Health,Arthur David (Food Wit,60.39,School dinners,Purchase Arthur David (Food Wit
10/10/2016,Children Adult & Health,Arthur David (Food Wit,62.30,School dinners,Purchase Arthur David (Food Wit
10/10/2016,Children Adult & Health,John Sheppard Butchers,62.60,School dinners,Purchase John Sheppard Butchers
10/10/2016,Children Adult & Health,Arthur David (Food Wit,65.10,School dinners,Purchase Arthur David (Food Wit
10/10/2016,Children Adult & Health,John Sheppard Butchers,65.20,School dinners,Purchase John Sheppard Butchers
10/10/2016,Children Adult & Health,John Sheppard Butchers,65.78,School dinners,Purchase John Sheppard Butchers
10/10/2016,Children Adult & Health,Arthur David (Food Wit,66.02,School dinners,Purchase Arthur David (Food Wit
10/10/2016,Children Adult & Health,Arthur David (Food Wit,66.25,School dinners,Purchase Arthur David (Food Wit
10/10/2016,Children Adult & Health,Arthur David (Food Wit,67.19,School dinners,Purchase Arthur David (Food Wit
10/10/2016,Children Adult & Health,John Sheppard Butchers,67.39,School dinners,Purchase John Sheppard Butchers
10/10/2016,Children Adult & Health,Arthur David (Food Wit,68.49,School dinners,Purchase Arthur David (Food Wit
10/10/2016,Children Adult & Health,Arthur David (Food Wit,69.16,School dinners,Purchase Arthur David (Food Wit
10/10/2016,Children Adult & Health,John Sheppard Butchers,70.61,School dinners,Purchase John Sheppard Butchers
10/10/2016,Children Adult & Health,Brake Bros Ltd,72.62,School dinners,Purchase Brake Bros Ltd
10/10/2016,Children Adult & Health,Arthur David (Food Wit,74.39,School dinners,Purchase Arthur David (Food Wit
10/10/2016,Children Adult & Health,Arthur David (Food Wit,75.82,School dinners,Purchase Arthur David (Food Wit
10/10/2016,Children Adult & Health,Brake Bros Ltd,76.56,School dinners,Purchase Brake Bros Ltd
10/10/2016,Children Adult & Health,Arthur David (Food Wit,77.30,School dinners,Purchase Arthur David (Food Wit
10/10/2016,Children Adult & Health,John Sheppard Butchers,81.00,School dinners,Purchase John Sheppard Butchers
10/10/2016,Children Adult & Health,John Sheppard Butchers,82.02,School dinners,Purchase John Sheppard Butchers
10/10/2016,Children Adult & Health,Brake Bros Ltd,84.79,School dinners,Purchase Brake Bros Ltd
10/10/2016,Children Adult & Health,John Sheppard Butchers,86.21,School dinners,Purchase John Sheppard Butchers
10/10/2016,Children Adult & Health,Brake Bros Ltd,86.38,School dinners,Purchase Brake Bros Ltd
10/10/2016,Children Adult & Health,Arthur David (Food Wit,87.04,School dinners,Purchase Arthur David (Food Wit
10/10/2016,Children Adult & Health,John Sheppard Butchers,88.71,School dinners,Purchase John Sheppard Butchers
10/10/2016,Children Adult & Health,John Sheppard Butchers,89.77,School dinners,Purchase John Sheppard Butchers
10/10/2016,Children Adult & Health,Brake Bros Ltd,91.57,School dinners,Purchase Brake Bros Ltd
10/10/2016,Children Adult & Health,John Sheppard Butchers,96.99,School dinners,Purchase John Sheppard Butchers
10/10/2016,Children Adult & Health,Arthur David (Food Wit,99.54,School dinners,Purchase Arthur David (Food Wit
10/10/2016,Children Adult & Health,John Sheppard Butchers,99.69,School dinners,Purchase John Sheppard Butchers
10/10/2016,Children Adult & Health,Arthur David (Food Wit,100.34,School dinners,Purchase Arthur David (Food Wit
10/10/2016,Children Adult & Health,Brake Bros Ltd,106.05,School dinners,Purchase Brake Bros Ltd
10/10/2016,Children Adult & Health,Brake Bros Ltd,109.31,School dinners,Purchase Brake Bros Ltd
10/10/2016,Children Adult & Health,John Sheppard Butchers,114.24,School dinners,Purchase John Sheppard Butchers
10/10/2016,Children Adult & Health,Arthur David (Food Wit,116.00,School dinners,Purchase Arthur David (Food Wit
10/10/2016,Children Adult & Health,Brake Bros Ltd,119.38,School dinners,Purchase Brake Bros Ltd
10/10/2016,Children Adult & Health,Arthur David (Food Wit,120.46,School dinners,Purchase Arthur David (Food Wit
10/10/2016,Children Adult & Health,Brake Bros Ltd,121.71,School dinners,Purchase Brake Bros Ltd
10/10/2016,Children Adult & Health,John Sheppard Butchers,121.97,School dinners,Purchase John Sheppard Butchers
10/10/2016,Children Adult & Health,Brake Bros Ltd,122.89,School dinners,Purchase Brake Bros Ltd
10/10/2016,Children Adult & Health,John Sheppard Butchers,124.14,School dinners,Purchase John Sheppard Butchers
10/10/2016,Children Adult & Health,John Sheppard Butchers,124.14,School dinners,Purchase John Sheppard Butchers
10/10/2016,Children Adult & Health,Brake Bros Ltd,123.99,School dinners,Purchase Brake Bros Ltd
10/10/2016,Children Adult & Health,Arthur David (Food Wit,131.05,School dinners,Purchase Arthur David (Food Wit
10/10/2016,Children Adult & Health,Arthur David (Food Wit,131.47,School dinners,Purchase Arthur David (Food Wit
10/10/2016,Children Adult & Health,Brake Bros Ltd,132.06,School dinners,Purchase Brake Bros Ltd
10/10/2016,Children Adult & Health,John Sheppard Butchers,135.59,School dinners,Purchase John Sheppard Butchers
10/10/2016,Children Adult & Health,Brake Bros Ltd,142.18,School dinners,Purchase Brake Bros Ltd
10/10/2016,Children Adult & Health,Arthur David (Food Wit,144.83,School dinners,Purchase Arthur David (Food Wit
10/10/2016,Children Adult & Health,Brake Bros Ltd,162.22,School dinners,Purchase Brake Bros Ltd
10/10/2016,Children Adult & Health,Brake Bros Ltd,171.02,School dinners,Purchase Brake Bros Ltd
10/10/2016,Children Adult & Health,Brake Bros Ltd,173.57,School dinners,Purchase Brake Bros Ltd
10/10/2016,Children Adult & Health,Brake Bros Ltd,221.66,School dinners,Purchase Brake Bros Ltd
10/10/2016,Children Adult & Health,Arthur David (Food Wit,251.82,School dinners,Purchase Arthur David (Food Wit
10/10/2016,Children Adult & Health,John Sheppard Butchers,263.87,School dinners,Purchase John Sheppard Butchers
10/10/2016,Children Adult & Health,Brake Bros Ltd,270.33,School dinners,Purchase Brake Bros Ltd
10/10/2016,Children Adult & Health,Brake Bros Ltd,286.02,School dinners,Purchase Brake Bros Ltd
10/10/2016,Chief Executive & Corporate Resources,Supplies Team,1.86,Stationery,Purchase Supplies Team
10/10/2016,Chief Executive & Corporate Resources,Supplies Team,1.99,Stationery,Purchase Supplies Team
10/10/2016,Chief Executive & Corporate Resources,Supplies Team,1.99,Stationery,Purchase Supplies Team
10/10/2016,Chief Executive & Corporate Resources,Supplies Team,1.99,Stationery,Purchase Supplies Team
10/10/2016,Chief Executive & Corporate Resources,Supplies Team,2.76,Stationery,Purchase Supplies Team
10/10/2016,Chief Executive & Corporate Resources,Supplies Team,3.98,Stationery,Purchase Supplies Team
10/10/2016,Chief Executive & Corporate Resources,Supplies Team,7.27,Stationery,Purchase Supplies Team
10/10/2016,Chief Executive & Corporate Resources,Supplies Team,14.19,Stationery,Purchase Supplies Team
10/10/2016,Chief Executive & Corporate Resources,Supplies Team,15.21,Stationery,Purchase Supplies Team
10/10/2016,Chief Executive & Corporate Resources,Supplies Team,15.72,Stationery,Purchase Supplies Team
10/10/2016,Chief Executive & Corporate Resources,Supplies Team,15.92,Stationery,Purchase Supplies Team
10/10/2016,Chief Executive & Corporate Resources,Supplies Team,36.29,Stationery,Purchase Supplies Team
10/10/2016,Chief Executive & Corporate Resources,Supplies Team,38.83,Stationery,Purchase Supplies Team
10/10/2016,Chief Executive & Corporate Resources,Supplies Team,53.37,Stationery,Purchase Supplies Team
10/10/2016,Chief Executive & Corporate Resources,Supplies Team,53.76,Stationery,Purchase Supplies Team
10/10/2016,Chief Executive & Corporate Resources,Supplies Team,93.63,Stationery,Purchase Supplies Team
10/10/2016,Chief Executive & Corporate Resources,Supplies Team,154.30,Stationery,Purchase Supplies Team
10/10/2016,Chief Executive & Corporate Resources,Supplies Team,162.83,Stationery,Purchase Supplies Team
10/10/2016,Chief Executive & Corporate Resources,Supplies Team,187.97,Stationery,Purchase Supplies Team
10/10/2016,Environment & Community Services,Bigdug Limited,40.80,Credit Card Charges,Purchase Bigdug Limited
10/10/2016,Children Adult & Health,Trainline.Com Ltd,42.28,Supplies and Services,Purchase Trainline.Com Ltd
10/10/2016,Children Adult & Health,W M Morrisons Plc,5.37,Supplies and Services,Purchase W M Morrisons Plc
10/10/2016,Environment & Community Services,B & Q 1022,41.09,Street Care - Buildings Maintenance,Purchase B & Q 1022
10/10/2016,Children Adult & Health,Tesco Stores 6420,10.00,Project Funding,Purchase Tesco Stores 6420
10/10/2016,Children Adult & Health,Amazon UK Marketplace,7.76,Credit Card Charges,Purchase Amazon UK Marketplace
10/10/2016,Children Adult & Health,Amazon UK Retail,7.95,Credit Card Charges,Purchase Amazon UK Retail
10/10/2016,Children Adult & Health,Tesco Stores 6420,46.43,Credit Card Charges,Purchase Tesco Stores 6420
10/10/2016,Children Adult & Health,Travelodge Website,568.00,Credit Card Charges,Purchase Travelodge Website
10/10/2016,Children Adult & Health,Farmhouse,12.47,Supplies and Services,Purchase Farmhouse
10/10/2016,Children Adult & Health,One Stop 1195,23.80,Supplies and Services,Purchase One Stop 1195
10/10/2016,Environment & Community Services,Prolectric Services Lt,808.80,Credit Card Charges,Purchase Prolectric Services Lt
10/10/2016,Children Adult & Health,Talktalk Telecom,75.00,Credit Card Charges,Purchase Talktalk Telecom
10/10/2016,Environment & Community Services,Trainline.Com Ltd,116.79,Credit Card Charges,Purchase Trainline.Com Ltd
10/10/2016,Environment & Community Services,Trainline.Com Ltd,146.78,Credit Card Charges,Purchase Trainline.Com Ltd
10/10/2016,Children Adult & Health,Tesco Stores 6420,70.09,Supplies and Services,Purchase Tesco Stores 6420
10/10/2016,Children Adult & Health,Bristol Cycle Shack,350.00,Credit Card Charges,Purchase Bristol Cycle Shack
10/10/2016,Environment & Community Services,Screwfix,19.98,Street Care - Buildings Maintenance,Purchase Screwfix
10/10/2016,Environment & Community Services,B & Q 1280,22.10,Street Care - Buildings Maintenance,Purchase B & Q 1280
10/10/2016,Children Adult & Health,Acax348aa Call Cars Br,7.80,Supplies and Services,Purchase Acax348aa Call Cars Br
10/10/2016,Children Adult & Health,Holiday Inn Express Bath,115.99,Supplies and Services,Purchase Holiday Inn Express Bath
10/10/2016,Children Adult & Health,W M Morrisons Plc,28.02,Credit Card Charges,Purchase W M Morrisons Plc
11/10/2016,Children Adults & Health,Amazon UK Marketplace,3.58,Credit Card Charges,Purchase Amazon UK Marketplace
11/10/2016,Children Adults & Health,Amazon UK Retail Amazon.C,22.48,Credit Card Charges,Purchase Amazon UK Retail Amazon.C
11/10/2016,Children Adults & Health,Amazon UK Retail Amazon.C,37.48,Credit Card Charges,Purchase Amazon UK Retail Amazon.C
11/10/2016,Children Adult & Health,Travelodge Website,75.95,Supplies and Services,Purchase Travelodge Website
11/10/2016,Children Adult & Health,Amazon UK Marketplace,91.38,Supplies and Services,Purchase Amazon UK Marketplace
11/10/2016,Environment & Community Services,Amazon UK Marketplace,6.36,Credit Card Charges,Purchase Amazon UK Marketplace
11/10/2016,Children Adult & Health,Amazon UK Marketplace,69.70,Supplies and Services,Purchase Amazon UK Marketplace
11/10/2016,Chief Executive & Corporate Resources,Www.Accounts@iia.Org.U,234.00,Credit Card Charges,Purchase Www.Accounts@iia.Org.U
11/10/2016,Chief Executive & Corporate Resources,Contact Property,336.00,Credit Card Charges,Purchase Contact Property
11/10/2016,Children Adult & Health,Brake Bros Ltd,-36.72,School dinners,Credit Voucher Brake Bros Ltd
11/10/2016,Children Adult & Health,Brake Bros Ltd,-14.38,School dinners,Credit Voucher Brake Bros Ltd
11/10/2016,Children Adult & Health,Brake Bros Ltd,-11.50,School dinners,Credit Voucher Brake Bros Ltd
11/10/2016,Children Adult & Health,Brake Bros Ltd,-7.28,School dinners,Credit Voucher Brake Bros Ltd
11/10/2016,Children Adult & Health,Arthur David (Food Wit,-7.00,School dinners,Credit Voucher Arthur David (Food Wit
11/10/2016,Children Adult & Health,Brake Bros Ltd,-7.00,School dinners,Credit Voucher Brake Bros Ltd
11/10/2016,Children Adult & Health,Arthur David (Food Wit,-6.59,School dinners,Credit Voucher Arthur David (Food Wit
11/10/2016,Children Adult & Health,Arthur David (Food Wit,-6.00,School dinners,Credit Voucher Arthur David (Food Wit
11/10/2016,Children Adult & Health,Brake Bros Ltd,-4.12,School dinners,Credit Voucher Brake Bros Ltd
11/10/2016,Children Adult & Health,Arthur David (Food Wit,-4.00,School dinners,Credit Voucher Arthur David (Food Wit
11/10/2016,Children Adult & Health,Arthur David (Food Wit,-3.38,School dinners,Credit Voucher Arthur David (Food Wit
11/10/2016,Children Adult & Health,Arthur David (Food Wit,-3.38,School dinners,Credit Voucher Arthur David (Food Wit
11/10/2016,Children Adult & Health,Arthur David (Food Wit,-2.00,School dinners,Credit Voucher Arthur David (Food Wit
11/10/2016,Children Adult & Health,Arthur David (Food Wit,-2.00,School dinners,Credit Voucher Arthur David (Food Wit
11/10/2016,Children Adult & Health,Arthur David (Food Wit,-2.00,School dinners,Credit Voucher Arthur David (Food Wit
11/10/2016,Children Adult & Health,Arthur David (Food Wit,-2.00,School dinners,Credit Voucher Arthur David (Food Wit
11/10/2016,Children Adult & Health,Arthur David (Food Wit,-2.00,School dinners,Credit Voucher Arthur David (Food Wit
11/10/2016,Children Adult & Health,Arthur David (Food Wit,-2.00,School dinners,Credit Voucher Arthur David (Food Wit
11/10/2016,Children Adult & Health,Arthur David (Food Wit,-1.00,School dinners,Credit Voucher Arthur David (Food Wit
11/10/2016,Children Adult & Health,Arthur David (Food Wit,-1.00,School dinners,Credit Voucher Arthur David (Food Wit
11/10/2016,Children Adult & Health,John Sheppard Butchers,6.12,School dinners,Purchase John Sheppard Butchers
11/10/2016,Children Adult & Health,Arthur David (Food Wit,8.85,School dinners,Purchase Arthur David (Food Wit
11/10/2016,Children Adult & Health,John Sheppard Butchers,9.99,School dinners,Purchase John Sheppard Butchers
11/10/2016,Children Adult & Health,John Sheppard Butchers,12.67,School dinners,Purchase John Sheppard Butchers
11/10/2016,Children Adult & Health,Arthur David (Food Wit,13.60,School dinners,Purchase Arthur David (Food Wit
11/10/2016,Children Adult & Health,Arthur David (Food Wit,13.60,School dinners,Purchase Arthur David (Food Wit
11/10/2016,Children Adult & Health,John Sheppard Butchers,15.22,School dinners,Purchase John Sheppard Butchers
11/10/2016,Children Adult & Health,John Sheppard Butchers,16.81,School dinners,Purchase John Sheppard Butchers
11/10/2016,Children Adult & Health,John Sheppard Butchers,18.21,School dinners,Purchase John Sheppard Butchers
11/10/2016,Children Adult & Health,John Sheppard Butchers,18.79,School dinners,Purchase John Sheppard Butchers
11/10/2016,Children Adult & Health,Brake Bros Ltd,20.88,School dinners,Purchase Brake Bros Ltd
11/10/2016,Children Adult & Health,Arthur David (Food Wit,23.82,School dinners,Purchase Arthur David (Food Wit
11/10/2016,Children Adult & Health,John Sheppard Butchers,25.40,School dinners,Purchase John Sheppard Butchers
11/10/2016,Children Adult & Health,John Sheppard Butchers,28.15,School dinners,Purchase John Sheppard Butchers
11/10/2016,Children Adult & Health,John Sheppard Butchers,28.40,School dinners,Purchase John Sheppard Butchers
11/10/2016,Children Adult & Health,John Sheppard Butchers,29.13,School dinners,Purchase John Sheppard Butchers
11/10/2016,Children Adult & Health,Arthur David (Food Wit,40.79,School dinners,Purchase Arthur David (Food Wit
11/10/2016,Children Adult & Health,Brake Bros Ltd,44.04,School dinners,Purchase Brake Bros Ltd
11/10/2016,Children Adult & Health,John Sheppard Butchers,44.68,School dinners,Purchase John Sheppard Butchers
11/10/2016,Children Adult & Health,John Sheppard Butchers,48.86,School dinners,Purchase John Sheppard Butchers
11/10/2016,Children Adult & Health,Brake Bros Ltd,52.71,School dinners,Purchase Brake Bros Ltd
11/10/2016,Children Adult & Health,Brake Bros Ltd,54.71,School dinners,Purchase Brake Bros Ltd
11/10/2016,Children Adult & Health,Brake Bros Ltd,55.94,School dinners,Purchase Brake Bros Ltd
11/10/2016,Children Adult & Health,John Sheppard Butchers,57.53,School dinners,Purchase John Sheppard Butchers
11/10/2016,Children Adult & Health,Brake Bros Ltd,61.49,School dinners,Purchase Brake Bros Ltd
11/10/2016,Children Adult & Health,Brake Bros Ltd,61.62,School dinners,Purchase Brake Bros Ltd
11/10/2016,Children Adult & Health,Brake Bros Ltd,63.66,School dinners,Purchase Brake Bros Ltd
11/10/2016,Children Adult & Health,John Sheppard Butchers,70.15,School dinners,Purchase John Sheppard Butchers
11/10/2016,Children Adult & Health,Arthur David (Food Wit,73.32,School dinners,Purchase Arthur David (Food Wit
11/10/2016,Children Adult & Health,Brake Bros Ltd,74.67,School dinners,Purchase Brake Bros Ltd
11/10/2016,Children Adult & Health,Arthur David (Food Wit,86.91,School dinners,Purchase Arthur David (Food Wit
11/10/2016,Children Adult & Health,Brake Bros Ltd,89.20,School dinners,Purchase Brake Bros Ltd
11/10/2016,Children Adult & Health,Brake Bros Ltd,93.03,School dinners,Purchase Brake Bros Ltd
11/10/2016,Children Adult & Health,Brake Bros Ltd,100.82,School dinners,Purchase Brake Bros Ltd
11/10/2016,Children Adult & Health,Brake Bros Ltd,101.57,School dinners,Purchase Brake Bros Ltd
11/10/2016,Children Adult & Health,Brake Bros Ltd,107.73,School dinners,Purchase Brake Bros Ltd
11/10/2016,Children Adult & Health,Brake Bros Ltd,115.94,School dinners,Purchase Brake Bros Ltd
11/10/2016,Children Adult & Health,Brake Bros Ltd,116.71,School dinners,Purchase Brake Bros Ltd
11/10/2016,Children Adult & Health,Brake Bros Ltd,121.33,School dinners,Purchase Brake Bros Ltd
11/10/2016,Children Adult & Health,Brake Bros Ltd,132.34,School dinners,Purchase Brake Bros Ltd
11/10/2016,Children Adult & Health,John Sheppard Butchers,136.27,School dinners,Purchase John Sheppard Butchers
11/10/2016,Children Adult & Health,Brake Bros Ltd,135.32,School dinners,Purchase Brake Bros Ltd
11/10/2016,Children Adult & Health,Brake Bros Ltd,141.47,School dinners,Purchase Brake Bros Ltd
11/10/2016,Children Adult & Health,Brake Bros Ltd,150.43,School dinners,Purchase Brake Bros Ltd
11/10/2016,Children Adult & Health,Brake Bros Ltd,159.36,School dinners,Purchase Brake Bros Ltd
11/10/2016,Children Adult & Health,John Sheppard Butchers,178.59,School dinners,Purchase John Sheppard Butchers
11/10/2016,Children Adult & Health,Brake Bros Ltd,192.17,School dinners,Purchase Brake Bros Ltd
11/10/2016,Chief Executive & Corporate Resources,Supplies Team,3.98,Stationery,Purchase Supplies Team
11/10/2016,Chief Executive & Corporate Resources,Supplies Team,57.25,Stationery,Purchase Supplies Team
11/10/2016,Children Adult & Health,New Look 1816,-5.00,Supplies and Services,Credit Voucher New Look 1816
11/10/2016,Children Adult & Health,Greggs - S1486,7.30,Supplies and Services,Purchase Greggs - S1486
11/10/2016,Children Adult & Health,Central Convenience Stor,17.00,Supplies and Services,Purchase Central Convenience Stor
11/10/2016,Children Adult & Health,Primark Stores Ltd,20.00,Supplies and Services,Purchase Primark Stores Ltd
11/10/2016,Children Adult & Health,Central Convenience Stor,23.80,Supplies and Services,Purchase Central Convenience Stor
11/10/2016,Children Adult & Health,Tesco Stores 6420,32.00,Supplies and Services,Purchase Tesco Stores 6420
11/10/2016,Children Adult & Health,Currys Online,189.99,Supplies and Services,Purchase Currys Online
11/10/2016,Children Adult & Health,Tesco Stores 3471,5.69,Supplies and Services,Purchase Tesco Stores 3471
11/10/2016,Chief Executive & Corporate Resources,Amazon UK Marketplace,10.49,Credit Card Charges,Purchase Amazon UK Marketplace
11/10/2016,Children Adult & Health,Avenue Cafe,8.50,Supplies and Services,Purchase Avenue Cafe
11/10/2016,Children Adult & Health,Martin Mccoll,66.00,Supplies and Services,Purchase Martin McColl
11/10/2016,Children Adult & Health,Argos Retail Group,186.94,Supplies and Services,Purchase Argos Retail Group
11/10/2016,Children Adult & Health,Trainline,4.00,Credit Card Charges,Purchase Trainline
11/10/2016,Children Adult & Health,Trainline.Com Ltd,75.48,Credit Card Charges,Purchase Trainline.Com Ltd
11/10/2016,Children Adult & Health,Tesco Stores 6420,83.13,Credit Card Charges,Purchase Tesco Stores 6420
11/10/2016,Children Adult & Health,Amazon UK Marketplace,127.81,Credit Card Charges,Purchase Amazon UK Marketplace
11/10/2016,Children Adult & Health,Amazon UK Marketplace,157.44,Credit Card Charges,Purchase Amazon UK Marketplace
11/10/2016,Children Adult & Health,Capitalhairandbeau,253.28,Credit Card Charges,Purchase Capitalhairandbeau
11/10/2016,Children Adult & Health,Aldi,8.83,Supplies and Services,Purchase Aldi
11/10/2016,Children Adult & Health,Tesco Stores 3471,13.83,Supplies and Services,Purchase Tesco Stores 3471
11/10/2016,Children Adult & Health,Amazon UK Retail,23.28,Supplies and Services,Purchase Amazon UK Retail
11/10/2016,Children Adult & Health,Booker Limited Bristol,80.03,Credit Card Charges,Purchase Booker Limited Bristol
11/10/2016,Children Adult & Health,Paypal,23.99,Supplies and Services,Purchase Paypal
11/10/2016,Environment & Community Services,Www.Lombardiniengines.,65.99,Credit Card Charges,Purchase Www.Lombardiniengines.
11/10/2016,Children Adult & Health,Tesco Store 3539,-2.00,Supplies and Services,Credit Voucher Tesco Store 3539
11/10/2016,Environment & Community Services,Tp Thornbury,4.44,Street Care - Buildings Maintenance,Purchase Tp Thornbury
11/10/2016,Children Adult & Health,Asda Superstore,158.27,Supplies and Services,Purchase Asda Superstore
11/10/2016,Children Adult & Health,Argos Ltd,179.99,Supplies and Services,Purchase Argos Ltd
11/10/2016,Environment & Community Services,Raycox Turf Ltd,88.37,Street Care - Buildings Maintenance,Purchase Raycox Turf Ltd
11/10/2016,Environment & Community Services,Country Style Supplies,249.86,Street Care - Buildings Maintenance,Purchase Country Style Supplies
11/10/2016,Children Adult & Health,Holiday Inn Express Bath,115.99,Supplies and Services,Purchase Holiday Inn Express Bath
11/10/2016,Chief Executive & Corporate Resources,Expedia,430.00,Credit Card Charges,Purchase Expedia
11/10/2016,Children Adult & Health,W M Morrisons Plc,11.06,Credit Card Charges,Purchase W M Morrisons Plc
12/10/2016,Environment & Community Services,Kellaway Bld,4.55,Street Care - Buildings Maintenance,Purchase Kellaway Bld
12/10/2016,Environment & Community Services,Screwfix Direct,31.86,Street Care - Buildings Maintenance,Purchase Screwfix Direct
12/10/2016,Children Adult & Health,Tesco Direct,222.00,Supplies and Services,Purchase Tesco Direct
12/10/2016,Environment & Community Services,B&q Direct,80.00,Supplies and Services,Purchase B&q Direct
12/10/2016,Chief Executive & Corporate Resources,Bt Conferencing,214.56,Credit Card Charges,Purchase Bt Conferencing
12/10/2016,Children Adult & Health,Arthur David (Food Wit,2.78,School dinners,Purchase Arthur David (Food Wit
12/10/2016,Children Adult & Health,Arthur David (Food Wit,3.00,School dinners,Purchase Arthur David (Food Wit
12/10/2016,Children Adult & Health,Arthur David (Food Wit,4.66,School dinners,Purchase Arthur David (Food Wit
12/10/2016,Children Adult & Health,Arthur David (Food Wit,5.12,School dinners,Purchase Arthur David (Food Wit
12/10/2016,Children Adult & Health,Arthur David (Food Wit,7.20,School dinners,Purchase Arthur David (Food Wit
12/10/2016,Children Adult & Health,Arthur David (Food Wit,7.90,School dinners,Purchase Arthur David (Food Wit
12/10/2016,Children Adult & Health,Arthur David (Food Wit,8.20,School dinners,Purchase Arthur David (Food Wit
12/10/2016,Children Adult & Health,Arthur David (Food Wit,8.22,School dinners,Purchase Arthur David (Food Wit
12/10/2016,Children Adult & Health,Arthur David (Food Wit,9.60,School dinners,Purchase Arthur David (Food Wit
12/10/2016,Children Adult & Health,Arthur David (Food Wit,9.93,School dinners,Purchase Arthur David (Food Wit
12/10/2016,Children Adult & Health,Arthur David (Food Wit,10.10,School dinners,Purchase Arthur David (Food Wit
12/10/2016,Children Adult & Health,Arthur David (Food Wit,13.19,School dinners,Purchase Arthur David (Food Wit
12/10/2016,Children Adult & Health,Arthur David (Food Wit,13.60,School dinners,Purchase Arthur David (Food Wit
12/10/2016,Children Adult & Health,Arthur David (Food Wit,13.60,School dinners,Purchase Arthur David (Food Wit
12/10/2016,Children Adult & Health,Arthur David (Food Wit,14.30,School dinners,Purchase Arthur David (Food Wit
12/10/2016,Children Adult & Health,Arthur David (Food Wit,14.30,School dinners,Purchase Arthur David (Food Wit
12/10/2016,Children Adult & Health,Arthur David (Food Wit,14.70,School dinners,Purchase Arthur David (Food Wit
12/10/2016,Children Adult & Health,Arthur David (Food Wit,17.10,School dinners,Purchase Arthur David (Food Wit
12/10/2016,Children Adult & Health,Arthur David (Food Wit,17.30,School dinners,Purchase Arthur David (Food Wit
12/10/2016,Children Adult & Health,Arthur David (Food Wit,18.79,School dinners,Purchase Arthur David (Food Wit
12/10/2016,Children Adult & Health,Arthur David (Food Wit,19.29,School dinners,Purchase Arthur David (Food Wit
12/10/2016,Children Adult & Health,Arthur David (Food Wit,19.96,School dinners,Purchase Arthur David (Food Wit
12/10/2016,Children Adult & Health,Arthur David (Food Wit,20.12,School dinners,Purchase Arthur David (Food Wit
12/10/2016,Children Adult & Health,Arthur David (Food Wit,22.70,School dinners,Purchase Arthur David (Food Wit
12/10/2016,Children Adult & Health,Arthur David (Food Wit,24.57,School dinners,Purchase Arthur David (Food Wit
12/10/2016,Children Adult & Health,Arthur David (Food Wit,25.06,School dinners,Purchase Arthur David (Food Wit
12/10/2016,Children Adult & Health,Arthur David (Food Wit,25.79,School dinners,Purchase Arthur David (Food Wit
12/10/2016,Children Adult & Health,Arthur David (Food Wit,27.44,School dinners,Purchase Arthur David (Food Wit
12/10/2016,Children Adult & Health,Arthur David (Food Wit,28.29,School dinners,Purchase Arthur David (Food Wit
12/10/2016,Children Adult & Health,Arthur David (Food Wit,32.08,School dinners,Purchase Arthur David (Food Wit
12/10/2016,Children Adult & Health,Arthur David (Food Wit,39.77,School dinners,Purchase Arthur David (Food Wit
12/10/2016,Children Adult & Health,Arthur David (Food Wit,40.01,School dinners,Purchase Arthur David (Food Wit
12/10/2016,Children Adult & Health,Arthur David (Food Wit,41.13,School dinners,Purchase Arthur David (Food Wit
12/10/2016,Children Adult & Health,Brake Bros Ltd,48.35,School dinners,Purchase Brake Bros Ltd
12/10/2016,Children Adult & Health,Arthur David (Food Wit,48.62,School dinners,Purchase Arthur David (Food Wit
12/10/2016,Children Adult & Health,Arthur David (Food Wit,52.25,School dinners,Purchase Arthur David (Food Wit
12/10/2016,Children Adult & Health,Arthur David (Food Wit,56.51,School dinners,Purchase Arthur David (Food Wit
12/10/2016,Children Adult & Health,Brake Bros Ltd,61.29,School dinners,Purchase Brake Bros Ltd
12/10/2016,Children Adult & Health,Arthur David (Food Wit,67.78,School dinners,Purchase Arthur David (Food Wit
12/10/2016,Children Adult & Health,Brake Bros Ltd,71.84,School dinners,Purchase Brake Bros Ltd
12/10/2016,Children Adult & Health,Brake Bros Ltd,74.13,School dinners,Purchase Brake Bros Ltd
12/10/2016,Children Adult & Health,Brake Bros Ltd,78.68,School dinners,Purchase Brake Bros Ltd
12/10/2016,Children Adult & Health,Brake Bros Ltd,84.49,School dinners,Purchase Brake Bros Ltd
12/10/2016,Children Adult & Health,Brake Bros Ltd,91.62,School dinners,Purchase Brake Bros Ltd
12/10/2016,Children Adult & Health,Brake Bros Ltd,90.78,School dinners,Purchase Brake Bros Ltd
12/10/2016,Children Adult & Health,Brake Bros Ltd,93.14,School dinners,Purchase Brake Bros Ltd
12/10/2016,Children Adult & Health,Arthur David (Food Wit,103.73,School dinners,Purchase Arthur David (Food Wit
12/10/2016,Children Adult & Health,Brake Bros Ltd,103.25,School dinners,Purchase Brake Bros Ltd
12/10/2016,Children Adult & Health,Brake Bros Ltd,116.15,School dinners,Purchase Brake Bros Ltd
12/10/2016,Children Adult & Health,Brake Bros Ltd,116.11,School dinners,Purchase Brake Bros Ltd
12/10/2016,Children Adult & Health,Brake Bros Ltd,119.46,School dinners,Purchase Brake Bros Ltd
12/10/2016,Children Adult & Health,Brake Bros Ltd,120.62,School dinners,Purchase Brake Bros Ltd
12/10/2016,Children Adult & Health,Brake Bros Ltd,119.52,School dinners,Purchase Brake Bros Ltd
12/10/2016,Children Adult & Health,Brake Bros Ltd,129.90,School dinners,Purchase Brake Bros Ltd
12/10/2016,Children Adult & Health,Brake Bros Ltd,135.15,School dinners,Purchase Brake Bros Ltd
12/10/2016,Children Adult & Health,Brake Bros Ltd,150.81,School dinners,Purchase Brake Bros Ltd
12/10/2016,Children Adult & Health,Brake Bros Ltd,158.79,School dinners,Purchase Brake Bros Ltd
12/10/2016,Children Adult & Health,Brake Bros Ltd,173.09,School dinners,Purchase Brake Bros Ltd
12/10/2016,Children Adult & Health,Brake Bros Ltd,175.68,School dinners,Purchase Brake Bros Ltd
12/10/2016,Children Adult & Health,Brake Bros Ltd,178.05,School dinners,Purchase Brake Bros Ltd
12/10/2016,Children Adult & Health,Brake Bros Ltd,189.85,School dinners,Purchase Brake Bros Ltd
12/10/2016,Children Adult & Health,Brake Bros Ltd,244.00,School dinners,Purchase Brake Bros Ltd
12/10/2016,Chief Executive & Corporate Resources,Supplies Team,21.96,Stationery,Purchase Supplies Team
12/10/2016,Environment & Community Services,Bigdug Limited,571.20,Supplies and Services,Purchase Bigdug Limited
12/10/2016,Chief Executive & Corporate Resources,Www.Candorservices.Co.,514.00,Credit Card Charges,Purchase Www.Candorservices.Co.
12/10/2016,Environment & Community Services,Kent Bldng Plastic,-38.36,Street Care - Buildings Maintenance,Credit Voucher Kent Bldng Plastic
12/10/2016,Environment & Community Services,Howdens - Warmley Dc93,9.76,Street Care - Buildings Maintenance,Purchase Howdens - Warmley Dc93
12/10/2016,Environment & Community Services,Www.Trulypvc.Com,16.87,Supplies and Services,Purchase Www.Trulypvc.Com
12/10/2016,Environment & Community Services,Kent Bldng Plastic,85.82,Street Care - Buildings Maintenance,Purchase Kent Bldng Plastic
12/10/2016,Children Adult & Health,Amazon UK Marketplace,10.92,Credit Card Charges,Purchase Amazon UK Marketplace
12/10/2016,Children Adult & Health,Argos,149.98,Credit Card Charges,Purchase Argos
12/10/2016,Children Adult & Health,Timpson Ltd,14.99,Prop.Serv. General Repairs,Purchase Timpson Ltd
12/10/2016,Children Adult & Health,Martin Mccolls,22.08,Prop.Serv. General Repairs,Purchase Martin McColls
12/10/2016,Children Adult & Health,Card Factory,8.91,Supplies and Services,Purchase Card Factory
12/10/2016,Children Adult & Health,Trainline.Com Ltd,157.49,Supplies and Services,Purchase Trainline.Com Ltd
12/10/2016,Children Adult & Health,Sainsburys Smkt,6.00,Supplies and Services,Purchase Sainsburys Smkt
12/10/2016,Children Adult & Health,The Babbacombe Hotel,243.00,Credit Card Charges,Purchase The Babbacombe Hotel
12/10/2016,Children Adult & Health,Martin Mccolls,23.80,Supplies and Services,Purchase Martin McColls
12/10/2016,Children Adult & Health,Martin Mccolls,23.80,Supplies and Services,Purchase Martin McColls
12/10/2016,Children Adult & Health,Martin Mccolls,23.80,Supplies and Services,Purchase Martin McColls
12/10/2016,Environment & Community Services,Travelodge Website,167.00,Credit Card Charges,Purchase Travelodge Website
12/10/2016,Environment & Community Services,B & Q 1280,1.53,Street Care - Buildings Maintenance,Purchase B & Q 1280
12/10/2016,Children Adult & Health,McDonalds,3.08,Supplies and Services,Purchase McDonalds
12/10/2016,Children Adult & Health,Sainsburys Smkt,5.97,Supplies and Services,Purchase Sainsburys Smkt
12/10/2016,Children Adult & Health,Currys Superstore,330.82,Supplies and Services,Purchase Currys Superstore
12/10/2016,Children Adult & Health,Botteginos,18.35,Supplies and Services,Purchase Botteginos
12/10/2016,Chief Executive & Corporate Resources,Paypal,60.00,Credit Card Charges,Purchase Paypal
12/10/2016,Children Adult & Health,W M Morrisons Plc,27.06,Credit Card Charges,Purchase W M Morrisons Plc
13/10/2016,Environment & Community Services,Screwfix,8.32,Street Care - Buildings Maintenance,Purchase Screwfix
13/10/2016,Children Adult & Health,"Amazon Svcs Europe,sar",9.26,Supplies and Services,"Purchase Amazon Svcs Europe,sar"
13/10/2016,Children Adult & Health,Amazon UK Marketplace,13.50,Supplies and Services,Purchase Amazon UK Marketplace
13/10/2016,Children Adult & Health,"Amazon Svcs Europe,sar",24.98,Supplies and Services,"Purchase Amazon Svcs Europe,sar"
13/10/2016,Environment & Community Services,Love2shop.Co.Uk,100.00,Supplies and Services,Purchase Love2shop.Co.Uk
13/10/2016,Chief Executive & Corporate Resources,Premier Inn 44533710,105.00,Supplies and Services,Purchase Premier Inn 44533710
13/10/2016,Children Adult & Health,Brake Bros Ltd,-6.80,School dinners,Credit Voucher Brake Bros Ltd
13/10/2016,Children Adult & Health,Brake Bros Ltd,-2.02,School dinners,Credit Voucher Brake Bros Ltd
13/10/2016,Children Adult & Health,Arthur David (Food Wit,13.60,School dinners,Purchase Arthur David (Food Wit
13/10/2016,Children Adult & Health,Arthur David (Food Wit,18.72,School dinners,Purchase Arthur David (Food Wit
13/10/2016,Children Adult & Health,Arthur David (Food Wit,25.27,School dinners,Purchase Arthur David (Food Wit
13/10/2016,Children Adult & Health,Brake Bros Ltd,41.35,School dinners,Purchase Brake Bros Ltd
13/10/2016,Children Adult & Health,Brake Bros Ltd,47.44,School dinners,Purchase Brake Bros Ltd
13/10/2016,Children Adult & Health,Arthur David (Food Wit,51.40,School dinners,Purchase Arthur David (Food Wit
13/10/2016,Children Adult & Health,Brake Bros Ltd,52.89,School dinners,Purchase Brake Bros Ltd
13/10/2016,Children Adult & Health,Brake Bros Ltd,57.60,School dinners,Purchase Brake Bros Ltd
13/10/2016,Children Adult & Health,Brake Bros Ltd,59.27,School dinners,Purchase Brake Bros Ltd
13/10/2016,Children Adult & Health,Arthur David (Food Wit,60.95,School dinners,Purchase Arthur David (Food Wit
13/10/2016,Children Adult & Health,Brake Bros Ltd,64.82,School dinners,Purchase Brake Bros Ltd
13/10/2016,Children Adult & Health,Brake Bros Ltd,69.75,School dinners,Purchase Brake Bros Ltd
13/10/2016,Children Adult & Health,Brake Bros Ltd,80.96,School dinners,Purchase Brake Bros Ltd
13/10/2016,Children Adult & Health,Brake Bros Ltd,91.66,School dinners,Purchase Brake Bros Ltd
13/10/2016,Children Adult & Health,Brake Bros Ltd,94.67,School dinners,Purchase Brake Bros Ltd
13/10/2016,Children Adult & Health,Brake Bros Ltd,98.25,School dinners,Purchase Brake Bros Ltd
13/10/2016,Children Adult & Health,Brake Bros Ltd,100.97,School dinners,Purchase Brake Bros Ltd
13/10/2016,Children Adult & Health,Brake Bros Ltd,101.85,School dinners,Purchase Brake Bros Ltd
13/10/2016,Children Adult & Health,Brake Bros Ltd,106.12,School dinners,Purchase Brake Bros Ltd
13/10/2016,Children Adult & Health,Brake Bros Ltd,105.93,School dinners,Purchase Brake Bros Ltd
13/10/2016,Children Adult & Health,Brake Bros Ltd,108.59,School dinners,Purchase Brake Bros Ltd
13/10/2016,Children Adult & Health,Brake Bros Ltd,108.58,School dinners,Purchase Brake Bros Ltd
13/10/2016,Children Adult & Health,Brake Bros Ltd,109.98,School dinners,Purchase Brake Bros Ltd
13/10/2016,Children Adult & Health,Brake Bros Ltd,110.56,School dinners,Purchase Brake Bros Ltd
13/10/2016,Children Adult & Health,Brake Bros Ltd,111.43,School dinners,Purchase Brake Bros Ltd
13/10/2016,Children Adult & Health,Brake Bros Ltd,113.58,School dinners,Purchase Brake Bros Ltd
13/10/2016,Children Adult & Health,Brake Bros Ltd,156.42,School dinners,Purchase Brake Bros Ltd
13/10/2016,Children Adult & Health,Brake Bros Ltd,169.12,School dinners,Purchase Brake Bros Ltd
13/10/2016,Children Adult & Health,Brake Bros Ltd,182.93,School dinners,Purchase Brake Bros Ltd
13/10/2016,Children Adult & Health,Brake Bros Ltd,187.13,School dinners,Purchase Brake Bros Ltd
13/10/2016,Children Adult & Health,Brake Bros Ltd,190.14,School dinners,Purchase Brake Bros Ltd
13/10/2016,Children Adult & Health,Brake Bros Ltd,206.45,School dinners,Purchase Brake Bros Ltd
13/10/2016,Children Adult & Health,Brake Bros Ltd,216.43,School dinners,Purchase Brake Bros Ltd
13/10/2016,Children Adult & Health,Brake Bros Ltd,229.40,School dinners,Purchase Brake Bros Ltd
13/10/2016,Children Adult & Health,Brake Bros Ltd,233.23,School dinners,Purchase Brake Bros Ltd
13/10/2016,Children Adult & Health,Brake Bros Ltd,234.89,School dinners,Purchase Brake Bros Ltd
13/10/2016,Chief Executive & Corporate Resources,Supplies Team,0.45,Stationery,Purchase Supplies Team
13/10/2016,Chief Executive & Corporate Resources,Supplies Team,0.99,Stationery,Purchase Supplies Team
13/10/2016,Chief Executive & Corporate Resources,Supplies Team,1.74,Stationery,Purchase Supplies Team
13/10/2016,Chief Executive & Corporate Resources,Supplies Team,5.48,Stationery,Purchase Supplies Team
13/10/2016,Chief Executive & Corporate Resources,Supplies Team,5.50,Stationery,Purchase Supplies Team
13/10/2016,Chief Executive & Corporate Resources,Supplies Team,5.94,Stationery,Purchase Supplies Team
13/10/2016,Chief Executive & Corporate Resources,Supplies Team,9.90,Stationery,Purchase Supplies Team
13/10/2016,Chief Executive & Corporate Resources,Supplies Team,14.59,Stationery,Purchase Supplies Team
13/10/2016,Chief Executive & Corporate Resources,Supplies Team,19.57,Stationery,Purchase Supplies Team
13/10/2016,Chief Executive & Corporate Resources,Supplies Team,28.07,Stationery,Purchase Supplies Team
13/10/2016,Chief Executive & Corporate Resources,Supplies Team,34.56,Stationery,Purchase Supplies Team
13/10/2016,Chief Executive & Corporate Resources,Supplies Team,92.18,Stationery,Purchase Supplies Team
13/10/2016,Chief Executive & Corporate Resources,Supplies Team,161.89,Stationery,Purchase Supplies Team
13/10/2016,Environment & Community Services,"Amazon Svcs Europe,sar",11.99,Credit Card Charges,"Purchase Amazon Svcs Europe,sar"
13/10/2016,Environment & Community Services,Premier Inn 44033690,161.50,Credit Card Charges,Purchase Premier Inn 44033690
13/10/2016,Environment & Community Services,Premier Inn 44033690,161.50,Credit Card Charges,Purchase Premier Inn 44033690
13/10/2016,Environment & Community Services,Premier Inn 44033690,161.50,Credit Card Charges,Purchase Premier Inn 44033690
13/10/2016,Environment & Community Services,Premier Inn 44033690,161.50,Credit Card Charges,Purchase Premier Inn 44033690
13/10/2016,Environment & Community Services,Premier Inn 44033690,807.50,Credit Card Charges,Purchase Premier Inn 44033690
13/10/2016,Chief Executive & Corporate Resources,Amazon UK Marketplace,4.97,Credit Card Charges,Purchase Amazon UK Marketplace
13/10/2016,Chief Executive & Corporate Resources,Amazon UK Marketplace,12.93,Credit Card Charges,Purchase Amazon UK Marketplace
13/10/2016,Chief Executive & Corporate Resources,Eb *employment Law Day,60.00,Credit Card Charges,Purchase Eb *employment Law Day
13/10/2016,Children Adult & Health,Costcutter 13575,30.00,Supplies and Services,Purchase Costcutter 13575
13/10/2016,Environment & Community Services,Irm Bristol Ltd,31.68,Supplies and Services,Purchase Irm Bristol Ltd
13/10/2016,Children Adult & Health,Www.Livefoods.Co.U,13.92,Credit Card Charges,Purchase Www.Livefoods.Co.U
13/10/2016,Children Adult & Health,Amazon UK Retail,23.96,Credit Card Charges,Purchase Amazon UK Retail
13/10/2016,Children Adult & Health,Makro Self Service Bristo,277.09,Supplies and Services,Purchase Makro Self Service Bristo
13/10/2016,Environment & Community Services,Bristol City Council,3.20,Credit Card Charges,Purchase Bristol City Council
13/10/2016,Chief Executive & Corporate Resources,Amazon UK Retail,10.11,Supplies and Services,Purchase Amazon UK Retail
13/10/2016,Chief Executive & Corporate Resources,Amazon UK Marketplace,17.20,Supplies and Services,Purchase Amazon UK Marketplace
13/10/2016,Children Adult & Health,Freshco Fish Marke,7.00,Supplies and Services,Purchase Freshco Fish Marke
13/10/2016,Children Adult & Health,P V Turner Fruit & Veg,16.34,Supplies and Services,Purchase P V Turner Fruit & Veg
13/10/2016,Children Adult & Health,Asda Superstore,20.00,Supplies and Services,Purchase Asda Superstore
13/10/2016,Children Adult & Health,Poundstretcher 208,26.27,Supplies and Services,Purchase Poundstretcher 208
13/10/2016,Children Adult & Health,Sainsburys S/mkts,26.80,Supplies and Services,Purchase Sainsburys S/Mkts
13/10/2016,Children Adult & Health,Sainsburys S/mkt,47.80,Supplies and Services,Purchase Sainsburys S/Mkt
13/10/2016,Children Adult & Health,Poundworld,9.00,Credit Card Charges,Purchase Poundworld
13/10/2016,Children Adult & Health,Poundland Ltd 1709,31.50,Credit Card Charges,Purchase Poundland Ltd 1709
13/10/2016,Children Adult & Health,Boots The Chemist,32.42,Credit Card Charges,Purchase Boots The Chemist
13/10/2016,Children Adult & Health,Argos,35.97,Credit Card Charges,Purchase Argos
13/10/2016,Children Adult & Health,World Snooker Services,101.50,Credit Card Charges,Purchase World Snooker Services
13/10/2016,Children Adult & Health,Amazon UK Retail Amazon.C,12.80,Credit Card Charges,Purchase Amazon UK Retail Amazon.C
13/10/2016,Children Adult & Health,Tim Franklin Pool & Sn,456.00,Credit Card Charges,Purchase Tim Franklin Pool & Sn
13/10/2016,Environment & Community Services,Asda Home Shopping,44.22,Credit Card Charges,Purchase Asda Home Shopping
13/10/2016,Environment & Community Services,Tp Bristol Stoke G,16.97,Street Care - Buildings Maintenance,Purchase Tp Bristol Stoke G
13/10/2016,Children Adult & Health,Kings Food And Wine,10.50,Supplies and Services,Purchase Kings Food And Wine
13/10/2016,Children Adult & Health,Costcutter,66.50,Supplies and Services,Purchase Costcutter
13/10/2016,Children Adult & Health,Currys S/s,290.83,Supplies and Services,Purchase Currys S/S
13/10/2016,Children Adult & Health,Www.Asos.Com,85.00,Supplies and Services,Purchase Www.Asos.Com
13/10/2016,Children Adult & Health,Burger King,5.99,Supplies and Services,Purchase Burger King
13/10/2016,Children Adult & Health,One Stop 1195,20.00,Supplies and Services,Purchase One Stop 1195
13/10/2016,Children Adult & Health,Allpay Moto (Callpay/ivr,368.20,Supplies and Services,Purchase Allpay Moto (Callpay/Ivr
13/10/2016,Children Adult & Health,W M Morrisons Plc,9.95,Credit Card Charges,Purchase W M Morrisons Plc
13/10/2016,Children Adult & Health,Booker Limited Bristol,311.13,Credit Card Charges,Purchase Booker Limited Bristol
14/10/2016,Environment & Community Services,B & Q 1280,7.41,Street Care - Buildings Maintenance,Purchase B & Q 1280
14/10/2016,Children Adult & Health,Amazon UK Marketplace,8.74,Supplies and Services,Purchase Amazon UK Marketplace
14/10/2016,Children Adult & Health,Amazon UK Marketplace,9.70,Supplies and Services,Purchase Amazon UK Marketplace
14/10/2016,Children Adult & Health,Amazon UK Marketplace,9.99,Supplies and Services,Purchase Amazon UK Marketplace
14/10/2016,Children Adult & Health,Amazon UK Marketplace,13.81,Supplies and Services,Purchase Amazon UK Marketplace
14/10/2016,Children Adult & Health,Amazon UK Marketplace,13.99,Supplies and Services,Purchase Amazon UK Marketplace
14/10/2016,Children Adult & Health,Amazon UK Marketplace,18.24,Supplies and Services,Purchase Amazon UK Marketplace
14/10/2016,Children Adult & Health,Amazon UK Marketplace,21.09,Supplies and Services,Purchase Amazon UK Marketplace
14/10/2016,Children Adult & Health,Arthur David (Food Wit,-13.60,School dinners,Credit Voucher Arthur David (Food Wit
14/10/2016,Children Adult & Health,Arthur David (Food Wit,-1.50,School dinners,Credit Voucher Arthur David (Food Wit
14/10/2016,Children Adult & Health,Arthur David (Food Wit,6.00,School dinners,Purchase Arthur David (Food Wit
14/10/2016,Children Adult & Health,Arthur David (Food Wit,6.12,School dinners,Purchase Arthur David (Food Wit
14/10/2016,Children Adult & Health,Arthur David (Food Wit,9.03,School dinners,Purchase Arthur David (Food Wit
14/10/2016,Children Adult & Health,Arthur David (Food Wit,9.20,School dinners,Purchase Arthur David (Food Wit
14/10/2016,Children Adult & Health,Arthur David (Food Wit,10.60,School dinners,Purchase Arthur David (Food Wit
14/10/2016,Children Adult & Health,Arthur David (Food Wit,11.36,School dinners,Purchase Arthur David (Food Wit
14/10/2016,Children Adult & Health,Arthur David (Food Wit,12.36,School dinners,Purchase Arthur David (Food Wit
14/10/2016,Children Adult & Health,Arthur David (Food Wit,12.77,School dinners,Purchase Arthur David (Food Wit
14/10/2016,Children Adult & Health,Arthur David (Food Wit,13.57,School dinners,Purchase Arthur David (Food Wit
14/10/2016,Children Adult & Health,Charles Saunders Ltd,16.74,School dinners,Purchase Charles Saunders Ltd
14/10/2016,Children Adult & Health,Arthur David (Food Wit,16.94,School dinners,Purchase Arthur David (Food Wit
14/10/2016,Children Adult & Health,Arthur David (Food Wit,17.80,School dinners,Purchase Arthur David (Food Wit
14/10/2016,Children Adult & Health,Arthur David (Food Wit,18.25,School dinners,Purchase Arthur David (Food Wit
14/10/2016,Children Adult & Health,Arthur David (Food Wit,18.33,School dinners,Purchase Arthur David (Food Wit
14/10/2016,Children Adult & Health,Arthur David (Food Wit,18.69,School dinners,Purchase Arthur David (Food Wit
14/10/2016,Children Adult & Health,Arthur David (Food Wit,19.53,School dinners,Purchase Arthur David (Food Wit
14/10/2016,Children Adult & Health,Arthur David (Food Wit,19.85,School dinners,Purchase Arthur David (Food Wit
14/10/2016,Children Adult & Health,Arthur David (Food Wit,20.24,School dinners,Purchase Arthur David (Food Wit
14/10/2016,Children Adult & Health,Arthur David (Food Wit,23.34,School dinners,Purchase Arthur David (Food Wit
14/10/2016,Children Adult & Health,Arthur David (Food Wit,24.29,School dinners,Purchase Arthur David (Food Wit
14/10/2016,Children Adult & Health,Arthur David (Food Wit,24.29,School dinners,Purchase Arthur David (Food Wit
14/10/2016,Children Adult & Health,Arthur David (Food Wit,27.20,School dinners,Purchase Arthur David (Food Wit
14/10/2016,Children Adult & Health,Arthur David (Food Wit,27.73,School dinners,Purchase Arthur David (Food Wit
14/10/2016,Children Adult & Health,Charles Saunders Ltd,28.68,School dinners,Purchase Charles Saunders Ltd
14/10/2016,Children Adult & Health,Charles Saunders Ltd,30.88,School dinners,Purchase Charles Saunders Ltd
14/10/2016,Children Adult & Health,Arthur David (Food Wit,33.36,School dinners,Purchase Arthur David (Food Wit
14/10/2016,Children Adult & Health,Arthur David (Food Wit,33.85,School dinners,Purchase Arthur David (Food Wit
14/10/2016,Children Adult & Health,Arthur David (Food Wit,36.29,School dinners,Purchase Arthur David (Food Wit
14/10/2016,Children Adult & Health,Arthur David (Food Wit,42.01,School dinners,Purchase Arthur David (Food Wit
14/10/2016,Children Adult & Health,Arthur David (Food Wit,42.40,School dinners,Purchase Arthur David (Food Wit
14/10/2016,Children Adult & Health,Charles Saunders Ltd,45.37,School dinners,Purchase Charles Saunders Ltd
14/10/2016,Children Adult & Health,Arthur David (Food Wit,47.17,School dinners,Purchase Arthur David (Food Wit
14/10/2016,Children Adult & Health,Arthur David (Food Wit,51.73,School dinners,Purchase Arthur David (Food Wit
14/10/2016,Children Adult & Health,Charles Saunders Ltd,51.75,School dinners,Purchase Charles Saunders Ltd
14/10/2016,Children Adult & Health,Brake Bros Ltd,53.49,School dinners,Purchase Brake Bros Ltd
14/10/2016,Children Adult & Health,Arthur David (Food Wit,54.03,School dinners,Purchase Arthur David (Food Wit
14/10/2016,Children Adult & Health,Charles Saunders Ltd,58.07,School dinners,Purchase Charles Saunders Ltd
14/10/2016,Children Adult & Health,Charles Saunders Ltd,58.42,School dinners,Purchase Charles Saunders Ltd
14/10/2016,Children Adult & Health,Charles Saunders Ltd,60.72,School dinners,Purchase Charles Saunders Ltd
14/10/2016,Children Adult & Health,Charles Saunders Ltd,61.00,School dinners,Purchase Charles Saunders Ltd
14/10/2016,Children Adult & Health,Charles Saunders Ltd,61.15,School dinners,Purchase Charles Saunders Ltd
14/10/2016,Children Adult & Health,Charles Saunders Ltd,61.80,School dinners,Purchase Charles Saunders Ltd
14/10/2016,Children Adult & Health,Arthur David (Food Wit,67.13,School dinners,Purchase Arthur David (Food Wit
14/10/2016,Children Adult & Health,Brake Bros Ltd,68.76,School dinners,Purchase Brake Bros Ltd
14/10/2016,Children Adult & Health,Arthur David (Food Wit,68.81,School dinners,Purchase Arthur David (Food Wit
14/10/2016,Children Adult & Health,Arthur David (Food Wit,69.20,School dinners,Purchase Arthur David (Food Wit
14/10/2016,Children Adult & Health,Brake Bros Ltd,71.21,School dinners,Purchase Brake Bros Ltd
14/10/2016,Children Adult & Health,Charles Saunders Ltd,73.04,School dinners,Purchase Charles Saunders Ltd
14/10/2016,Children Adult & Health,Arthur David (Food Wit,73.50,School dinners,Purchase Arthur David (Food Wit
14/10/2016,Children Adult & Health,Charles Saunders Ltd,75.40,School dinners,Purchase Charles Saunders Ltd
14/10/2016,Children Adult & Health,Charles Saunders Ltd,76.76,School dinners,Purchase Charles Saunders Ltd
14/10/2016,Children Adult & Health,Brake Bros Ltd,78.13,School dinners,Purchase Brake Bros Ltd
14/10/2016,Children Adult & Health,Charles Saunders Ltd,78.47,School dinners,Purchase Charles Saunders Ltd
14/10/2016,Children Adult & Health,Charles Saunders Ltd,80.02,School dinners,Purchase Charles Saunders Ltd
14/10/2016,Children Adult & Health,Arthur David (Food Wit,80.40,School dinners,Purchase Arthur David (Food Wit
14/10/2016,Children Adult & Health,Charles Saunders Ltd,83.64,School dinners,Purchase Charles Saunders Ltd
14/10/2016,Children Adult & Health,Charles Saunders Ltd,83.77,School dinners,Purchase Charles Saunders Ltd
14/10/2016,Children Adult & Health,Charles Saunders Ltd,83.85,School dinners,Purchase Charles Saunders Ltd
14/10/2016,Children Adult & Health,Charles Saunders Ltd,84.60,School dinners,Purchase Charles Saunders Ltd
14/10/2016,Children Adult & Health,Charles Saunders Ltd,88.42,School dinners,Purchase Charles Saunders Ltd
14/10/2016,Children Adult & Health,Charles Saunders Ltd,88.90,School dinners,Purchase Charles Saunders Ltd
14/10/2016,Children Adult & Health,Charles Saunders Ltd,90.60,School dinners,Purchase Charles Saunders Ltd
14/10/2016,Children Adult & Health,Brake Bros Ltd,91.87,School dinners,Purchase Brake Bros Ltd
14/10/2016,Children Adult & Health,Charles Saunders Ltd,93.10,School dinners,Purchase Charles Saunders Ltd
14/10/2016,Children Adult & Health,Charles Saunders Ltd,101.08,School dinners,Purchase Charles Saunders Ltd
14/10/2016,Children Adult & Health,Charles Saunders Ltd,101.56,School dinners,Purchase Charles Saunders Ltd
14/10/2016,Children Adult & Health,Charles Saunders Ltd,102.26,School dinners,Purchase Charles Saunders Ltd
14/10/2016,Children Adult & Health,Charles Saunders Ltd,108.87,School dinners,Purchase Charles Saunders Ltd
14/10/2016,Children Adult & Health,Charles Saunders Ltd,109.14,School dinners,Purchase Charles Saunders Ltd
14/10/2016,Children Adult & Health,Charles Saunders Ltd,111.74,School dinners,Purchase Charles Saunders Ltd
14/10/2016,Children Adult & Health,Charles Saunders Ltd,112.35,School dinners,Purchase Charles Saunders Ltd
14/10/2016,Children Adult & Health,Charles Saunders Ltd,112.91,School dinners,Purchase Charles Saunders Ltd
14/10/2016,Children Adult & Health,Charles Saunders Ltd,113.26,School dinners,Purchase Charles Saunders Ltd
14/10/2016,Children Adult & Health,Charles Saunders Ltd,113.91,School dinners,Purchase Charles Saunders Ltd
14/10/2016,Children Adult & Health,Charles Saunders Ltd,116.23,School dinners,Purchase Charles Saunders Ltd
14/10/2016,Children Adult & Health,Brake Bros Ltd,116.24,School dinners,Purchase Brake Bros Ltd
14/10/2016,Children Adult & Health,Charles Saunders Ltd,116.58,School dinners,Purchase Charles Saunders Ltd
14/10/2016,Children Adult & Health,Charles Saunders Ltd,117.90,School dinners,Purchase Charles Saunders Ltd
14/10/2016,Children Adult & Health,Charles Saunders Ltd,118.40,School dinners,Purchase Charles Saunders Ltd
14/10/2016,Children Adult & Health,Charles Saunders Ltd,119.23,School dinners,Purchase Charles Saunders Ltd
14/10/2016,Children Adult & Health,Charles Saunders Ltd,121.21,School dinners,Purchase Charles Saunders Ltd
14/10/2016,Children Adult & Health,Charles Saunders Ltd,124.54,School dinners,Purchase Charles Saunders Ltd
14/10/2016,Children Adult & Health,Brake Bros Ltd,125.61,School dinners,Purchase Brake Bros Ltd
14/10/2016,Children Adult & Health,Brake Bros Ltd,126.14,School dinners,Purchase Brake Bros Ltd
14/10/2016,Children Adult & Health,Charles Saunders Ltd,129.69,School dinners,Purchase Charles Saunders Ltd
14/10/2016,Children Adult & Health,Charles Saunders Ltd,131.68,School dinners,Purchase Charles Saunders Ltd
14/10/2016,Children Adult & Health,Charles Saunders Ltd,132.29,School dinners,Purchase Charles Saunders Ltd
14/10/2016,Children Adult & Health,Charles Saunders Ltd,132.64,School dinners,Purchase Charles Saunders Ltd
14/10/2016,Children Adult & Health,Charles Saunders Ltd,135.53,School dinners,Purchase Charles Saunders Ltd
14/10/2016,Children Adult & Health,Charles Saunders Ltd,136.27,School dinners,Purchase Charles Saunders Ltd
14/10/2016,Children Adult & Health,Charles Saunders Ltd,140.37,School dinners,Purchase Charles Saunders Ltd
14/10/2016,Children Adult & Health,Charles Saunders Ltd,141.18,School dinners,Purchase Charles Saunders Ltd
14/10/2016,Children Adult & Health,Charles Saunders Ltd,144.61,School dinners,Purchase Charles Saunders Ltd
14/10/2016,Children Adult & Health,Charles Saunders Ltd,146.17,School dinners,Purchase Charles Saunders Ltd
14/10/2016,Children Adult & Health,Charles Saunders Ltd,148.02,School dinners,Purchase Charles Saunders Ltd
14/10/2016,Children Adult & Health,Arthur David (Food Wit,148.19,School dinners,Purchase Arthur David (Food Wit
14/10/2016,Children Adult & Health,Charles Saunders Ltd,160.81,School dinners,Purchase Charles Saunders Ltd
14/10/2016,Children Adult & Health,Charles Saunders Ltd,166.16,School dinners,Purchase Charles Saunders Ltd
14/10/2016,Children Adult & Health,Charles Saunders Ltd,168.21,School dinners,Purchase Charles Saunders Ltd
14/10/2016,Children Adult & Health,Charles Saunders Ltd,169.39,School dinners,Purchase Charles Saunders Ltd
14/10/2016,Children Adult & Health,Charles Saunders Ltd,172.05,School dinners,Purchase Charles Saunders Ltd
14/10/2016,Children Adult & Health,Charles Saunders Ltd,174.46,School dinners,Purchase Charles Saunders Ltd
14/10/2016,Children Adult & Health,Charles Saunders Ltd,174.99,School dinners,Purchase Charles Saunders Ltd
14/10/2016,Children Adult & Health,Charles Saunders Ltd,175.10,School dinners,Purchase Charles Saunders Ltd
14/10/2016,Children Adult & Health,Charles Saunders Ltd,177.00,School dinners,Purchase Charles Saunders Ltd
14/10/2016,Children Adult & Health,Charles Saunders Ltd,180.54,School dinners,Purchase Charles Saunders Ltd
14/10/2016,Children Adult & Health,Charles Saunders Ltd,183.35,School dinners,Purchase Charles Saunders Ltd
14/10/2016,Children Adult & Health,Charles Saunders Ltd,185.36,School dinners,Purchase Charles Saunders Ltd
14/10/2016,Children Adult & Health,Brake Bros Ltd,193.59,School dinners,Purchase Brake Bros Ltd
14/10/2016,Children Adult & Health,Charles Saunders Ltd,208.94,School dinners,Purchase Charles Saunders Ltd
14/10/2016,Children Adult & Health,Charles Saunders Ltd,216.68,School dinners,Purchase Charles Saunders Ltd
14/10/2016,Children Adult & Health,Charles Saunders Ltd,222.09,School dinners,Purchase Charles Saunders Ltd
14/10/2016,Children Adult & Health,Charles Saunders Ltd,225.80,School dinners,Purchase Charles Saunders Ltd
14/10/2016,Children Adult & Health,Charles Saunders Ltd,229.27,School dinners,Purchase Charles Saunders Ltd
14/10/2016,Children Adult & Health,Charles Saunders Ltd,239.48,School dinners,Purchase Charles Saunders Ltd
14/10/2016,Children Adult & Health,Charles Saunders Ltd,254.95,School dinners,Purchase Charles Saunders Ltd
14/10/2016,Children Adult & Health,Charles Saunders Ltd,274.55,School dinners,Purchase Charles Saunders Ltd
14/10/2016,Children Adult & Health,Charles Saunders Ltd,281.99,School dinners,Purchase Charles Saunders Ltd
14/10/2016,Children Adult & Health,Brake Bros Ltd,301.59,School dinners,Purchase Brake Bros Ltd
14/10/2016,Children Adult & Health,Charles Saunders Ltd,332.43,School dinners,Purchase Charles Saunders Ltd
14/10/2016,Children Adult & Health,Charles Saunders Ltd,339.07,School dinners,Purchase Charles Saunders Ltd
14/10/2016,Children Adult & Health,Charles Saunders Ltd,444.80,School dinners,Purchase Charles Saunders Ltd
14/10/2016,Children Adult & Health,Charles Saunders Ltd,464.81,School dinners,Purchase Charles Saunders Ltd
14/10/2016,Children Adult & Health,Charles Saunders Ltd,561.13,School dinners,Purchase Charles Saunders Ltd
14/10/2016,Children Adult & Health,Charles Saunders Ltd,1509.25,School dinners,Purchase Charles Saunders Ltd
14/10/2016,Chief Executive & Corporate Resources,Supplies Team,-25.87,Stationery,Credit Voucher Supplies Team
14/10/2016,Chief Executive & Corporate Resources,Supplies Team,3.78,Stationery,Purchase Supplies Team
14/10/2016,Chief Executive & Corporate Resources,Supplies Team,5.97,Stationery,Purchase Supplies Team
14/10/2016,Chief Executive & Corporate Resources,Supplies Team,10.63,Stationery,Purchase Supplies Team
14/10/2016,Chief Executive & Corporate Resources,Supplies Team,14.00,Stationery,Purchase Supplies Team
14/10/2016,Chief Executive & Corporate Resources,Supplies Team,21.81,Stationery,Purchase Supplies Team
14/10/2016,Chief Executive & Corporate Resources,Supplies Team,21.87,Stationery,Purchase Supplies Team
14/10/2016,Chief Executive & Corporate Resources,Supplies Team,22.60,Stationery,Purchase Supplies Team
14/10/2016,Chief Executive & Corporate Resources,Supplies Team,24.11,Stationery,Purchase Supplies Team
14/10/2016,Chief Executive & Corporate Resources,Supplies Team,34.81,Stationery,Purchase Supplies Team
14/10/2016,Chief Executive & Corporate Resources,Supplies Team,53.10,Stationery,Purchase Supplies Team
14/10/2016,Chief Executive & Corporate Resources,Supplies Team,60.98,Stationery,Purchase Supplies Team
14/10/2016,Chief Executive & Corporate Resources,Supplies Team,77.40,Stationery,Purchase Supplies Team
14/10/2016,Children Adult & Health,Asda Home Shopping,-40.67,Credit Card Charges,Credit Voucher Asda Home Shopping
14/10/2016,Children Adult & Health,Asda Home Shopping,-1.97,Credit Card Charges,Credit Voucher Asda Home Shopping
14/10/2016,Children Adult & Health,Asda Home Shopping,183.72,Credit Card Charges,Purchase Asda Home Shopping
14/10/2016,Children Adult & Health,Bristol City Council,50.90,Supplies and Services,Purchase Bristol City Council
14/10/2016,Environment & Community Services,Amazon UK Marketplace,5.44,Supplies and Services,Purchase Amazon UK Marketplace
14/10/2016,Environment & Community Services,Amazon UK Retail,19.99,Supplies and Services,Purchase Amazon UK Retail
14/10/2016,Environment & Community Services,Amazon UK Retail,19.99,Supplies and Services,Purchase Amazon UK Retail
14/10/2016,Environment & Community Services,Amazon UK Retail Amazon.C,19.99,Supplies and Services,Purchase Amazon UK Retail Amazon.C
14/10/2016,Environment & Community Services,Cartridge Save,96.50,Supplies and Services,Purchase Cartridge Save
14/10/2016,Children Adult & Health,Co-Op Group 160071,29.80,Supplies and Services,Purchase Co-Op Group 160071
14/10/2016,Children Adult & Health,Www.Livefoods.Co.U,3.29,Credit Card Charges,Purchase Www.Livefoods.Co.U
14/10/2016,Children Adult & Health,Amazon UK Marketplace,9.99,Credit Card Charges,Purchase Amazon UK Marketplace
14/10/2016,Children Adult & Health,Emis,400.00,Credit Card Charges,Purchase Emis
14/10/2016,Chief Executive & Corporate Resources,Amazon UK Retail Amazon.C,43.99,Supplies and Services,Purchase Amazon UK Retail Amazon.C
14/10/2016,Chief Executive & Corporate Resources,Hilton,393.00,Supplies and Services,Purchase Hilton
14/10/2016,Chief Executive & Corporate Resources,Voucher Express B2b Mo,99.00,Supplies and Services,Purchase Voucher Express B2b Mo
